Workbook

Sheet Main
B10: 2021-10-01
B12: Sheet No. | C12: Template Name | D12: Summary
B13: 1 | C13: Future Intra | D13: For Intraday trading in F&O segment
B14: 2 | C14: Cash Intra | D14: For Intraday trading in cash market segment
B15: 3 | C15: Mid-cap Intra | D15: For Intraday trading in Mid-cap stocks
B16: 4 | C16: Bulk Deals | D16: Reveals Bulk Deals carried on NSE & BSE
B17: 5 | C17: Call Tracker
K27: `

Sheet Future Intra
M5: Back to Main Page
A6: FOR INTRA DAY TRADING | L6: =Main!B10 -> 2021-10-01
A9: Sr.no | B9: Sector | C9: Scrip | D9: Expiry Date | E9: CLOSE RATE | F9: Pivot Point | G9: Supports | J9: Resistances
E10: Point | F10: Point | G10: S1 | H10: S2 | I10: S3 | J10: R1 | K10: R2 | L10: R3 | M10: HIGH | N10: LOW | O10: OI | P10: % Change in OI
A11: 1 | B11: Index | C11: BANKNIFTY | D11: 2021-10-28 | E11: 37618.90 | F11: 37734.00 | G11: 37444.90 | H11: 37270.90 | I11: 36981.80 | J11: 37908.00 | K11: 38197.10 | L11: 38371.10 | M11: 38023.1 | N11: 37560 | O11: 2166375 | P11: -3.66%
A12: 2 | B12: Index | C12: NIFTY | D12: 2021-10-28 | E12: 17623.15 | F12: 17661.63 | G12: 17565.52 | H12: 17507.88 | I12: 17411.77 | J12: 17719.27 | K12: 17815.38 | L12: 17873.02 | M12: 17757.75 | N12: 17604 | O12: 12207500 | P12: -20.49%
A13: 3 | B13: Index | C13: FINNIFTY | D13: 2021-10-28 | E13: 18426.65 | F13: 18449.42 | G13: 18315.98 | H13: 18205.32 | I13: 18071.88 | J13: 18560.08 | K13: 18693.52 | L13: 18804.18 | M13: 18582.85 | N13: 18338.75 | O13: 2600 | P13: -32.99%
A14: 4 | B14: Chemical | C14: AARTIIND | D14: 2021-10-28 | E14: 932.05 | F14: 936.77 | G14: 923.88 | H14: 915.72 | I14: 902.83 | J14: 944.93 | K14: 957.82 | L14: 965.98 | M14: 949.65 | N14: 928.6 | O14: 2826250 | P14: -12.91%
A15: 5 | B15: Textile | C15: ABFRL | D15: 2021-10-28 | E15: 247.30 | F15: 242.20 | G15: 234.10 | H15: 220.90 | I15: 212.80 | J15: 255.40 | K15: 263.50 | L15: 276.70 | M15: 250.3 | N15: 229 | O15: 9544600 | P15: -29.44%
A16: 6 | B16: Cement | C16: ACC | D16: 2021-10-28 | E16: 2262.40 | F16: 2268.80 | G16: 2251.60 | H16: 2240.80 | I16: 2223.60 | J16: 2279.60 | K16: 2296.80 | L16: 2307.60 | M16: 2286 | N16: 2258 | O16: 2904500 | P16: -4.68%
A17: 7 | B17: Others | C17: ADANIENT | D17: 2021-10-28 | E17: 1474.95 | F17: 1489.98 | G17: 1454.97 | H17: 1434.98 | I17: 1399.97 | J17: 1509.97 | K17: 1544.98 | L17: 1564.97 | M17: 1525 | N17: 1470 | O17: 26550000 | P17: -2.52%
A18: 8 | B18: Others | C18: ADANIPORTS | D18: 2021-10-28 | E18: 739.95 | F18: 746.03 | G18: 732.17 | H18: 724.38 | I18: 710.52 | J18: 753.82 | K18: 767.68 | L18: 775.47 | M18: 759.9 | N18: 738.25 | O18: 89512500 | P18: -1.88%
A19: 9 | B19: Pharma | C19: ALKEM | D19: 2021-10-28 | E19: 4001.40 | F19: 3976.13 | G19: 3935.27 | H19: 3869.13 | I19: 3828.27 | J19: 4042.27 | K19: 4083.13 | L19: 4149.27 | M19: 4017 | N19: 3910 | O19: 392200 | P19: -0.31%
A20: 10 | B20: Automobile | C20: AMARAJABAT | D20: 2021-10-28 | E20: 753.90 | F20: 756.48 | G20: 749.42 | H20: 744.93 | I20: 737.87 | J20: 760.97 | K20: 768.03 | L20: 772.52 | M20: 763.55 | N20: 752 | O20: 8589000 | P20: -2.75%
A21: 11 | B21: Cement | C21: AMBUJACEM | D21: 2021-10-28 | E21: 402.35 | F21: 404.00 | G21: 398.75 | H21: 395.15 | I21: 389.90 | J21: 407.60 | K21: 412.85 | L21: 416.45 | M21: 409.25 | N21: 400.4 | O21: 17637000 | P21: 5.04%
A22: 12 | B22: Pharma | C22: APLLTD | D22: 2021-10-28 | E22: 790.85 | F22: 793.70 | G22: 785.25 | H22: 779.65 | I22: 771.20 | J22: 799.30 | K22: 807.75 | L22: 813.35 | M22: 802.15 | N22: 788.1 | O22: 2365000 | P22: -2.78%
A23: 13 | B23: Others | C23: APOLLOHOSP | D23: 2021-10-28 | E23: 4490.60 | F23: 4464.77 | G23: 4420.83 | H23: 4351.07 | I23: 4307.13 | J23: 4534.53 | K23: 4578.47 | L23: 4648.23 | M23: 4508.7 | N23: 4395 | O23: 2606500 | P23: -10.04%
A24: 14 | B24: Automobile | C24: APOLLOTYRE | D24: 2021-10-28 | E24: 226.80 | F24: 227.25 | G24: 224.70 | H24: 222.60 | I24: 220.05 | J24: 229.35 | K24: 231.90 | L24: 234.00 | M24: 229.8 | N24: 225.15 | O24: 13255000 | P24: -1.98%
A25: 15 | B25: Automobile | C25: ASHOKLEY | D25: 2021-10-28 | E25: 134.55 | F25: 132.97 | G25: 130.83 | H25: 127.12 | I25: 124.98 | J25: 136.68 | K25: 138.82 | L25: 142.53 | M25: 135.1 | N25: 129.25 | O25: 54441000 | P25: 1.03%
A26: 16 | B26: FMCG | C26: ASIANPAINT | D26: 2021-10-28 | E26: 3254.40 | F26: 3280.93 | G26: 3205.47 | H26: 3156.53 | I26: 3081.07 | J26: 3329.87 | K26: 3405.33 | L26: 3454.27 | M26: 3356.4 | N26: 3232 | O26: 3729000 | P26: -8.31%
A27: 17 | B27: Others | C27: ASTRAL | D27: 2021-10-28 | E27: 2169.95 | F27: 2183.02 | G27: 2126.03 | H27: 2082.12 | I27: 2025.13 | J27: 2226.93 | K27: 2283.92 | L27: 2327.83 | M27: 2240 | N27: 2139.1 | O27: 474925 | P27: -1.60%
A28: 18 | B28: Banking | C28: AUBANK | D28: 2021-10-28 | E28: 1168.80 | F28: 1172.17 | G28: 1153.48 | H28: 1138.17 | I28: 1119.48 | J28: 1187.48 | K28: 1206.17 | L28: 1221.48 | M28: 1190.85 | N28: 1156.85 | O28: 4806000 | P28: -9.14%
A29: 19 | B29: Pharma | C29: AUROPHARMA | D29: 2021-10-28 | E29: 728.15 | F29: 729.92 | G29: 719.83 | H29: 711.52 | I29: 701.43 | J29: 738.23 | K29: 748.32 | L29: 756.63 | M29: 740 | N29: 721.6 | O29: 14463800 | P29: -3.17%
A30: 20 | B30: Banking | C30: AXISBANK | D30: 2021-10-28 | E30: 770.35 | F30: 776.13 | G30: 762.47 | H30: 754.58 | I30: 740.92 | J30: 784.02 | K30: 797.68 | L30: 805.57 | M30: 789.8 | N30: 768.25 | O30: 35071200 | P30: -2.79%
A31: 21 | B31: Automobile | C31: BAJAJ-AUTO | D31: 2021-10-28 | E31: 3841.85 | F31: 3861.78 | G31: 3802.22 | H31: 3762.58 | I31: 3703.02 | J31: 3901.42 | K31: 3960.98 | L31: 4000.62 | M31: 3921.35 | N31: 3822.15 | O31: 3003000 | P31: 0.08%
A32: 22 | B32: Finance | C32: BAJAJFINSV | D32: 2021-10-28 | E32: 17841.80 | F32: 17755.58 | G32: 17561.17 | H32: 17280.53 | I32: 17086.12 | J32: 18036.22 | K32: 18230.63 | L32: 18511.27 | M32: 17950 | N32: 17474.95 | O32: 724425 | P32: -15.86%
A33: 23 | B33: Finance | C33: BAJFINANCE | D33: 2021-10-28 | E33: 7687.25 | F33: 7642.95 | G33: 7562.65 | H33: 7438.05 | I33: 7357.75 | J33: 7767.55 | K33: 7847.85 | L33: 7972.45 | M33: 7723.25 | N33: 7518.35 | O33: 4219250 | P33: -4.15%
A34: 24 | B34: Automobile | C34: BALKRISIND | D34: 2021-10-28 | E34: 2545.10 | F34: 2535.22 | G34: 2515.43 | H34: 2485.77 | I34: 2465.98 | J34: 2564.88 | K34: 2584.67 | L34: 2614.33 | M34: 2555 | N34: 2505.55 | O34: 1598000 | P34: -15.32%
A35: 25 | B35: Banking | C35: BANDHANBNK | D35: 2021-10-28 | E35: 284.45 | F35: 286.72 | G35: 280.88 | H35: 277.32 | I35: 271.48 | J35: 290.28 | K35: 296.12 | L35: 299.68 | M35: 292.55 | N35: 283.15 | O35: 26168400 | P35: -2.66%
A36: 26 | B36: Banking | C36: BANKBARODA | D36: 2021-10-28 | E36: 81.95 | F36: 82.47 | G36: 80.88 | H36: 79.82 | I36: 78.23 | J36: 83.53 | K36: 85.12 | L36: 86.18 | M36: 84.05 | N36: 81.4 | O36: 159962400 | P36: -8.90%
A37: 27 | B37: FMCG | C37: BATAINDIA | D37: 2021-10-28 | E37: 1783.60 | F37: 1780.87 | G37: 1769.73 | H37: 1755.87 | I37: 1744.73 | J37: 1794.73 | K37: 1805.87 | L37: 1819.73 | M37: 1792 | N37: 1767 | O37: 1747900 | P37: -8.44%
A38: 28 | B38: Capital_Goods | C38: BEL | D38: 2021-10-28 | E38: 203.10 | F38: 204.50 | G38: 200.85 | H38: 198.60 | I38: 194.95 | J38: 206.75 | K38: 210.40 | L38: 212.65 | M38: 208.15 | N38: 202.25 | O38: 25555000 | P38: -3.32%
A39: 29 | B39: FMCG | C39: BERGEPAINT | D39: 2021-10-28 | E39: 810.75 | F39: 814.20 | G39: 805.45 | H39: 800.15 | I39: 791.40 | J39: 819.50 | K39: 828.25 | L39: 833.55 | M39: 822.95 | N39: 808.9 | O39: 4734400 | P39: -4.19%
A40: 30 | B40: Automobile | C40: BHARATFORG | D40: 2021-10-28 | E40: 740.55 | F40: 743.10 | G40: 733.65 | H40: 726.75 | I40: 717.30 | J40: 750.00 | K40: 759.45 | L40: 766.35 | M40: 752.55 | N40: 736.2 | O40: 10501500 | P40: -1.31%
A41: 31 | B41: Telecom | C41: BHARTIARTL | D41: 2021-10-28 | E41: 691.50 | F41: 697.83 | G41: 684.07 | H41: 676.63 | I41: 662.87 | J41: 705.27 | K41: 719.03 | L41: 726.47 | M41: 711.6 | N41: 690.4 | O41: 72754336 | P41: -7.68%
A42: 32 | B42: Capital_Goods | C42: BHEL | D42: 2021-10-28 | E42: 64.90 | F42: 64.33 | G42: 63.22 | H42: 61.53 | I42: 60.42 | J42: 66.02 | K42: 67.13 | L42: 68.82 | M42: 65.45 | N42: 62.65 | O42: 115878000 | P42: -7.78%
A43: 33 | B43: Pharma | C43: BIOCON | D43: 2021-10-28 | E43: 364.00 | F43: 365.30 | G43: 360.80 | H43: 357.60 | I43: 353.10 | J43: 368.50 | K43: 373.00 | L43: 376.20 | M43: 369.8 | N43: 362.1 | O43: 16516300 | P43: -8.77%
A44: 34 | B44: Automobile | C44: BOSCHLTD | D44: 2021-10-28 | E44: 15553.75 | F44: 15612.25 | G44: 15392.75 | H44: 15231.75 | I44: 15012.25 | J44: 15773.25 | K44: 15992.75 | L44: 16153.75 | M44: 15831.75 | N44: 15451.25 | O44: 149400 | P44: -4.84%
A45: 35 | B45: Oil_Gas | C45: BPCL | D45: 2021-10-28 | E45: 433.15 | F45: 435.58 | G45: 429.67 | H45: 426.18 | I45: 420.27 | J45: 439.07 | K45: 444.98 | L45: 448.47 | M45: 441.5 | N45: 432.1 | O45: 37087200 | P45: -8.24%
A46: 36 | B46: FMCG | C46: BRITANNIA | D46: 2021-10-28 | E46: 3969.10 | F46: 3978.77 | G46: 3946.83 | H46: 3924.57 | I46: 3892.63 | J46: 4001.03 | K46: 4032.97 | L46: 4055.23 | M46: 4010.7 | N46: 3956.5 | O46: 1060200 | P46: -11.03%
A47: 37 | B47: Pharma | C47: CADILAHC | D47: 2021-10-28 | E47: 554.35 | F47: 553.08 | G47: 547.82 | H47: 541.28 | I47: 536.02 | J47: 559.62 | K47: 564.88 | L47: 571.42 | M47: 558.35 | N47: 546.55 | O47: 18143400 | P47: -1.77%
A48: 38 | B48: Banking | C48: CANBK | D48: 2021-10-28 | E48: 173.90 | F48: 174.07 | G48: 169.53 | H48: 165.17 | I48: 160.63 | J48: 178.43 | K48: 182.97 | L48: 187.33 | M48: 178.6 | N48: 169.7 | O48: 79374600 | P48: 2.11%
A49: 39 | B49: Finance | C49: CANFINHOME | D49: 2021-10-28 | E49: 689.45 | F49: 679.45 | G49: 666.20 | H49: 642.95 | I49: 629.70 | J49: 702.70 | K49: 715.95 | L49: 739.20 | M49: 692.7 | N49: 656.2 | O49: 4279275 | P49: 10.92%
A50: 40 | B50: Finance | C50: CHOLAFIN | D50: 2021-10-28 | E50: 566.95 | F50: 571.10 | G50: 560.85 | H50: 554.75 | I50: 544.50 | J50: 577.20 | K50: 587.45 | L50: 593.55 | M50: 581.35 | N50: 565 | O50: 11242500 | P50: -1.98%
A51: 41 | B51: Pharma | C51: CIPLA | D51: 2021-10-28 | E51: 985.90 | F51: 990.27 | G51: 975.63 | H51: 965.37 | I51: 950.73 | J51: 1000.53 | K51: 1015.17 | L51: 1025.43 | M51: 1004.9 | N51: 980 | O51: 7853950 | P51: -27.54%
A52: 42 | B52: Others | C52: COALINDIA | D52: 2021-10-28 | E52: 186.15 | F52: 187.68 | G52: 183.37 | H52: 180.58 | I52: 176.27 | J52: 190.47 | K52: 194.78 | L52: 197.57 | M52: 192 | N52: 184.9 | O52: 62344800 | P52: -3.99%
A53: 43 | B53: Technology | C53: COFORGE | D53: 2021-10-28 | E53: 5244.55 | F53: 5267.88 | G53: 5192.57 | H53: 5140.58 | I53: 5065.27 | J53: 5319.87 | K53: 5395.18 | L53: 5447.17 | M53: 5343.2 | N53: 5215.9 | O53: 791000 | P53: -10.13%
A54: 44 | B54: FMCG | C54: COLPAL | D54: 2021-10-28 | E54: 1671.70 | F54: 1673.37 | G54: 1661.88 | H54: 1652.07 | I54: 1640.58 | J54: 1683.18 | K54: 1694.67 | L54: 1704.48 | M54: 1684.85 | N54: 1663.55 | O54: 2374750 | P54: -26.47%
A55: 45 | B55: Others | C55: CONCOR | D55: 2021-10-28 | E55: 708.10 | F55: 708.67 | G55: 702.43 | H55: 696.77 | I55: 690.53 | J55: 714.33 | K55: 720.57 | L55: 726.23 | M55: 714.9 | N55: 703 | O55: 7099146 | P55: -9.34%
A56: 46 | B56: Others | C56: COROMANDEL | D56: 2021-10-28 | E56: 798.50 | F56: 800.98 | G56: 792.57 | H56: 786.63 | I56: 778.22 | J56: 806.92 | K56: 815.33 | L56: 821.27 | M56: 809.4 | N56: 795.05 | O56: 2171875 | P56: -3.87%
A57: 47 | B57: Banking | C57: CUB | D57: 2021-10-28 | E57: 158.55 | F57: 160.23 | G57: 155.82 | H57: 153.08 | I57: 148.67 | J57: 162.97 | K57: 167.38 | L57: 170.12 | M57: 164.65 | N57: 157.5 | O57: 8348300 | P57: 7.63%
A58: 48 | B58: Capital_Goods | C58: CUMMINSIND | D58: 2021-10-28 | E58: 997.85 | F58: 994.38 | G58: 983.57 | H58: 969.28 | I58: 958.47 | J58: 1008.67 | K58: 1019.48 | L58: 1033.77 | M58: 1005.2 | N58: 980.1 | O58: 1728000 | P58: -23.08%
A59: 49 | B59: FMCG | C59: DABUR | D59: 2021-10-28 | E59: 620.35 | F59: 622.65 | G59: 617.30 | H59: 614.25 | I59: 608.90 | J59: 625.70 | K59: 631.05 | L59: 634.10 | M59: 628 | N59: 619.6 | O59: 10012500 | P59: -8.08%
A60: 50 | B60: Chemical | C60: DEEPAKNTR | D60: 2021-10-28 | E60: 2410.05 | F60: 2400.47 | G60: 2382.13 | H60: 2354.22 | I60: 2335.88 | J60: 2428.38 | K60: 2446.72 | L60: 2474.63 | M60: 2418.8 | N60: 2372.55 | O60: 2499500 | P60: -7.22%
A61: 51 | B61: Pharma | C61: DIVISLAB | D61: 2021-10-28 | E61: 4812.75 | F61: 4824.50 | G61: 4780.25 | H61: 4747.75 | I61: 4703.50 | J61: 4857.00 | K61: 4901.25 | L61: 4933.75 | M61: 4868.75 | N61: 4792 | O61: 2390000 | P61: -2.62%
A62: 52 | B62: Others | C62: DIXON | D62: 2021-10-28 | E62: 4640.05 | F62: 4587.13 | G62: 4506.67 | H62: 4373.28 | I62: 4292.82 | J62: 4720.52 | K62: 4800.98 | L62: 4934.37 | M62: 4667.6 | N62: 4453.75 | O62: 406875 | P62: -9.33%
A63: 53 | B63: Realty | C63: DLF | D63: 2021-10-28 | E63: 419.30 | F63: 417.17 | G63: 411.58 | H63: 403.87 | I63: 398.28 | J63: 424.88 | K63: 430.47 | L63: 438.18 | M63: 422.75 | N63: 409.45 | O63: 31531500 | P63: -7.97%
A64: 54 | B64: Pharma | C64: DRREDDY | D64: 2021-10-28 | E64: 4901.65 | F64: 4931.37 | G64: 4862.93 | H64: 4824.22 | I64: 4755.78 | J64: 4970.08 | K64: 5038.52 | L64: 5077.23 | M64: 4999.8 | N64: 4892.65 | O64: 2669125 | P64: -6.29%
A65: 55 | B65: Automobile | C65: EICHERMOT | D65: 2021-10-28 | E65: 2791.00 | F65: 2798.03 | G65: 2766.02 | H65: 2741.03 | I65: 2709.02 | J65: 2823.02 | K65: 2855.03 | L65: 2880.02 | M65: 2830.05 | N65: 2773.05 | O65: 3668000 | P65: -13.50%
A66: 56 | B66: Automobile | C66: ESCORTS | D66: 2021-10-28 | E66: 1488.25 | F66: 1500.83 | G66: 1472.97 | H66: 1457.68 | I66: 1429.82 | J66: 1516.12 | K66: 1543.98 | L66: 1559.27 | M66: 1528.7 | N66: 1485.55 | O66: 6717150 | P66: -0.08%
A67: 57 | B67: Automobile | C67: EXIDEIND | D67: 2021-10-28 | E67: 179.25 | F67: 180.05 | G67: 178.10 | H67: 176.95 | I67: 175.00 | J67: 181.20 | K67: 183.15 | L67: 184.30 | M67: 182 | N67: 178.9 | O67: 32472000 | P67: -2.72%
A68: 58 | B68: Banking | C68: FEDERALBNK | D68: 2021-10-28 | E68: 84.80 | F68: 84.50 | G68: 82.30 | H68: 79.80 | I68: 77.60 | J68: 87.00 | K68: 89.20 | L68: 91.70 | M68: 86.7 | N68: 82 | O68: 88990000 | P68: -9.01%
A69: 59 | B69: Oil_Gas | C69: GAIL | D69: 2021-10-28 | E69: 159.85 | F69: 158.80 | G69: 156.85 | H69: 153.85 | I69: 151.90 | J69: 161.80 | K69: 163.75 | L69: 166.75 | M69: 160.75 | N69: 155.8 | O69: 48348600 | P69: -1.59%
A70: 60 | B70: Pharma | C70: GLENMARK | D70: 2021-10-28 | E70: 512.90 | F70: 513.88 | G70: 507.82 | H70: 502.73 | I70: 496.67 | J70: 518.97 | K70: 525.03 | L70: 530.12 | M70: 519.95 | N70: 508.8 | O70: 7355400 | P70: -3.19%
A71: 61 | B71: Infrastructure | C71: GMRINFRA | D71: 2021-10-28 | E71: 38.55 | F71: 38.80 | G71: 38.05 | H71: 37.55 | I71: 36.80 | J71: 39.30 | K71: 40.05 | L71: 40.55 | M71: 39.55 | N71: 38.3 | O71: 109800000 | P71: -18.94%
A72: 62 | B72: FMCG | C72: GODREJCP | D72: 2021-10-28 | E72: 1034.40 | F72: 1029.32 | G72: 1019.08 | H72: 1003.77 | I72: 993.53 | J72: 1044.63 | K72: 1054.87 | L72: 1070.18 | M72: 1039.55 | N72: 1014 | O72: 4836000 | P72: -15.13%
A73: 63 | B73: Realty | C73: GODREJPROP | D73: 2021-10-28 | E73: 2306.50 | F73: 2311.07 | G73: 2276.43 | H73: 2246.37 | I73: 2211.73 | J73: 2341.13 | K73: 2375.77 | L73: 2405.83 | M73: 2345.7 | N73: 2281 | O73: 2357550 | P73: -14.88%
A74: 64 | B74: Pharma | C74: GRANULES | D74: 2021-10-28 | E74: 320.95 | F74: 322.12 | G74: 319.08 | H74: 317.22 | I74: 314.18 | J74: 323.98 | K74: 327.02 | L74: 328.88 | M74: 325.15 | N74: 320.25 | O74: 11277800 | P74: -4.55%
A75: 65 | B75: Cement | C75: GRASIM | D75: 2021-10-28 | E75: 1676.60 | F75: 1681.28 | G75: 1665.57 | H75: 1654.53 | I75: 1638.82 | J75: 1692.32 | K75: 1708.03 | L75: 1719.07 | M75: 1697 | N75: 1670.25 | O75: 10185900 | P75: -3.34%
A76: 66 | B76: Oil_Gas | C76: GUJGASLTD | D76: 2021-10-28 | E76: 640.85 | F76: 636.10 | G76: 629.40 | H76: 617.95 | I76: 611.25 | J76: 647.55 | K76: 654.25 | L76: 665.70 | M76: 642.8 | N76: 624.65 | O76: 6573750 | P76: -14.29%
A77: 67 | B77: Others | C77: HAL | D77: 2021-10-28 | E77: 1352.90 | F77: 1358.13 | G77: 1338.27 | H77: 1323.63 | I77: 1303.77 | J77: 1372.77 | K77: 1392.63 | L77: 1407.27 | M77: 1378 | N77: 1343.5 | O77: 1751800 | P77: -7.98%
A78: 68 | B78: Capital_Goods | C78: HAVELLS | D78: 2021-10-28 | E78: 1380.90 | F78: 1379.33 | G78: 1369.57 | H78: 1358.23 | I78: 1348.47 | J78: 1390.67 | K78: 1400.43 | L78: 1411.77 | M78: 1389.1 | N78: 1368 | O78: 4654500 | P78: -13.02%
A79: 69 | B79: Technology | C79: HCLTECH | D79: 2021-10-28 | E79: 1275.55 | F79: 1277.97 | G79: 1265.93 | H79: 1256.32 | I79: 1244.28 | J79: 1287.58 | K79: 1299.62 | L79: 1309.23 | M79: 1290 | N79: 1268.35 | O79: 15889300 | P79: -10.22%
A80: 70 | B80: Finance | C80: HDFC | D80: 2021-10-28 | E80: 2761.75 | F80: 2764.98 | G80: 2735.22 | H80: 2708.68 | I80: 2678.92 | J80: 2791.52 | K80: 2821.28 | L80: 2847.82 | M80: 2794.75 | N80: 2738.45 | O80: 12759300 | P80: -1.48%
A81: 71 | B81: Finance | C81: HDFCAMC | D81: 2021-10-28 | E81: 2924.90 | F81: 2929.63 | G81: 2915.32 | H81: 2905.73 | I81: 2891.42 | J81: 2939.22 | K81: 2953.53 | L81: 2963.12 | M81: 2943.95 | N81: 2920.05 | O81: 3237400 | P81: -5.24%
A82: 72 | B82: Banking | C82: HDFCBANK | D82: 2021-10-28 | E82: 1600.15 | F82: 1600.43 | G82: 1589.72 | H82: 1579.28 | I82: 1568.57 | J82: 1610.87 | K82: 1621.58 | L82: 1632.02 | M82: 1611.15 | N82: 1590 | O82: 32770650 | P82: -3.13%
A83: 73 | B83: Finance | C83: HDFCLIFE | D83: 2021-10-28 | E83: 726.15 | F83: 731.08 | G83: 720.07 | H83: 713.98 | I83: 702.97 | J83: 737.17 | K83: 748.18 | L83: 754.27 | M83: 742.1 | N83: 725 | O83: 17942100 | P83: -3.88%
A84: 74 | B84: Automobile | C84: HEROMOTOCO | D84: 2021-10-28 | E84: 2846.90 | F84: 2892.17 | G84: 2794.48 | H84: 2742.07 | I84: 2644.38 | J84: 2944.58 | K84: 3042.27 | L84: 3094.68 | M84: 2989.85 | N84: 2839.75 | O84: 4145400 | P84: 1.22%
A85: 75 | B85: Metals | C85: HINDALCO | D85: 2021-10-28 | E85: 488.60 | F85: 493.37 | G85: 482.23 | H85: 475.87 | I85: 464.73 | J85: 499.73 | K85: 510.87 | L85: 517.23 | M85: 504.5 | N85: 487 | O85: 25019550 | P85: -36.49%
A86: 76 | B86: Oil_Gas | C86: HINDPETRO | D86: 2021-10-28 | E86: 300.50 | F86: 300.20 | G86: 296.25 | H86: 292.00 | I86: 288.05 | J86: 304.45 | K86: 308.40 | L86: 312.65 | M86: 304.15 | N86: 295.95 | O86: 19761300 | P86: -9.36%
A87: 77 | B87: FMCG | C87: HINDUNILVR | D87: 2021-10-28 | E87: 2695.45 | F87: 2694.15 | G87: 2683.30 | H87: 2671.15 | I87: 2660.30 | J87: 2706.30 | K87: 2717.15 | L87: 2729.30 | M87: 2705 | N87: 2682 | O87: 5210700 | P87: -12.59%
A88: 78 | B88: Finance | C88: IBULHSGFIN | D88: 2021-10-28 | E88: 232.65 | F88: 233.48 | G88: 229.22 | H88: 225.78 | I88: 221.52 | J88: 236.92 | K88: 241.18 | L88: 244.62 | M88: 237.75 | N88: 230.05 | O88: 37156600 | P88: -3.69%
A89: 79 | B89: Banking | C89: ICICIBANK | D89: 2021-10-28 | E89: 704.20 | F89: 708.23 | G89: 698.47 | H89: 692.73 | I89: 682.97 | J89: 713.97 | K89: 723.73 | L89: 729.47 | M89: 718 | N89: 702.5 | O89: 80009875 | P89: -0.20%
A90: 80 | B90: Finance | C90: ICICIGI | D90: 2021-10-28 | E90: 1595.10 | F90: 1601.87 | G90: 1579.78 | H90: 1564.47 | I90: 1542.38 | J90: 1617.18 | K90: 1639.27 | L90: 1654.58 | M90: 1623.95 | N90: 1586.55 | O90: 2215525 | P90: -10.04%
A91: 81 | B91: Finance | C91: ICICIPRULI | D91: 2021-10-28 | E91: 674.20 | F91: 675.27 | G91: 668.08 | H91: 661.97 | I91: 654.78 | J91: 681.38 | K91: 688.57 | L91: 694.68 | M91: 682.45 | N91: 669.15 | O91: 4242000 | P91: -28.68%
A92: 82 | B92: Telecom | C92: IDEA | D92: 2021-10-28 | E92: 12.00 | F92: 11.85 | G92: 11.50 | H92: 11.00 | I92: 10.65 | J92: 12.35 | K92: 12.70 | L92: 13.20 | M92: 12.2 | N92: 11.35 | O92: 815570000 | P92: 29.51%
A93: 83 | B93: Banking | C93: IDFCFIRSTB | D93: 2021-10-28 | E93: 47.90 | F93: 48.25 | G93: 47.10 | H93: 46.30 | I93: 45.15 | J93: 49.05 | K93: 50.20 | L93: 51.00 | M93: 49.4 | N93: 47.45 | O93: 172083000 | P93: -5.84%
A94: 84 | B94: Others | C94: IEX | D94: 2021-10-28 | E94: 648.55 | F94: 650.85 | G94: 633.65 | H94: 618.75 | I94: 601.55 | J94: 665.75 | K94: 682.95 | L94: 697.85 | M94: 668.05 | N94: 635.95 | O94: 7770000 | P94: -4.18%
A95: 85 | B95: Oil_Gas | C95: IGL | D95: 2021-10-28 | E95: 535.35 | F95: 531.00 | G95: 525.25 | H95: 515.15 | I95: 509.40 | J95: 541.10 | K95: 546.85 | L95: 556.95 | M95: 536.75 | N95: 520.9 | O95: 11932250 | P95: -8.37%
A96: 86 | B96: Infrastructure | C96: INDHOTEL | D96: 2021-10-28 | E96: 182.50 | F96: 183.90 | G96: 178.45 | H96: 174.40 | I96: 168.95 | J96: 187.95 | K96: 193.40 | L96: 197.45 | M96: 189.35 | N96: 179.85 | O96: 16493100 | P96: -19.37%
A97: 87 | B97: Others | C97: INDIAMART | D97: 2021-10-28 | E97: 8389.45 | F97: 8411.07 | G97: 8228.38 | H97: 8067.32 | I97: 7884.63 | J97: 8572.13 | K97: 8754.82 | L97: 8915.88 | M97: 8593.75 | N97: 8250 | O97: 158850 | P97: -10.93%
A98: 88 | B98: Others | C98: INDIGO | D98: 2021-10-28 | E98: 2024.75 | F98: 2020.37 | G98: 1997.78 | H98: 1970.82 | I98: 1948.23 | J98: 2047.33 | K98: 2069.92 | L98: 2096.88 | M98: 2042.95 | N98: 1993.4 | O98: 3977000 | P98: -14.21%
A99: 89 | B99: Banking | C99: INDUSINDBK | D99: 2021-10-28 | E99: 1117.70 | F99: 1123.78 | G99: 1107.72 | H99: 1097.73 | I99: 1081.67 | J99: 1133.77 | K99: 1149.83 | L99: 1159.82 | M99: 1139.85 | N99: 1113.8 | O99: 14493600 | P99: -2.79%
A100: 90 | B100: Telecom | C100: INDUSTOWER | D100: 2021-10-28 | E100: 307.05 | F100: 311.17 | G100: 297.88 | H100: 288.72 | I100: 275.43 | J100: 320.33 | K100: 333.62 | L100: 342.78 | M100: 324.45 | N100: 302 | O100: 12154800 | P100: -7.68%
A101: 91 | B101: Technology | C101: INFY | D101: 2021-10-28 | E101: 1666.55 | F101: 1672.88 | G101: 1656.77 | H101: 1646.98 | I101: 1630.87 | J101: 1682.67 | K101: 1698.78 | L101: 1708.57 | M101: 1689 | N101: 1663.1 | O101: 34065600 | P101: -2.12%
A102: 92 | B102: Oil_Gas | C102: IOC | D102: 2021-10-28 | E102: 125.75 | F102: 126.32 | G102: 123.98 | H102: 122.22 | I102: 119.88 | J102: 128.08 | K102: 130.42 | L102: 132.18 | M102: 128.65 | N102: 124.55 | O102: 37862500 | P102: -19.20%
A103: 93 | B103: Pharma | C103: IPCALAB | D103: 2021-10-28 | E103: 2422.85 | F103: 2406.33 | G103: 2368.77 | H103: 2314.68 | I103: 2277.12 | J103: 2460.42 | K103: 2497.98 | L103: 2552.07 | M103: 2443.9 | N103: 2352.25 | O103: 495900 | P103: 8.04%
A104: 94 | B104: Others | C104: IRCTC | D104: 2021-10-28 | E104: 3814.15 | F104: 3833.72 | G104: 3769.93 | H104: 3725.72 | I104: 3661.93 | J104: 3877.93 | K104: 3941.72 | L104: 3985.93 | M104: 3897.5 | N104: 3789.5 | O104: 1904825 | P104: -15.30%
A105: 95 | B105: FMCG | C105: ITC | D105: 2021-10-28 | E105: 236.85 | F105: 238.08 | G105: 235.02 | H105: 233.18 | I105: 230.12 | J105: 239.92 | K105: 242.98 | L105: 244.82 | M105: 241.15 | N105: 236.25 | O105: 174720000 | P105: -7.09%
A106: 96 | B106: Metals | C106: JINDALSTEL | D106: 2021-10-28 | E106: 390.20 | F106: 389.92 | G106: 383.18 | H106: 376.17 | I106: 369.43 | J106: 396.93 | K106: 403.67 | L106: 410.68 | M106: 396.65 | N106: 382.9 | O106: 40495000 | P106: -5.63%
A107: 97 | B107: Metals | C107: JSWSTEEL | D107: 2021-10-28 | E107: 671.95 | F107: 675.22 | G107: 666.33 | H107: 660.72 | I107: 651.83 | J107: 680.83 | K107: 689.72 | L107: 695.33 | M107: 684.1 | N107: 669.6 | O107: 45721800 | P107: -1.34%
A108: 98 | B108: Others | C108: JUBLFOOD | D108: 2021-10-28 | E108: 4066.05 | F108: 4081.02 | G108: 4031.93 | H108: 3997.82 | I108: 3948.73 | J108: 4115.13 | K108: 4164.22 | L108: 4198.33 | M108: 4130.1 | N108: 4046.9 | O108: 1604750 | P108: -8.08%
A109: 99 | B109: Banking | C109: KOTAKBANK | D109: 2021-10-28 | E109: 2011.55 | F109: 2017.68 | G109: 1998.37 | H109: 1985.18 | I109: 1965.87 | J109: 2030.87 | K109: 2050.18 | L109: 2063.37 | M109: 2037 | N109: 2004.5 | O109: 10920800 | P109: -23.02%
A110: 100 | B110: Finance | C110: L&TFH | D110: 2021-10-28 | E110: 91.45 | F110: 91.50 | G110: 90.20 | H110: 88.95 | I110: 87.65 | J110: 92.75 | K110: 94.05 | L110: 95.30 | M110: 92.8 | N110: 90.25 | O110: 62307368 | P110: -3.26%
A111: 101 | B111: Others | C111: LALPATHLAB | D111: 2021-10-28 | E111: 3667.50 | F111: 3681.18 | G111: 3632.37 | H111: 3597.23 | I111: 3548.42 | J111: 3716.32 | K111: 3765.13 | L111: 3800.27 | M111: 3730 | N111: 3646.05 | O111: 587250 | P111: -7.19%
A112: 102 | B112: Finance | C112: LICHSGFIN | D112: 2021-10-28 | E112: 429.25 | F112: 431.75 | G112: 425.50 | H112: 421.75 | I112: 415.50 | J112: 435.50 | K112: 441.75 | L112: 445.50 | M112: 438 | N112: 428 | O112: 18460000 | P112: -0.28%
A113: 103 | B113: Capital_Goods | C113: LT | D113: 2021-10-28 | E113: 1707.50 | F113: 1715.45 | G113: 1693.30 | H113: 1679.10 | I113: 1656.95 | J113: 1729.65 | K113: 1751.80 | L113: 1766.00 | M113: 1737.6 | N113: 1701.25 | O113: 11298175 | P113: -6.31%
A114: 104 | B114: Technology | C114: LTI | D114: 2021-10-28 | E114: 5775.75 | F114: 5791.45 | G114: 5707.80 | H114: 5639.85 | I114: 5556.20 | J114: 5859.40 | K114: 5943.05 | L114: 6011.00 | M114: 5875.1 | N114: 5723.5 | O114: 576000 | P114: -24.45%
A115: 105 | B115: Technology | C115: LTTS | D115: 2021-10-28 | E115: 4714.90 | F115: 4700.72 | G115: 4620.43 | H115: 4525.97 | I115: 4445.68 | J115: 4795.18 | K115: 4875.47 | L115: 4969.93 | M115: 4781 | N115: 4606.25 | O115: 477000 | P115: -20.55%
A116: 106 | B116: Pharma | C116: LUPIN | D116: 2021-10-28 | E116: 955.25 | F116: 957.08 | G116: 948.67 | H116: 942.08 | I116: 933.67 | J116: 963.67 | K116: 972.08 | L116: 978.67 | M116: 965.5 | N116: 950.5 | O116: 11624600 | P116: -7.68%
A117: 107 | B117: Automobile | C117: M&M | D117: 2021-10-28 | E117: 804.90 | F117: 809.00 | G117: 799.00 | H117: 793.10 | I117: 783.10 | J117: 814.90 | K117: 824.90 | L117: 830.80 | M117: 819 | N117: 803.1 | O117: 12614700 | P117: -14.11%
A118: 108 | B118: Finance | C118: M&MFIN | D118: 2021-10-28 | E118: 185.70 | F118: 185.55 | G118: 183.60 | H118: 181.50 | I118: 179.55 | J118: 187.65 | K118: 189.60 | L118: 191.70 | M118: 187.5 | N118: 183.45 | O118: 24924000 | P118: -8.56%
A119: 109 | B119: Finance | C119: MANAPPURAM | D119: 2021-10-28 | E119: 169.95 | F119: 171.28 | G119: 168.12 | H119: 166.28 | I119: 163.12 | J119: 173.12 | K119: 176.28 | L119: 178.12 | M119: 174.45 | N119: 169.45 | O119: 20850000 | P119: -2.74%
A120: 110 | B120: FMCG | C120: MARICO | D120: 2021-10-28 | E120: 550.05 | F120: 551.07 | G120: 545.28 | H120: 540.52 | I120: 534.73 | J120: 555.83 | K120: 561.62 | L120: 566.38 | M120: 556.85 | N120: 546.3 | O120: 8502000 | P120: -15.49%
A121: 111 | B121: Automobile | C121: MARUTI | D121: 2021-10-28 | E121: 7354.40 | F121: 7367.53 | G121: 7308.87 | H121: 7263.33 | I121: 7204.67 | J121: 7413.07 | K121: 7471.73 | L121: 7517.27 | M121: 7426.2 | N121: 7322 | O121: 3113400 | P121: -7.44%
A122: 112 | B122: FMCG | C122: MCDOWELL-N | D122: 2021-10-28 | E122: 856.65 | F122: 852.08 | G122: 835.67 | H122: 814.68 | I122: 798.27 | J122: 873.07 | K122: 889.48 | L122: 910.47 | M122: 868.5 | N122: 831.1 | O122: 16870000 | P122: -4.51%
A123: 113 | B123: Others | C123: MCX | D123: 2021-10-28 | E123: 1662.05 | F123: 1673.50 | G123: 1638.35 | H123: 1614.65 | I123: 1579.50 | J123: 1697.20 | K123: 1732.35 | L123: 1756.05 | M123: 1708.65 | N123: 1649.8 | O123: 1838550 | P123: -20.59%
A124: 114 | B124: Pharma | C124: METROPOLIS | D124: 2021-10-28 | E124: 2701.20 | F124: 2713.47 | G124: 2672.83 | H124: 2644.47 | I124: 2603.83 | J124: 2741.83 | K124: 2782.47 | L124: 2810.83 | M124: 2754.1 | N124: 2685.1 | O124: 462400 | P124: -4.38%
A125: 115 | B125: Finance | C125: MFSL | D125: 2021-10-28 | E125: 1016.85 | F125: 1015.70 | G125: 1003.45 | H125: 990.05 | I125: 977.80 | J125: 1029.10 | K125: 1041.35 | L125: 1054.75 | M125: 1027.95 | N125: 1002.3 | O125: 2562950 | P125: -7.77%
A126: 116 | B126: Oil_Gas | C126: MGL | D126: 2021-10-28 | E126: 1088.75 | F126: 1086.45 | G126: 1073.30 | H126: 1057.85 | I126: 1044.70 | J126: 1101.90 | K126: 1115.05 | L126: 1130.50 | M126: 1099.6 | N126: 1071 | O126: 3182400 | P126: 1.45%
A127: 117 | B127: Technology | C127: MINDTREE | D127: 2021-10-28 | E127: 4219.65 | F127: 4242.82 | G127: 4180.83 | H127: 4142.02 | I127: 4080.03 | J127: 4281.63 | K127: 4343.62 | L127: 4382.43 | M127: 4304.8 | N127: 4204 | O127: 2595200 | P127: -4.98%
A128: 118 | B128: Automobile | C128: MOTHERSUMI | D128: 2021-10-28 | E128: 227.20 | F128: 228.98 | G128: 224.22 | H128: 221.23 | I128: 216.47 | J128: 231.97 | K128: 236.73 | L128: 239.72 | M128: 233.75 | N128: 226 | O128: 31055500 | P128: 0.98%
A129: 119 | B129: Technology | C129: MPHASIS | D129: 2021-10-28 | E129: 3122.50 | F129: 3142.27 | G129: 3095.43 | H129: 3068.37 | I129: 3021.53 | J129: 3169.33 | K129: 3216.17 | L129: 3243.23 | M129: 3189.1 | N129: 3115.2 | O129: 2114450 | P129: -3.97%
A130: 120 | B130: Automobile | C130: MRF | D130: 2021-10-28 | E130: 79529.40 | F130: 79478.10 | G130: 78966.35 | H130: 78403.30 | I130: 77891.55 | J130: 80041.15 | K130: 80552.90 | L130: 81115.95 | M130: 79989.85 | N130: 78915.05 | O130: 48730 | P130: -0.39%
A131: 121 | B131: Finance | C131: MUTHOOTFIN | D131: 2021-10-28 | E131: 1457.55 | F131: 1464.48 | G131: 1444.22 | H131: 1430.88 | I131: 1410.62 | J131: 1477.82 | K131: 1498.08 | L131: 1511.42 | M131: 1484.75 | N131: 1451.15 | O131: 3541500 | P131: -3.00%
A132: 122 | B132: Others | C132: NAM-INDIA | D132: 2021-10-28 | E132: 428.05 | F132: 429.10 | G132: 423.55 | H132: 419.05 | I132: 413.50 | J132: 433.60 | K132: 439.15 | L132: 443.65 | M132: 434.65 | N132: 424.6 | O132: 2259200 | P132: -7.95%
A133: 123 | B133: Metals | C133: NATIONALUM | D133: 2021-10-28 | E133: 93.95 | F133: 94.63 | G133: 92.67 | H133: 91.38 | I133: 89.42 | J133: 95.92 | K133: 97.88 | L133: 99.17 | M133: 96.6 | N133: 93.35 | O133: 88638000 | P133: -6.37%
A134: 124 | B134: Others | C134: NAUKRI | D134: 2021-10-28 | E134: 6453.95 | F134: 6464.58 | G134: 6405.17 | H134: 6356.38 | I134: 6296.97 | J134: 6513.37 | K134: 6572.78 | L134: 6621.57 | M134: 6524 | N134: 6415.8 | O134: 840750 | P134: -15.33%
A135: 125 | B135: Chemical | C135: NAVINFLUOR | D135: 2021-10-28 | E135: 3695.90 | F135: 3706.62 | G135: 3653.23 | H135: 3610.57 | I135: 3557.18 | J135: 3749.28 | K135: 3802.67 | L135: 3845.33 | M135: 3760 | N135: 3663.95 | O135: 632475 | P135: -8.64%
A136: 126 | B136: FMCG | C136: NESTLEIND | D136: 2021-10-28 | E136: 19445.00 | F136: 19469.35 | G136: 19338.65 | H136: 19232.30 | I136: 19101.60 | J136: 19575.70 | K136: 19706.40 | L136: 19812.75 | M136: 19600.05 | N136: 19363 | O136: 239800 | P136: -36.37%
A137: 127 | B137: Metals | C137: NMDC | D137: 2021-10-28 | E137: 143.70 | F137: 145.33 | G137: 141.47 | H137: 139.23 | I137: 135.37 | J137: 147.57 | K137: 151.43 | L137: 153.67 | M137: 149.2 | N137: 143.1 | O137: 109035800 | P137: -1.69%
A138: 128 | B138: Power | C138: NTPC | D138: 2021-10-28 | E138: 141.70 | F138: 141.33 | G138: 139.47 | H138: 137.23 | I138: 135.37 | J138: 143.57 | K138: 145.43 | L138: 147.67 | M138: 143.2 | N138: 139.1 | O138: 49840800 | P138: -17.42%
A139: 129 | B139: Technology | C139: OFSS | D139: 2021-10-28 | E139: 4583.55 | F139: 4602.60 | G139: 4531.00 | H139: 4478.45 | I139: 4406.85 | J139: 4655.15 | K139: 4726.75 | L139: 4779.30 | M139: 4674.2 | N139: 4550.05 | O139: 733875 | P139: -2.64%
A140: 130 | B140: Oil_Gas | C140: ONGC | D140: 2021-10-28 | E140: 144.85 | F140: 144.33 | G140: 142.22 | H140: 139.58 | I140: 137.47 | J140: 146.97 | K140: 149.08 | L140: 151.72 | M140: 146.45 | N140: 141.7 | O140: 56494900 | P140: -20.32%
A141: 131 | B141: Textile | C141: PAGEIND | D141: 2021-10-28 | E141: 31905.90 | F141: 32224.12 | G141: 31422.78 | H141: 30939.67 | I141: 30138.33 | J141: 32707.23 | K141: 33508.57 | L141: 33991.68 | M141: 33025.45 | N141: 31741 | O141: 81570 | P141: -1.88%
A142: 132 | B142: Pharma | C142: PEL | D142: 2021-10-28 | E142: 2609.65 | F142: 2626.57 | G142: 2579.13 | H142: 2548.62 | I142: 2501.18 | J142: 2657.08 | K142: 2704.52 | L142: 2735.03 | M142: 2674 | N142: 2596.05 | O142: 4415125 | P142: -2.60%
A143: 133 | B143: Oil_Gas | C143: PETRONET | D143: 2021-10-28 | E143: 239.55 | F143: 239.20 | G143: 236.85 | H143: 234.15 | I143: 231.80 | J143: 241.90 | K143: 244.25 | L143: 246.95 | M143: 241.55 | N143: 236.5 | O143: 23700000 | P143: -8.52%
A144: 134 | B144: Finance | C144: PFC | D144: 2021-10-28 | E144: 143.05 | F144: 143.90 | G144: 140.80 | H144: 138.55 | I144: 135.45 | J144: 146.15 | K144: 149.25 | L144: 151.50 | M144: 147 | N144: 141.65 | O144: 26015200 | P144: -5.15%
A145: 135 | B145: Pharma | C145: PFIZER | D145: 2021-10-28 | E145: 5609.65 | F145: 5634.85 | G145: 5569.80 | H145: 5529.95 | I145: 5464.90 | J145: 5674.70 | K145: 5739.75 | L145: 5779.60 | M145: 5699.9 | N145: 5595 | O145: 231375 | P145: -3.39%
A146: 136 | B146: FMCG | C146: PIDILITIND | D146: 2021-10-28 | E146: 2387.05 | F146: 2396.02 | G146: 2372.03 | H146: 2357.02 | I146: 2333.03 | J146: 2411.03 | K146: 2435.02 | L146: 2450.03 | M146: 2420 | N146: 2381 | O146: 2493500 | P146: -11.70%
A147: 137 | B147: Chemical | C147: PIIND | D147: 2021-10-28 | E147: 3186.25 | F147: 3202.72 | G147: 3138.53 | H147: 3090.82 | I147: 3026.63 | J147: 3250.43 | K147: 3314.62 | L147: 3362.33 | M147: 3266.9 | N147: 3155 | O147: 1321500 | P147: -6.04%
A148: 138 | B148: Banking | C148: PNB | D148: 2021-10-28 | E148: 40.25 | F148: 40.45 | G148: 39.40 | H148: 38.55 | I148: 37.50 | J148: 41.30 | K148: 42.35 | L148: 43.20 | M148: 41.5 | N148: 39.6 | O148: 305056000 | P148: -4.54%
A149: 139 | B149: Others | C149: POLYCAB | D149: 2021-10-28 | E149: 2404.00 | F149: 2393.83 | G149: 2352.67 | H149: 2301.33 | I149: 2260.17 | J149: 2445.17 | K149: 2486.33 | L149: 2537.67 | M149: 2435 | N149: 2342.5 | O149: 853200 | P149: 5.65%
A150: 140 | B150: Power | C150: POWERGRID | D150: 2021-10-28 | E150: 190.25 | F150: 192.55 | G150: 187.15 | H150: 184.05 | I150: 178.65 | J150: 195.65 | K150: 201.05 | L150: 204.15 | M150: 197.95 | N150: 189.45 | O150: 35229798 | P150: -9.69%
A151: 141 | B151: Media | C151: PVR | D151: 2021-10-28 | E151: 1605.35 | F151: 1608.02 | G151: 1588.38 | H151: 1571.42 | I151: 1551.78 | J151: 1624.98 | K151: 1644.62 | L151: 1661.58 | M151: 1627.65 | N151: 1591.05 | O151: 2652826 | P151: -9.02%
A152: 142 | B152: Cement | C152: RAMCOCEM | D152: 2021-10-28 | E152: 985.60 | F152: 990.85 | G152: 976.75 | H152: 967.90 | I152: 953.80 | J152: 999.70 | K152: 1013.80 | L152: 1022.65 | M152: 1004.95 | N152: 982 | O152: 2084200 | P152: -7.37%
A153: 143 | B153: Banking | C153: RBLBANK | D153: 2021-10-28 | E153: 191.25 | F153: 190.78 | G153: 187.97 | H153: 184.68 | I153: 181.87 | J153: 194.07 | K153: 196.88 | L153: 200.17 | M153: 193.6 | N153: 187.5 | O153: 23803200 | P153: -9.95%
A154: 144 | B154: Power | C154: RECLTD | D154: 2021-10-28 | E154: 158.70 | F154: 160.35 | G154: 156.20 | H154: 153.70 | I154: 149.55 | J154: 162.85 | K154: 167.00 | L154: 169.50 | M154: 164.5 | N154: 157.85 | O154: 22842000 | P154: -7.93%
A155: 145 | B155: Oil_Gas | C155: RELIANCE | D155: 2021-10-28 | E155: 2520.55 | F155: 2522.92 | G155: 2502.63 | H155: 2484.72 | I155: 2464.43 | J155: 2540.83 | K155: 2561.12 | L155: 2579.03 | M155: 2543.2 | N155: 2505 | O155: 27915750 | P155: -8.12%
A156: 146 | B156: Metals | C156: SAIL | D156: 2021-10-28 | E156: 114.25 | F156: 115.55 | G156: 112.45 | H156: 110.65 | I156: 107.55 | J156: 117.35 | K156: 120.45 | L156: 122.25 | M156: 118.65 | N156: 113.75 | O156: 160170000 | P156: 1.84%
A157: 147 | B157: Finance | C157: SBILIFE | D157: 2021-10-28 | E157: 1218.55 | F157: 1214.83 | G157: 1206.07 | H157: 1193.58 | I157: 1184.82 | J157: 1227.32 | K157: 1236.08 | L157: 1248.57 | M157: 1223.6 | N157: 1202.35 | O157: 7702500 | P157: -22.04%
A158: 148 | B158: Banking | C158: SBIN | D158: 2021-10-28 | E158: 454.10 | F158: 457.65 | G158: 448.70 | H158: 443.30 | I158: 434.35 | J158: 463.05 | K158: 472.00 | L158: 477.40 | M158: 466.6 | N158: 452.25 | O158: 83392500 | P158: -9.53%
A159: 149 | B159: Cement | C159: SHREECEM | D159: 2021-10-28 | E159: 28995.60 | F159: 29092.88 | G159: 28708.27 | H159: 28420.93 | I159: 28036.32 | J159: 29380.22 | K159: 29764.83 | L159: 30052.17 | M159: 29477.5 | N159: 28805.55 | O159: 143675 | P159: -9.15%
A160: 150 | B160: Capital_Goods | C160: SIEMENS | D160: 2021-10-28 | E160: 2134.20 | F160: 2137.23 | G160: 2117.47 | H160: 2100.73 | I160: 2080.97 | J160: 2153.97 | K160: 2173.73 | L160: 2190.47 | M160: 2157 | N160: 2120.5 | O160: 1882100 | P160: -7.00%
A161: 151 | B161: Textile | C161: SRF | D161: 2021-10-28 | E161: 11325.95 | F161: 11258.30 | G161: 11132.60 | H161: 10939.25 | I161: 10813.55 | J161: 11451.65 | K161: 11577.35 | L161: 11770.70 | M161: 11384 | N161: 11064.95 | O161: 672250 | P161: -16.09%
A162: 152 | B162: Finance | C162: SRTRANSFIN | D162: 2021-10-28 | E162: 1307.70 | F162: 1314.48 | G162: 1293.97 | H162: 1280.23 | I162: 1259.72 | J162: 1328.22 | K162: 1348.73 | L162: 1362.47 | M162: 1335 | N162: 1300.75 | O162: 4675600 | P162: -0.53%
A163: 153 | B163: Pharma | C163: STAR | D163: 2021-10-28 | E163: 592.65 | F163: 594.03 | G163: 586.22 | H163: 579.78 | I163: 571.97 | J163: 600.47 | K163: 608.28 | L163: 614.72 | M163: 601.85 | N163: 587.6 | O163: 2436750 | P163: -8.26%
A164: 154 | B164: Pharma | C164: SUNPHARMA | D164: 2021-10-28 | E164: 822.35 | F164: 822.20 | G164: 809.50 | H164: 796.65 | I164: 783.95 | J164: 835.05 | K164: 847.75 | L164: 860.60 | M164: 834.9 | N164: 809.35 | O164: 33454400 | P164: -12.18%
A165: 155 | B165: Media | C165: SUNTV | D165: 2021-10-28 | E165: 509.90 | F165: 507.75 | G165: 502.60 | H165: 495.30 | I165: 490.15 | J165: 515.05 | K165: 520.20 | L165: 527.50 | M165: 512.9 | N165: 500.45 | O165: 10978500 | P165: -21.50%
A166: 156 | B166: Pharma | C166: SYNGENE | D166: 2021-10-28 | E166: 602.80 | F166: 605.80 | G166: 593.55 | H166: 584.30 | I166: 572.05 | J166: 615.05 | K166: 627.30 | L166: 636.55 | M166: 618.05 | N166: 596.55 | O166: 1962650 | P166: 0.61%
A167: 157 | B167: Chemical | C167: TATACHEM | D167: 2021-10-28 | E167: 924.15 | F167: 930.93 | G167: 914.22 | H167: 904.28 | I167: 887.57 | J167: 940.87 | K167: 957.58 | L167: 967.52 | M167: 947.65 | N167: 921 | O167: 11465000 | P167: -5.23%
A168: 158 | B168: FMCG | C168: TATACONSUM | D168: 2021-10-28 | E168: 818.00 | F168: 820.00 | G168: 813.30 | H168: 808.60 | I168: 801.90 | J168: 824.70 | K168: 831.40 | L168: 836.10 | M168: 826.7 | N168: 815.3 | O168: 10917450 | P168: 0.70%
A169: 159 | B169: Automobile | C169: TATAMOTORS | D169: 2021-10-28 | E169: 334.15 | F169: 334.62 | G169: 329.53 | H169: 324.92 | I169: 319.83 | J169: 339.23 | K169: 344.32 | L169: 348.93 | M169: 339.7 | N169: 330 | O169: 98299350 | P169: -5.70%
A170: 160 | B170: Power | C170: TATAPOWER | D170: 2021-10-28 | E170: 159.65 | F170: 157.70 | G170: 153.55 | H170: 147.45 | I170: 143.30 | J170: 163.80 | K170: 167.95 | L170: 174.05 | M170: 161.85 | N170: 151.6 | O170: 138253500 | P170: -3.48%
A171: 161 | B171: Metals | C171: TATASTEEL | D171: 2021-10-28 | E171: 1293.00 | F171: 1301.40 | G171: 1280.60 | H171: 1268.20 | I171: 1247.40 | J171: 1313.80 | K171: 1334.60 | L171: 1347.00 | M171: 1322.2 | N171: 1289 | O171: 47719850 | P171: -4.88%
A172: 162 | B172: Technology | C172: TCS | D172: 2021-10-28 | E172: 3773.45 | F172: 3778.52 | G172: 3746.03 | H172: 3718.62 | I172: 3686.13 | J172: 3805.93 | K172: 3838.42 | L172: 3865.83 | M172: 3811 | N172: 3751.1 | O172: 7570200 | P172: -10.28%
A173: 163 | B173: Technology | C173: TECHM | D173: 2021-10-28 | E173: 1387.80 | F173: 1393.58 | G173: 1378.17 | H173: 1368.53 | I173: 1353.12 | J173: 1403.22 | K173: 1418.63 | L173: 1428.27 | M173: 1409 | N173: 1383.95 | O173: 12711600 | P173: 2.67%
A174: 164 | B174: FMCG | C174: TITAN | D174: 2021-10-28 | E174: 2166.95 | F174: 2166.60 | G174: 2144.50 | H174: 2122.05 | I174: 2099.95 | J174: 2189.05 | K174: 2211.15 | L174: 2233.60 | M174: 2188.7 | N174: 2144.15 | O174: 4510500 | P174: -9.59%
A175: 165 | B175: Pharma | C175: TORNTPHARM | D175: 2021-10-28 | E175: 3092.15 | F175: 3142.38 | G175: 3024.82 | H175: 2957.48 | I175: 2839.92 | J175: 3209.72 | K175: 3327.28 | L175: 3394.62 | M175: 3259.95 | N175: 3075.05 | O175: 727500 | P175: -0.78%
A176: 166 | B176: Power | C176: TORNTPOWER | D176: 2021-10-28 | E176: 508.15 | F176: 511.75 | G176: 502.55 | H176: 496.95 | I176: 487.75 | J176: 517.35 | K176: 526.55 | L176: 532.15 | M176: 520.95 | N176: 506.15 | O176: 3756000 | P176: -4.54%
A177: 167 | B177: Others | C177: TRENT | D177: 2021-10-28 | E177: 1029.70 | F177: 1026.98 | G177: 1009.47 | H177: 989.23 | I177: 971.72 | J177: 1047.22 | K177: 1064.73 | L177: 1084.97 | M177: 1044.5 | N177: 1006.75 | O177: 1386200 | P177: -13.84%
A178: 168 | B178: Automobile | C178: TVSMOTOR | D178: 2021-10-28 | E178: 552.30 | F178: 553.58 | G178: 547.47 | H178: 542.63 | I178: 536.52 | J178: 558.42 | K178: 564.53 | L178: 569.37 | M178: 559.7 | N178: 548.75 | O178: 5441800 | P178: -4.05%
A179: 169 | B179: FMCG | C179: UBL | D179: 2021-10-28 | E179: 1580.65 | F179: 1586.72 | G179: 1553.93 | H179: 1527.22 | I179: 1494.43 | J179: 1613.43 | K179: 1646.22 | L179: 1672.93 | M179: 1619.5 | N179: 1560 | O179: 1558200 | P179: -16.22%
A180: 170 | B180: Cement | C180: ULTRACEMCO | D180: 2021-10-28 | E180: 7418.05 | F180: 7445.53 | G180: 7366.12 | H180: 7314.18 | I180: 7234.77 | J180: 7497.47 | K180: 7576.88 | L180: 7628.82 | M180: 7524.95 | N180: 7393.6 | O180: 1713600 | P180: -0.88%
A181: 171 | B181: Chemical | C181: UPL | D181: 2021-10-28 | E181: 710.80 | F181: 714.47 | G181: 705.33 | H181: 699.87 | I181: 690.73 | J181: 719.93 | K181: 729.07 | L181: 734.53 | M181: 723.6 | N181: 709 | O181: 24659700 | P181: 1.53%
A182: 172 | B182: Metals | C182: VEDL | D182: 2021-10-28 | E182: 288.40 | F182: 289.92 | G182: 285.58 | H182: 282.77 | I182: 278.43 | J182: 292.73 | K182: 297.07 | L182: 299.88 | M182: 294.25 | N182: 287.1 | O182: 113708000 | P182: -5.84%
A183: 173 | B183: Capital_Goods | C183: VOLTAS | D183: 2021-10-28 | E183: 1225.30 | F183: 1229.23 | G183: 1209.82 | H183: 1194.33 | I183: 1174.92 | J183: 1244.72 | K183: 1264.13 | L183: 1279.62 | M183: 1248.65 | N183: 1213.75 | O183: 2894000 | P183: -17.80%
A184: 174 | B184: Technology | C184: WIPRO | D184: 2021-10-28 | E184: 637.65 | F184: 641.15 | G184: 632.50 | H184: 627.35 | I184: 618.70 | J184: 646.30 | K184: 654.95 | L184: 660.10 | M184: 649.8 | N184: 636 | O184: 32505600 | P184: -3.23%
A185: 175 | B185: Media | C185: ZEEL | D185: 2021-10-28 | E185: 304.25 | F185: 305.87 | G185: 300.43 | H185: 296.62 | I185: 291.18 | J185: 309.68 | K185: 315.12 | L185: 318.93 | M185: 311.3 | N185: 302.05 | O185: 47067000 | P185: -5.27%
A203: Pivot Point: This is trigger point for intra day buy/sell based on the price range of the previous day
A204: As per the tool,the trader should take BUY position just above Pivot and keep the stop loss of pivot point and the first target would be Resistance 1(R1)
A205: If R1 is crossed then R2 becomes the next target with stop loss of at R1
A206: Similarly if price goes below pivot point then the trader should sell and keep a stop loss of pivot point and the first target would be S1
A207: If S1 is crossed then S2 becomes the next target with stop loss of at S1
A209: Disclaimer:
A210: This document has been prepared by the Retail Research Desk of Asit C Mehta
A211: Investment Intermediates Ltd. and is meant for use of the recipient only
A212: and is not for circulation. This document is not to be reported or
A213: copied or made available to others. It should not be considered to be
A214: taken as an offer to sell or a solicitation to buy any security. The
A215: information contained herein is from sources believed reliable. We do
A216: not represent that it is accurate or complete and it should not be
A217: relied upon as such. We may from time to time have positions in and buy
A218: and sell securities referred to herein

Sheet Cash Intra
M5: Back to Main Page
A6: FOR INTRA DAY TRADING | K6: =Main!B10 -> 2021-10-01
A8: Sr.no | C8: CLOSE RATE | D8: Pivot Point | E8: Supports | H8: Resistances
E9: S1 | F9: S2 | G9: S3 | H9: R1 | I9: R2 | J9: R3 | K9: HIGH | L9: LOW | M9: Total Trade Quanity in Lakhs
A10: 1 | B10: Nifty 50 | C10: 17618.15 | D10: 17648.55 | E10: 17554.95 | F10: 17491.75 | G10: 17398.15 | H10: 17711.75 | I10: 17805.35 | J10: 17868.55 | K10: 17742.15 | L10: 17585.35
A11: 2 | B11: Nifty Bank | C11: 37425.1 | D11: 37554.73 | E11: 37224.62 | F11: 37024.13 | G11: 36694.02 | H11: 37755.22 | I11: 38085.33 | J11: 38285.82 | K11: 37884.85 | L11: 37354.25
A12: 3 | B12: Nifty CPSE | C12: 2362.55 | D12: 2370.27 | E12: 2340.68 | F12: 2318.82 | G12: 2289.23 | H12: 2392.13 | I12: 2421.72 | J12: 2443.58 | K12: 2399.85 | L12: 2348.4
A13: 4 | B13: Nifty Infra | C13: 5025.35 | D13: 5032.12 | E13: 5003.63 | F13: 4981.92 | G13: 4953.43 | H13: 5053.83 | I13: 5082.32 | J13: 5104.03 | K13: 5060.6 | L13: 5010.4
A14: 5 | B14: Nifty IT | C14: 35028 | D14: 35137.23 | E14: 34866.37 | F14: 34704.73 | G14: 34433.87 | H14: 35298.87 | I14: 35569.73 | J14: 35731.37 | K14: 35408.1 | L14: 34975.6
A15: 6 | B15: Nifty PSE | C15: 4096.7 | D15: 4109.38 | E15: 4061.67 | F15: 4026.63 | G15: 3978.92 | H15: 4144.42 | I15: 4192.13 | J15: 4227.17 | K15: 4157.1 | L15: 4074.35
A16: 7 | B16: Nifty Midcap 50 | C16: 8278.55 | D16: 8285.93 | E16: 8253.12 | F16: 8227.68 | G16: 8194.87 | H16: 8311.37 | I16: 8344.18 | J16: 8369.62 | K16: 8318.75 | L16: 8260.5
A17: 8 | B17: ACC | C17: 2254.5 | D17: 2260.87 | E17: 2244.83 | F17: 2235.17 | G17: 2219.13 | H17: 2270.53 | I17: 2286.57 | J17: 2296.23 | K17: 2276.9 | L17: 2251.2 | M17: 3.00368
A18: 9 | B18: AUBANK | C18: 1164.25 | D18: 1169.28 | E18: 1149.97 | F18: 1135.68 | G18: 1116.37 | H18: 1183.57 | I18: 1202.88 | J18: 1217.17 | K18: 1188.6 | L18: 1155 | M18: 23.116
A19: 10 | B19: AARTIIND | C19: 929.85 | D19: 935.03 | E19: 922.67 | F19: 915.48 | G19: 903.12 | H19: 942.22 | I19: 954.58 | J19: 961.77 | K19: 947.4 | L19: 927.85 | M19: 7.14066
A20: 11 | B20: ABBOTINDIA | C20: 20517.8 | D20: 20287.67 | E20: 19933.33 | F20: 19348.87 | G20: 18994.53 | H20: 20872.13 | I20: 21226.47 | J20: 21810.93 | K20: 20642 | L20: 19703.2 | M20: 0.50607
A21: 12 | B21: ADANIENT | C21: 1468.1 | D21: 1483.48 | E21: 1447.97 | F21: 1427.83 | G21: 1392.32 | H21: 1503.62 | I21: 1539.13 | J21: 1559.27 | K21: 1519 | L21: 1463.35 | M21: 20.72145
A22: 13 | B22: ADANIGREEN | C22: 1146.6 | D22: 1143.53 | E22: 1128.07 | F22: 1109.53 | G22: 1094.07 | H22: 1162.07 | I22: 1177.53 | J22: 1196.07 | K22: 1159 | L22: 1125 | M22: 15.51279
A23: 14 | B23: ADANIPORTS | C23: 737.9 | D23: 743.47 | E23: 730.43 | F23: 722.97 | G23: 709.93 | H23: 750.93 | I23: 763.97 | J23: 771.43 | K23: 756.5 | L23: 736 | M23: 43.56469
A24: 15 | B24: ATGL | C24: 1423.15 | D24: 1416.63 | E24: 1401.52 | F24: 1379.88 | G24: 1364.77 | H24: 1438.27 | I24: 1453.38 | J24: 1475.02 | K24: 1431.75 | L24: 1395 | M24: 5.75925
A25: 16 | B25: ADANITRANS | C25: 1558.5 | D25: 1544.50 | E25: 1525.00 | F25: 1491.50 | G25: 1472.00 | H25: 1578.00 | I25: 1597.50 | J25: 1631.00 | K25: 1564 | L25: 1511 | M25: 1.56084
A26: 17 | B26: ABCAPITAL | C26: 112.75 | D26: 113.32 | E26: 111.73 | F26: 110.72 | G26: 109.13 | H26: 114.33 | I26: 115.92 | J26: 116.93 | K26: 114.9 | L26: 112.3 | M26: 23.50461
A27: 18 | B27: ABFRL | C27: 246.35 | D27: 241.85 | E27: 233.80 | F27: 221.25 | G27: 213.20 | H27: 254.40 | I27: 262.45 | J27: 275.00 | K27: 249.9 | L27: 229.3 | M27: 200.51452
A28: 19 | B28: AJANTPHARM | C28: 2278.1 | D28: 2283.03 | E28: 2236.07 | F28: 2194.03 | G28: 2147.07 | H28: 2325.07 | I28: 2372.03 | J28: 2414.07 | K28: 2330 | L28: 2241 | M28: 1.14162
A29: 20 | B29: APLLTD | C29: 789.1 | D29: 791.68 | E29: 783.42 | F29: 777.73 | G29: 769.47 | H29: 797.37 | I29: 805.63 | J29: 811.32 | K29: 799.95 | L29: 786 | M29: 2.90745
A30: 21 | B30: ALKEM | C30: 3980.75 | D30: 3958.57 | E30: 3917.13 | F30: 3853.52 | G30: 3812.08 | H30: 4022.18 | I30: 4063.62 | J30: 4127.23 | K30: 4000 | L30: 3894.95 | M30: 1.14702
A31: 22 | B31: AMARAJABAT | C31: 749.8 | D31: 752.77 | E31: 745.03 | F31: 740.27 | G31: 732.53 | H31: 757.53 | I31: 765.27 | J31: 770.03 | K31: 760.5 | L31: 748 | M31: 11.44824
A32: 23 | B32: AMBUJACEM | C32: 400.2 | D32: 402.32 | E32: 396.28 | F32: 392.37 | G32: 386.33 | H32: 406.23 | I32: 412.27 | J32: 416.18 | K32: 408.35 | L32: 398.4 | M32: 93.12005
A33: 24 | B33: APOLLOHOSP | C33: 4481.6 | D33: 4455.30 | E33: 4409.95 | F33: 4338.30 | G33: 4292.95 | H33: 4526.95 | I33: 4572.30 | J33: 4643.95 | K33: 4500.65 | L33: 4383.65 | M33: 8.08446
A34: 25 | B34: APOLLOTYRE | C34: 225.7 | D34: 226.07 | E34: 223.68 | F34: 221.67 | G34: 219.28 | H34: 228.08 | I34: 230.47 | J34: 232.48 | K34: 228.45 | L34: 224.05 | M34: 31.98232
A35: 26 | B35: ASHOKLEY | C35: 133.8 | D35: 132.27 | E35: 130.03 | F35: 126.27 | G35: 124.03 | H35: 136.03 | I35: 138.27 | J35: 142.03 | K35: 134.5 | L35: 128.5 | M35: 366.30467
A36: 27 | B36: ASIANPAINT | C36: 3244.65 | D36: 3270.78 | E36: 3193.87 | F36: 3143.08 | G36: 3066.17 | H36: 3321.57 | I36: 3398.48 | J36: 3449.27 | K36: 3347.7 | L36: 3220 | M36: 20.77896
A37: 28 | B37: AUROPHARMA | C37: 724.8 | D37: 727.00 | E37: 718.15 | F37: 711.50 | G37: 702.65 | H37: 733.65 | I37: 742.50 | J37: 749.15 | K37: 735.85 | L37: 720.35 | M37: 19.9315
A38: 29 | B38: DMART | C38: 4250.2 | D38: 4255.15 | E38: 4200.30 | F38: 4150.40 | G38: 4095.55 | H38: 4305.05 | I38: 4359.90 | J38: 4409.80 | K38: 4310 | L38: 4205.25 | M38: 3.3996
A39: 30 | B39: AXISBANK | C39: 766.55 | D39: 772.92 | E39: 758.48 | F39: 750.42 | G39: 735.98 | H39: 780.98 | I39: 795.42 | J39: 803.48 | K39: 787.35 | L39: 764.85 | M39: 91.78187
A40: 31 | B40: BAJAJ-AUTO | C40: 3832.65 | D40: 3847.02 | E40: 3797.63 | F40: 3762.62 | G40: 3713.23 | H40: 3882.03 | I40: 3931.42 | J40: 3966.43 | K40: 3896.4 | L40: 3812 | M40: 5.76711
A41: 32 | B41: BAJFINANCE | C41: 7668.1 | D41: 7619.67 | E41: 7539.33 | F41: 7410.57 | G41: 7330.23 | H41: 7748.43 | I41: 7828.77 | J41: 7957.53 | K41: 7700 | L41: 7490.9 | M41: 14.90707
A42: 33 | B42: BAJAJFINSV | C42: 17786.75 | D42: 17686.30 | E42: 17512.65 | F42: 17238.55 | G42: 17064.90 | H42: 17960.40 | I42: 18134.05 | J42: 18408.15 | K42: 17859.95 | L42: 17412.2 | M42: 3.43
A43: 34 | B43: BAJAJHLDNG | C43: 4808.6 | D43: 4791.83 | E43: 4741.77 | F43: 4674.93 | G43: 4624.87 | H43: 4858.67 | I43: 4908.73 | J43: 4975.57 | K43: 4841.9 | L43: 4725 | M43: 0.62195
A44: 35 | B44: BALKRISIND | C44: 2533.65 | D44: 2523.80 | E44: 2501.50 | F44: 2469.35 | G44: 2447.05 | H44: 2555.95 | I44: 2578.25 | J44: 2610.40 | K44: 2546.1 | L44: 2491.65 | M44: 4.13871
A45: 36 | B45: BANDHANBNK | C45: 283 | D45: 285.30 | E45: 279.70 | F45: 276.40 | G45: 270.80 | H45: 288.60 | I45: 294.20 | J45: 297.50 | K45: 290.9 | L45: 282 | M45: 62.79584
A46: 37 | B46: BANKBARODA | C46: 81.75 | D46: 82.23 | E46: 80.77 | F46: 79.78 | G46: 78.32 | H46: 83.22 | I46: 84.68 | J46: 85.67 | K46: 83.7 | L46: 81.25 | M46: 371.28256
A47: 38 | B47: BANKINDIA | C47: 55.5 | D47: 56.22 | E47: 54.53 | F47: 53.57 | G47: 51.88 | H47: 57.18 | I47: 58.87 | J47: 59.83 | K47: 57.9 | L47: 55.25 | M47: 182.35786
A48: 39 | B48: BATAINDIA | C48: 1778.15 | D48: 1776.12 | E48: 1763.08 | F48: 1748.02 | G48: 1734.98 | H48: 1791.18 | I48: 1804.22 | J48: 1819.28 | K48: 1789.15 | L48: 1761.05 | M48: 2.95085
A49: 40 | B49: BERGEPAINT | C49: 809 | D49: 813.12 | E49: 803.08 | F49: 797.17 | G49: 787.13 | H49: 819.03 | I49: 829.07 | J49: 834.98 | K49: 823.15 | L49: 807.2 | M49: 6.19854
A50: 41 | B50: BEL | C50: 202.95 | D50: 204.07 | E50: 200.58 | F50: 198.22 | G50: 194.73 | H50: 206.43 | I50: 209.92 | J50: 212.28 | K50: 207.55 | L50: 201.7 | M50: 114.12417
A51: 42 | B51: BHARATFORG | C51: 737.45 | D51: 741.47 | E51: 730.98 | F51: 724.52 | G51: 714.03 | H51: 747.93 | I51: 758.42 | J51: 764.88 | K51: 751.95 | L51: 735 | M51: 25.47525
A52: 43 | B52: BHEL | C52: 64.65 | D52: 64.12 | E52: 62.98 | F52: 61.32 | G52: 60.18 | H52: 65.78 | I52: 66.92 | J52: 68.58 | K52: 65.25 | L52: 62.45 | M52: 849.62917
A53: 44 | B53: BPCL | C53: 432.2 | D53: 434.53 | E53: 428.67 | F53: 425.13 | G53: 419.27 | H53: 438.07 | I53: 443.93 | J53: 447.47 | K53: 440.4 | L53: 431 | M53: 44.67366
A54: 45 | B54: BHARTIARTL | C54: 688.3 | D54: 694.97 | E54: 680.13 | F54: 671.97 | G54: 657.13 | H54: 703.13 | I54: 717.97 | J54: 726.13 | K54: 709.8 | L54: 686.8 | M54: 139.11568
A55: 46 | B55: BIOCON | C55: 362.7 | D55: 364.30 | E55: 359.55 | F55: 356.40 | G55: 351.65 | H55: 367.45 | I55: 372.20 | J55: 375.35 | K55: 369.05 | L55: 361.15 | M55: 21.47714
A56: 47 | B56: BBTC | C56: 1147.75 | D56: 1148.58 | E56: 1139.17 | F56: 1130.58 | G56: 1121.17 | H56: 1157.17 | I56: 1166.58 | J56: 1175.17 | K56: 1158 | L56: 1140 | M56: 0.38448
A57: 48 | B57: BOSCHLTD | C57: 15474.5 | D57: 15542.55 | E57: 15331.95 | F57: 15189.40 | G57: 14978.80 | H57: 15685.10 | I57: 15895.70 | J57: 16038.25 | K57: 15753.15 | L57: 15400 | M57: 0.26957
A58: 49 | B58: BRITANNIA | C58: 3948.95 | D58: 3960.75 | E58: 3928.50 | F58: 3908.05 | G58: 3875.80 | H58: 3981.20 | I58: 4013.45 | J58: 4033.90 | K58: 3993 | L58: 3940.3 | M58: 2.17501
A59: 50 | B59: CESC | C59: 91.55 | D59: 90.15 | E59: 88.30 | F59: 85.05 | G59: 83.20 | H59: 93.40 | I59: 95.25 | J59: 98.50 | K59: 92 | L59: 86.9 | M59: 150.09512
A60: 51 | B60: CADILAHC | C60: 551.85 | D60: 550.45 | E60: 545.40 | F60: 538.95 | G60: 533.90 | H60: 556.90 | I60: 561.95 | J60: 568.40 | K60: 555.5 | L60: 544 | M60: 22.55845
A61: 52 | B61: CANBK | C61: 173 | D61: 173.02 | E61: 168.53 | F61: 164.07 | G61: 159.58 | H61: 177.48 | I61: 181.97 | J61: 186.43 | K61: 177.5 | L61: 168.55 | M61: 441.91136
A62: 53 | B62: CASTROLIND | C62: 140.2 | D62: 140.25 | E62: 139.00 | F62: 137.80 | G62: 136.55 | H62: 141.45 | I62: 142.70 | J62: 143.90 | K62: 141.5 | L62: 139.05 | M62: 5.65862
A63: 54 | B63: CHOLAFIN | C63: 564.25 | D63: 568.95 | E63: 557.30 | F63: 550.35 | G63: 538.70 | H63: 575.90 | I63: 587.55 | J63: 594.50 | K63: 580.6 | L63: 562 | M63: 17.27522
A64: 55 | B64: CIPLA | C64: 983.55 | D64: 986.55 | E64: 973.35 | F64: 963.15 | G64: 949.95 | H64: 996.75 | I64: 1009.95 | J64: 1020.15 | K64: 999.75 | L64: 976.35 | M64: 23.12926
A65: 56 | B65: CUB | C65: 157.65 | D65: 159.53 | E65: 155.12 | F65: 152.58 | G65: 148.17 | H65: 162.07 | I65: 166.48 | J65: 169.02 | K65: 163.95 | L65: 157 | M65: 48.20978
A66: 57 | B66: COALINDIA | C66: 185.1 | D66: 186.90 | E66: 182.30 | F66: 179.50 | G66: 174.90 | H66: 189.70 | I66: 194.30 | J66: 197.10 | K66: 191.5 | L66: 184.1 | M66: 489.57916
A67: 58 | B67: COFORGE | C67: 5241.3 | D67: 5255.72 | E67: 5189.63 | F67: 5137.97 | G67: 5071.88 | H67: 5307.38 | I67: 5373.47 | J67: 5425.13 | K67: 5321.8 | L67: 5204.05 | M67: 3.55976
A68: 59 | B68: COLPAL | C68: 1669.5 | D68: 1671.13 | E68: 1658.52 | F68: 1647.53 | G68: 1634.92 | H68: 1682.12 | I68: 1694.73 | J68: 1705.72 | K68: 1683.75 | L68: 1660.15 | M68: 3.32202
A69: 60 | B69: CONCOR | C69: 704.3 | D69: 706.30 | E69: 698.75 | F69: 693.20 | G69: 685.65 | H69: 711.85 | I69: 719.40 | J69: 724.95 | K69: 713.85 | L69: 700.75 | M69: 20.88535
A70: 61 | B70: COROMANDEL | C70: 794.45 | D70: 797.98 | E70: 787.97 | F70: 781.48 | G70: 771.47 | H70: 804.47 | I70: 814.48 | J70: 820.97 | K70: 808 | L70: 791.5 | M70: 2.94773
A71: 62 | B71: CROMPTON | C71: 478.9 | D71: 477.52 | E71: 469.48 | F71: 460.07 | G71: 452.03 | H71: 486.93 | I71: 494.97 | J71: 504.38 | K71: 485.55 | L71: 468.1 | M71: 23.34376
A72: 63 | B72: CUMMINSIND | C72: 991.95 | D72: 974.65 | E72: 949.30 | F72: 906.65 | G72: 881.30 | H72: 1017.30 | I72: 1042.65 | J72: 1085.30 | K72: 1000 | L72: 932 | M72: 7.44956
A73: 64 | B73: DLF | C73: 417.2 | D73: 415.38 | E73: 409.97 | F73: 402.73 | G73: 397.32 | H73: 422.62 | I73: 428.03 | J73: 435.27 | K73: 420.8 | L73: 408.15 | M73: 122.48397
A74: 65 | B74: DABUR | C74: 617.05 | D74: 619.98 | E74: 613.17 | F74: 609.28 | G74: 602.47 | H74: 623.87 | I74: 630.68 | J74: 634.57 | K74: 626.8 | L74: 616.1 | M74: 17.05501
A75: 66 | B75: DALBHARAT | C75: 2105.75 | D75: 2091.25 | E75: 2062.50 | F75: 2019.25 | G75: 1990.50 | H75: 2134.50 | I75: 2163.25 | J75: 2206.50 | K75: 2120 | L75: 2048 | M75: 2.52126
A76: 67 | B76: DEEPAKNTR | C76: 2406.55 | D76: 2396.00 | E76: 2373.90 | F76: 2341.25 | G76: 2319.15 | H76: 2428.65 | I76: 2450.75 | J76: 2483.40 | K76: 2418.1 | L76: 2363.35 | M76: 5.76314
A77: 68 | B77: DHANI | C77: 183.3 | D77: 183.23 | E77: 180.97 | F77: 178.63 | G77: 176.37 | H77: 185.57 | I77: 187.83 | J77: 190.17 | K77: 185.5 | L77: 180.9 | M77: 13.23622
A78: 69 | B78: DIVISLAB | C78: 4798.7 | D78: 4803.05 | E78: 4761.25 | F78: 4723.80 | G78: 4682.00 | H78: 4840.50 | I78: 4882.30 | J78: 4919.75 | K78: 4844.85 | L78: 4765.6 | M78: 5.41396
A79: 70 | B79: DIXON | C79: 4611.9 | D79: 4568.63 | E79: 4493.27 | F79: 4374.63 | G79: 4299.27 | H79: 4687.27 | I79: 4762.63 | J79: 4881.27 | K79: 4644 | L79: 4450 | M79: 5.25326
A80: 71 | B80: LALPATHLAB | C80: 3676.8 | D80: 3694.43 | E80: 3632.37 | F80: 3587.93 | G80: 3525.87 | H80: 3738.87 | I80: 3800.93 | J80: 3845.37 | K80: 3756.5 | L80: 3650 | M80: 2.16457
A81: 72 | B81: DRREDDY | C81: 4880.7 | D81: 4910.38 | E81: 4835.77 | F81: 4790.83 | G81: 4716.22 | H81: 4955.32 | I81: 5029.93 | J81: 5074.87 | K81: 4985 | L81: 4865.45 | M81: 7.76015
A82: 73 | B82: EICHERMOT | C82: 2790.2 | D82: 2802.87 | E82: 2758.88 | F82: 2727.57 | G82: 2683.58 | H82: 2834.18 | I82: 2878.17 | J82: 2909.48 | K82: 2846.85 | L82: 2771.55 | M82: 8.61344
A83: 74 | B83: EMAMILTD | C83: 574 | D83: 577.92 | E83: 566.08 | F83: 558.17 | G83: 546.33 | H83: 585.83 | I83: 597.67 | J83: 605.58 | K83: 589.75 | L83: 570 | M83: 12.24714
A84: 75 | B84: ENDURANCE | C84: 1584.45 | D84: 1592.60 | E84: 1570.45 | F84: 1556.45 | G84: 1534.30 | H84: 1606.60 | I84: 1628.75 | J84: 1642.75 | K84: 1614.75 | L84: 1578.6 | M84: 1.51609
A85: 76 | B85: ESCORTS | C85: 1480.1 | D85: 1491.82 | E85: 1463.93 | F85: 1447.77 | G85: 1419.88 | H85: 1507.98 | I85: 1535.87 | J85: 1552.03 | K85: 1519.7 | L85: 1475.65 | M85: 14.2655
A86: 77 | B86: EXIDEIND | C86: 178.25 | D86: 179.17 | E86: 177.08 | F86: 175.92 | G86: 173.83 | H86: 180.33 | I86: 182.42 | J86: 183.58 | K86: 181.25 | L86: 178 | M86: 41.30332
A87: 78 | B87: FEDERALBNK | C87: 84.3 | D87: 84.08 | E87: 81.92 | F87: 79.53 | G87: 77.37 | H87: 86.47 | I87: 88.63 | J87: 91.02 | K87: 86.25 | L87: 81.7 | M87: 334.72211
A88: 79 | B88: FORTIS | C88: 263.5 | D88: 265.03 | E88: 260.57 | F88: 257.63 | G88: 253.17 | H88: 267.97 | I88: 272.43 | J88: 275.37 | K88: 269.5 | L88: 262.1 | M88: 16.61424
A89: 80 | B89: GAIL | C89: 158.85 | D89: 157.92 | E89: 156.03 | F89: 153.22 | G89: 151.33 | H89: 160.73 | I89: 162.62 | J89: 165.43 | K89: 159.8 | L89: 155.1 | M89: 208.12038
A90: 81 | B90: GMRINFRA | C90: 38.35 | D90: 38.63 | E90: 37.87 | F90: 37.38 | G90: 36.62 | H90: 39.12 | I90: 39.88 | J90: 40.37 | K90: 39.4 | L90: 38.15 | M90: 343.181
A91: 82 | B91: GLAND | C91: 3719.9 | D91: 3717.32 | E91: 3674.58 | F91: 3629.27 | G91: 3586.53 | H91: 3762.63 | I91: 3805.37 | J91: 3850.68 | K91: 3760.05 | L91: 3672 | M91: 1.68438
A92: 83 | B92: GLENMARK | C92: 510.45 | D92: 511.92 | E92: 505.18 | F92: 499.92 | G92: 493.18 | H92: 517.18 | I92: 523.92 | J92: 529.18 | K92: 518.65 | L92: 506.65 | M92: 23.13759
A93: 84 | B93: GODREJAGRO | C93: 640 | D93: 638.00 | E93: 622.00 | F93: 604.00 | G93: 588.00 | H93: 656.00 | I93: 672.00 | J93: 690.00 | K93: 654 | L93: 620 | M93: 2.01719
A94: 85 | B94: GODREJCP | C94: 1029.9 | D94: 1025.87 | E94: 1014.98 | F94: 1000.07 | G94: 989.18 | H94: 1040.78 | I94: 1051.67 | J94: 1066.58 | K94: 1036.75 | L94: 1010.95 | M94: 13.84361
A95: 86 | B95: GODREJIND | C95: 579.15 | D95: 579.35 | E95: 574.30 | F95: 569.45 | G95: 564.40 | H95: 584.20 | I95: 589.25 | J95: 594.10 | K95: 584.4 | L95: 574.5 | M95: 1.88016
A96: 87 | B96: GODREJPROP | C96: 2311.9 | D96: 2317.23 | E96: 2284.67 | F96: 2257.43 | G96: 2224.87 | H96: 2344.47 | I96: 2377.03 | J96: 2404.27 | K96: 2349.8 | L96: 2290 | M96: 23.56351
A97: 88 | B97: GRASIM | C97: 1669.45 | D97: 1674.58 | E97: 1654.87 | F97: 1640.28 | G97: 1620.57 | H97: 1689.17 | I97: 1708.88 | J97: 1723.47 | K97: 1694.3 | L97: 1660 | M97: 10.7754
A98: 89 | B98: GUJGASLTD | C98: 637.45 | D98: 633.17 | E98: 626.58 | F98: 615.72 | G98: 609.13 | H98: 644.03 | I98: 650.62 | J98: 661.48 | K98: 639.75 | L98: 622.3 | M98: 22.29385
A99: 90 | B99: GSPL | C99: 316 | D99: 318.05 | E99: 310.45 | F99: 304.90 | G99: 297.30 | H99: 323.60 | I99: 331.20 | J99: 336.75 | K99: 325.65 | L99: 312.5 | M99: 13.92816
A100: 91 | B100: HCLTECH | C100: 1279.55 | D100: 1279.95 | E100: 1268.45 | F100: 1257.35 | G100: 1245.85 | H100: 1291.05 | I100: 1302.55 | J100: 1313.65 | K100: 1291.45 | L100: 1268.85 | M100: 35.89722
A101: 92 | B101: HDFCAMC | C101: 2908.6 | D101: 2915.92 | E101: 2897.83 | F101: 2887.07 | G101: 2868.98 | H101: 2926.68 | I101: 2944.77 | J101: 2955.53 | K101: 2934 | L101: 2905.15 | M101: 5.75176
A102: 93 | B102: HDFCBANK | C102: 1594.95 | D102: 1594.80 | E102: 1583.25 | F102: 1571.55 | G102: 1560.00 | H102: 1606.50 | I102: 1618.05 | J102: 1629.75 | K102: 1606.35 | L102: 1583.1 | M102: 79.87674
A103: 94 | B103: HDFCLIFE | C103: 722.4 | D103: 727.70 | E103: 715.40 | F103: 708.40 | G103: 696.10 | H103: 734.70 | I103: 747.00 | J103: 754.00 | K103: 740 | L103: 720.7 | M103: 32.35673
A104: 95 | B104: HAVELLS | C104: 1373.1 | D104: 1372.32 | E104: 1362.08 | F104: 1351.07 | G104: 1340.83 | H104: 1383.33 | I104: 1393.57 | J104: 1404.58 | K104: 1382.55 | L104: 1361.3 | M104: 9.10972
A105: 96 | B105: HEROMOTOCO | C105: 2832.5 | D105: 2846.18 | E105: 2813.52 | F105: 2794.53 | G105: 2761.87 | H105: 2865.17 | I105: 2897.83 | J105: 2916.82 | K105: 2878.85 | L105: 2827.2 | M105: 9.20513
A106: 97 | B106: HINDALCO | C106: 487.95 | D106: 492.52 | E106: 481.03 | F106: 474.12 | G106: 462.63 | H106: 499.43 | I106: 510.92 | J106: 517.83 | K106: 504 | L106: 485.6 | M106: 143.33358
A107: 98 | B107: HAL | C107: 1354.45 | D107: 1358.48 | E107: 1338.02 | F107: 1321.58 | G107: 1301.12 | H107: 1374.92 | I107: 1395.38 | J107: 1411.82 | K107: 1378.95 | L107: 1342.05 | M107: 8.7544
A108: 99 | B108: HINDPETRO | C108: 300 | D108: 299.27 | E108: 295.73 | F108: 291.47 | G108: 287.93 | H108: 303.53 | I108: 307.07 | J108: 311.33 | K108: 302.8 | L108: 295 | M108: 53.29092
A109: 100 | B109: HINDUNILVR | C109: 2701.8 | D109: 2696.35 | E109: 2687.40 | F109: 2673.00 | G109: 2664.05 | H109: 2710.75 | I109: 2719.70 | J109: 2734.10 | K109: 2705.3 | L109: 2681.95 | M109: 16.20199
A110: 101 | B110: HINDZINC | C110: 311.6 | D110: 314.37 | E110: 307.33 | F110: 303.07 | G110: 296.03 | H110: 318.63 | I110: 325.67 | J110: 329.93 | K110: 321.4 | L110: 310.1 | M110: 19.15795
A111: 102 | B111: HDFC | C111: 2754.3 | D111: 2753.50 | E111: 2722.00 | F111: 2689.70 | G111: 2658.20 | H111: 2785.80 | I111: 2817.30 | J111: 2849.60 | K111: 2785 | L111: 2721.2 | M111: 41.86802
A112: 103 | B112: ICICIBANK | C112: 700.85 | D112: 704.52 | E112: 695.13 | F112: 689.42 | G112: 680.03 | H112: 710.23 | I112: 719.62 | J112: 725.33 | K112: 713.9 | L112: 698.8 | M112: 184.87517
A113: 104 | B113: ICICIGI | C113: 1589.5 | D113: 1598.68 | E113: 1573.82 | F113: 1558.13 | G113: 1533.27 | H113: 1614.37 | I113: 1639.23 | J113: 1654.92 | K113: 1623.55 | L113: 1583 | M113: 7.33253
A114: 105 | B114: ICICIPRULI | C114: 671.85 | D114: 673.12 | E114: 665.53 | F114: 659.22 | G114: 651.63 | H114: 679.43 | I114: 687.02 | J114: 693.33 | K114: 680.7 | L114: 666.8 | M114: 10.38409
A115: 106 | B115: ISEC | C115: 758.35 | D115: 760.02 | E115: 750.03 | F115: 741.72 | G115: 731.73 | H115: 768.33 | I115: 778.32 | J115: 786.63 | K115: 770 | L115: 751.7 | M115: 2.80698
A116: 107 | B116: IDFCFIRSTB | C116: 47.65 | D116: 48.05 | E116: 46.90 | F116: 46.15 | G116: 45.00 | H116: 48.80 | I116: 49.95 | J116: 50.70 | K116: 49.2 | L116: 47.3 | M116: 310.89569
A117: 108 | B117: ITC | C117: 236.15 | D117: 237.27 | E117: 234.13 | F117: 232.12 | G117: 228.98 | H117: 239.28 | I117: 242.42 | J117: 244.43 | K117: 240.4 | L117: 235.25 | M117: 163.57902
A118: 109 | B118: IBULHSGFIN | C118: 231.65 | D118: 232.38 | E118: 228.27 | F118: 224.88 | G118: 220.77 | H118: 235.77 | I118: 239.88 | J118: 243.27 | K118: 236.5 | L118: 229 | M118: 130.06778
A119: 110 | B119: INDIAMART | C119: 8378.9 | D119: 8392.70 | E119: 8208.75 | F119: 8038.60 | G119: 7854.65 | H119: 8562.85 | I119: 8746.80 | J119: 8916.95 | K119: 8576.65 | L119: 8222.55 | M119: 1.63393
A120: 111 | B120: INDHOTEL | C120: 181.4 | D120: 183.17 | E120: 177.53 | F120: 173.67 | G120: 168.03 | H120: 187.03 | I120: 192.67 | J120: 196.53 | K120: 188.8 | L120: 179.3 | M120: 91.54987
A121: 112 | B121: IOC | C121: 125.3 | D121: 126.05 | E121: 123.60 | F121: 121.90 | G121: 119.45 | H121: 127.75 | I121: 130.20 | J121: 131.90 | K121: 128.5 | L121: 124.35 | M121: 119.97043
A122: 113 | B122: IRCTC | C122: 3798.5 | D122: 3818.57 | E122: 3757.13 | F122: 3715.77 | G122: 3654.33 | H122: 3859.93 | I122: 3921.37 | J122: 3962.73 | K122: 3880 | L122: 3777.2 | M122: 29.24892
A123: 114 | B123: IGL | C123: 533.1 | D123: 529.28 | E123: 523.32 | F123: 513.53 | G123: 507.57 | H123: 539.07 | I123: 545.03 | J123: 554.82 | K123: 535.25 | L123: 519.5 | M123: 38.7832
A124: 115 | B124: INDUSTOWER | C124: 308.7 | D124: 312.57 | E124: 300.58 | F124: 292.47 | G124: 280.48 | H124: 320.68 | I124: 332.67 | J124: 340.78 | K124: 324.55 | L124: 304.45 | M124: 147.94626
A125: 116 | B125: INDUSINDBK | C125: 1111.9 | D125: 1117.93 | E125: 1100.97 | F125: 1090.03 | G125: 1073.07 | H125: 1128.87 | I125: 1145.83 | J125: 1156.77 | K125: 1134.9 | L125: 1107 | M125: 31.80267
A126: 117 | B126: NAUKRI | C126: 6431.4 | D126: 6438.13 | E126: 6373.32 | F126: 6315.23 | G126: 6250.42 | H126: 6496.22 | I126: 6561.03 | J126: 6619.12 | K126: 6502.95 | L126: 6380.05 | M126: 3.3635
A127: 118 | B127: INFY | C127: 1675.2 | D127: 1682.77 | E127: 1662.53 | F127: 1649.87 | G127: 1629.63 | H127: 1695.43 | I127: 1715.67 | J127: 1728.33 | K127: 1703 | L127: 1670.1 | M127: 69.14031
A128: 119 | B128: INDIGO | C128: 2021.7 | D128: 2015.33 | E128: 1990.22 | F128: 1958.73 | G128: 1933.62 | H128: 2046.82 | I128: 2071.93 | J128: 2103.42 | K128: 2040.45 | L128: 1983.85 | M128: 6.83725
A129: 120 | B129: IPCALAB | C129: 2411.35 | D129: 2400.58 | E129: 2364.22 | F129: 2317.08 | G129: 2280.72 | H129: 2447.72 | I129: 2484.08 | J129: 2531.22 | K129: 2436.95 | L129: 2353.45 | M129: 1.90356
A130: 121 | B130: JSWENERGY | C130: 389.9 | D130: 390.13 | E130: 384.77 | F130: 379.63 | G130: 374.27 | H130: 395.27 | I130: 400.63 | J130: 405.77 | K130: 395.5 | L130: 385 | M130: 12.97879
A131: 122 | B131: JSWSTEEL | C131: 668.3 | D131: 672.62 | E131: 662.03 | F131: 655.77 | G131: 645.18 | H131: 678.88 | I131: 689.47 | J131: 695.73 | K131: 683.2 | L131: 666.35 | M131: 49.34499
A132: 123 | B132: JINDALSTEL | C132: 389.25 | D132: 388.75 | E132: 382.70 | F132: 376.15 | G132: 370.10 | H132: 395.30 | I132: 401.35 | J132: 407.90 | K132: 394.8 | L132: 382.2 | M132: 114.25042
A133: 124 | B133: JUBLFOOD | C133: 4040.9 | D133: 4066.60 | E133: 3999.85 | F133: 3958.80 | G133: 3892.05 | H133: 4107.65 | I133: 4174.40 | J133: 4215.45 | K133: 4133.35 | L133: 4025.55 | M133: 4.64444
A134: 125 | B134: KOTAKBANK | C134: 2005.5 | D134: 2012.43 | E134: 1989.87 | F134: 1974.23 | G134: 1951.67 | H134: 2028.07 | I134: 2050.63 | J134: 2066.27 | K134: 2035 | L134: 1996.8 | M134: 45.72748
A135: 126 | B135: L&TFH | C135: 90.95 | D135: 91.08 | E135: 89.87 | F135: 88.78 | G135: 87.57 | H135: 92.17 | I135: 93.38 | J135: 94.47 | K135: 92.3 | L135: 90 | M135: 174.88011
A136: 127 | B136: LTTS | C136: 4697.55 | D136: 4700.20 | E136: 4617.35 | F136: 4537.15 | G136: 4454.30 | H136: 4780.40 | I136: 4863.25 | J136: 4943.45 | K136: 4783.05 | L136: 4620 | M136: 3.30842
A137: 128 | B137: LICHSGFIN | C137: 427.05 | D137: 429.42 | E137: 423.33 | F137: 419.62 | G137: 413.53 | H137: 433.13 | I137: 439.22 | J137: 442.93 | K137: 435.5 | L137: 425.7 | M137: 52.30575
A138: 129 | B138: LTI | C138: 5765.15 | D138: 5783.00 | E138: 5697.15 | F138: 5629.15 | G138: 5543.30 | H138: 5851.00 | I138: 5936.85 | J138: 6004.85 | K138: 5868.85 | L138: 5715 | M138: 2.82121
A139: 130 | B139: LT | C139: 1702.95 | D139: 1711.40 | E139: 1688.55 | F139: 1674.15 | G139: 1651.30 | H139: 1725.80 | I139: 1748.65 | J139: 1763.05 | K139: 1734.25 | L139: 1697 | M139: 17.92078
A140: 131 | B140: LAURUSLABS | C140: 616.45 | D140: 614.23 | E140: 605.47 | F140: 594.48 | G140: 585.72 | H140: 625.22 | I140: 633.98 | J140: 644.97 | K140: 623 | L140: 603.25 | M140: 33.09583
A141: 132 | B141: LUPIN | C141: 951.6 | D141: 952.90 | E141: 944.90 | F141: 938.20 | G141: 930.20 | H141: 959.60 | I141: 967.60 | J141: 974.30 | K141: 960.9 | L141: 946.2 | M141: 13.96059
A142: 133 | B142: MRF | C142: 79375.55 | D142: 79235.85 | E142: 78791.75 | F142: 78207.95 | G142: 77763.85 | H142: 79819.65 | I142: 80263.75 | J142: 80847.55 | K142: 79679.95 | L142: 78652.05 | M142: 0.16379
A143: 134 | B143: MGL | C143: 1082.65 | D143: 1079.08 | E143: 1070.37 | F143: 1058.08 | G143: 1049.37 | H143: 1091.37 | I143: 1100.08 | J143: 1112.37 | K143: 1087.8 | L143: 1066.8 | M143: 5.46767
A144: 135 | B144: M&MFIN | C144: 185.2 | D144: 184.57 | E144: 182.38 | F144: 179.57 | G144: 177.38 | H144: 187.38 | I144: 189.57 | J144: 192.38 | K144: 186.75 | L144: 181.75 | M144: 46.17058
A145: 136 | B145: M&M | C145: 803.05 | D145: 807.25 | E145: 797.10 | F145: 791.15 | G145: 781.00 | H145: 813.20 | I145: 823.35 | J145: 829.30 | K145: 817.4 | L145: 801.3 | M145: 32.64689
A146: 137 | B146: MANAPPURAM | C146: 169.15 | D146: 170.45 | E146: 167.25 | F146: 165.35 | G146: 162.15 | H146: 172.35 | I146: 175.55 | J146: 177.45 | K146: 173.65 | L146: 168.55 | M146: 42.01283
A147: 138 | B147: MARICO | C147: 547.5 | D147: 549.28 | E147: 542.22 | F147: 536.93 | G147: 529.87 | H147: 554.57 | I147: 561.63 | J147: 566.92 | K147: 556.35 | L147: 544 | M147: 13.83265
A148: 139 | B148: MARUTI | C148: 7338.05 | D148: 7349.05 | E148: 7290.05 | F148: 7242.05 | G148: 7183.05 | H148: 7397.05 | I148: 7456.05 | J148: 7504.05 | K148: 7408.05 | L148: 7301.05 | M148: 6.25717
A149: 140 | B149: MFSL | C149: 1014.3 | D149: 1012.67 | E149: 999.33 | F149: 984.37 | G149: 971.03 | H149: 1027.63 | I149: 1040.97 | J149: 1055.93 | K149: 1026 | L149: 997.7 | M149: 7.85594
A150: 141 | B150: MINDTREE | C150: 4200.1 | D150: 4224.58 | E150: 4160.27 | F150: 4120.43 | G150: 4056.12 | H150: 4264.42 | I150: 4328.73 | J150: 4368.57 | K150: 4288.9 | L150: 4184.75 | M150: 11.75517
A151: 142 | B151: MPHASIS | C151: 3104.4 | D151: 3124.82 | E151: 3074.63 | F151: 3044.87 | G151: 2994.68 | H151: 3154.58 | I151: 3204.77 | J151: 3234.53 | K151: 3175 | L151: 3095.05 | M151: 6.00588
A152: 143 | B152: MUTHOOTFIN | C152: 1450.3 | D152: 1458.47 | E152: 1438.18 | F152: 1426.07 | G152: 1405.78 | H152: 1470.58 | I152: 1490.87 | J152: 1502.98 | K152: 1478.75 | L152: 1446.35 | M152: 5.43427
A153: 144 | B153: NATCOPHARM | C153: 891.55 | D153: 888.55 | E153: 882.10 | F153: 872.65 | G153: 866.20 | H153: 898.00 | I153: 904.45 | J153: 913.90 | K153: 895 | L153: 879.1 | M153: 1.46683
A154: 145 | B154: NMDC | C154: 143 | D154: 144.68 | E154: 140.97 | F154: 138.93 | G154: 135.22 | H154: 146.72 | I154: 150.43 | J154: 152.47 | K154: 148.4 | L154: 142.65 | M154: 186.33153
A155: 146 | B155: NTPC | C155: 141.85 | D155: 141.38 | E155: 139.57 | F155: 137.28 | G155: 135.47 | H155: 143.67 | I155: 145.48 | J155: 147.77 | K155: 143.2 | L155: 139.1 | M155: 346.14825
A156: 147 | B156: NAVINFLUOR | C156: 3684.75 | D156: 3694.87 | E156: 3641.88 | F156: 3599.02 | G156: 3546.03 | H156: 3737.73 | I156: 3790.72 | J156: 3833.58 | K156: 3747.85 | L156: 3652 | M156: 2.04915
A157: 148 | B157: NESTLEIND | C157: 19445.55 | D157: 19450.55 | E157: 19311.15 | F157: 19176.75 | G157: 19037.35 | H157: 19584.95 | I157: 19724.35 | J157: 19858.75 | K157: 19589.95 | L157: 19316.15 | M157: 0.44373
A158: 149 | B158: NAM-INDIA | C158: 425.35 | D158: 427.73 | E158: 421.27 | F158: 417.18 | G158: 410.72 | H158: 431.82 | I158: 438.28 | J158: 442.37 | K158: 434.2 | L158: 423.65 | M158: 9.54859
A159: 150 | B159: OBEROIRLTY | C159: 964.2 | D159: 961.05 | E159: 939.15 | F159: 914.10 | G159: 892.20 | H159: 986.10 | I159: 1008.00 | J159: 1033.05 | K159: 982.95 | L159: 936 | M159: 14.99959
A160: 151 | B160: ONGC | C160: 144.5 | D160: 143.97 | E160: 141.88 | F160: 139.27 | G160: 137.18 | H160: 146.58 | I160: 148.67 | J160: 151.28 | K160: 146.05 | L160: 141.35 | M160: 267.1463
A161: 152 | B161: OIL | C161: 260.2 | D161: 260.45 | E161: 254.20 | F161: 248.20 | G161: 241.95 | H161: 266.45 | I161: 272.70 | J161: 278.70 | K161: 266.7 | L161: 254.45 | M161: 70.95683
A162: 153 | B162: PIIND | C162: 3178.35 | D162: 3197.92 | E162: 3122.43 | F162: 3066.52 | G162: 2991.03 | H162: 3253.83 | I162: 3329.32 | J162: 3385.23 | K162: 3273.4 | L162: 3142 | M162: 3.3777
A163: 154 | B163: PAGEIND | C163: 31704.9 | D163: 32111.32 | E163: 31223.83 | F163: 30742.77 | G163: 29855.28 | H163: 32592.38 | I163: 33479.87 | J163: 33960.93 | K163: 32998.8 | L163: 31630.25 | M163: 0.26346
A164: 155 | B164: PETRONET | C164: 238.55 | D164: 238.00 | E164: 235.50 | F164: 232.45 | G164: 229.95 | H164: 241.05 | I164: 243.55 | J164: 246.60 | K164: 240.5 | L164: 234.95 | M164: 95.63077
A165: 156 | B165: PFIZER | C165: 5581.1 | D165: 5615.68 | E165: 5537.42 | F165: 5493.73 | G165: 5415.47 | H165: 5659.37 | I165: 5737.63 | J165: 5781.32 | K165: 5693.95 | L165: 5572 | M165: 0.30251
A166: 157 | B166: PIDILITIND | C166: 2381.95 | D166: 2390.17 | E166: 2366.78 | F166: 2351.62 | G166: 2328.23 | H166: 2405.33 | I166: 2428.72 | J166: 2443.88 | K166: 2413.55 | L166: 2375 | M166: 3.73722
A167: 158 | B167: PEL | C167: 2595.8 | D167: 2615.62 | E167: 2564.23 | F167: 2532.67 | G167: 2481.28 | H167: 2647.18 | I167: 2698.57 | J167: 2730.13 | K167: 2667 | L167: 2584.05 | M167: 7.86892
A168: 159 | B168: POLYCAB | C168: 2389 | D168: 2381.67 | E168: 2339.33 | F168: 2289.67 | G168: 2247.33 | H168: 2431.33 | I168: 2473.67 | J168: 2523.33 | K168: 2424 | L168: 2332 | M168: 5.71923
A169: 160 | B169: PFC | C169: 142.1 | D169: 143.17 | E169: 139.93 | F169: 137.77 | G169: 134.53 | H169: 145.33 | I169: 148.57 | J169: 150.73 | K169: 146.4 | L169: 141 | M169: 74.90532
A170: 161 | B170: POWERGRID | C170: 189.9 | D170: 192.18 | E170: 186.37 | F170: 182.83 | G170: 177.02 | H170: 195.72 | I170: 201.53 | J170: 205.07 | K170: 198 | L170: 188.65 | M170: 177.1365
A171: 162 | B171: PRESTIGE | C171: 490.85 | D171: 487.65 | E171: 479.10 | F171: 467.35 | G171: 458.80 | H171: 499.40 | I171: 507.95 | J171: 519.70 | K171: 496.2 | L171: 475.9 | M171: 19.6053
A172: 163 | B172: PGHH | C172: 14073.8 | D172: 14018.60 | E172: 13749.20 | F172: 13424.60 | G172: 13155.20 | H172: 14343.20 | I172: 14612.60 | J172: 14937.20 | K172: 14288 | L172: 13694 | M172: 0.06277
A173: 164 | B173: PNB | C173: 40.1 | D173: 40.32 | E173: 39.38 | F173: 38.67 | G173: 37.73 | H173: 41.03 | I173: 41.97 | J173: 42.68 | K173: 41.25 | L173: 39.6 | M173: 836.65464
A174: 165 | B174: RBLBANK | C174: 190.9 | D174: 190.50 | E174: 188.35 | F174: 185.80 | G174: 183.65 | H174: 193.05 | I174: 195.20 | J174: 197.75 | K174: 192.65 | L174: 187.95 | M174: 83.21112
A175: 166 | B175: RECLTD | C175: 157.85 | D175: 159.60 | E175: 155.25 | F175: 152.65 | G175: 148.30 | H175: 162.20 | I175: 166.55 | J175: 169.15 | K175: 163.95 | L175: 157 | M175: 86.68508
A176: 167 | B176: RELIANCE | C176: 2519.25 | D176: 2518.07 | E176: 2501.53 | F176: 2483.82 | G176: 2467.28 | H176: 2535.78 | I176: 2552.32 | J176: 2570.03 | K176: 2534.6 | L176: 2500.35 | M176: 62.72085
A177: 168 | B177: SBICARD | C177: 1029.6 | D177: 1029.55 | E177: 1020.15 | F177: 1010.70 | G177: 1001.30 | H177: 1039.00 | I177: 1048.40 | J177: 1057.85 | K177: 1038.95 | L177: 1020.1 | M177: 28.17641
A178: 169 | B178: SBILIFE | C178: 1215.1 | D178: 1210.28 | E178: 1201.57 | F178: 1188.03 | G178: 1179.32 | H178: 1223.82 | I178: 1232.53 | J178: 1246.07 | K178: 1219 | L178: 1196.75 | M178: 12.34882
A179: 170 | B179: SRF | C179: 11279.1 | D179: 11217.52 | E179: 11098.13 | F179: 10917.17 | G179: 10797.78 | H179: 11398.48 | I179: 11517.87 | J179: 11698.83 | K179: 11336.9 | L179: 11036.55 | M179: 3.30005
A180: 171 | B180: SANOFI | C180: 7799.8 | D180: 7809.93 | E180: 7769.87 | F180: 7739.93 | G180: 7699.87 | H180: 7839.87 | I180: 7879.93 | J180: 7909.87 | K180: 7850 | L180: 7780 | M180: 0.24613
A181: 172 | B181: SHREECEM | C181: 28901.55 | D181: 29017.17 | E181: 28634.38 | F181: 28367.22 | G181: 27984.43 | H181: 29284.33 | I181: 29667.12 | J181: 29934.28 | K181: 29399.95 | L181: 28750 | M181: 0.29347
A182: 173 | B182: SRTRANSFIN | C182: 1298.85 | D182: 1306.28 | E182: 1285.57 | F182: 1272.28 | G182: 1251.57 | H182: 1319.57 | I182: 1340.28 | J182: 1353.57 | K182: 1327 | L182: 1293 | M182: 15.96376
A183: 174 | B183: SIEMENS | C183: 2129.4 | D183: 2132.65 | E183: 2108.30 | F183: 2087.20 | G183: 2062.85 | H183: 2153.75 | I183: 2178.10 | J183: 2199.20 | K183: 2157 | L183: 2111.55 | M183: 3.89726
A184: 175 | B184: SBIN | C184: 453 | D184: 456.43 | E184: 447.97 | F184: 442.93 | G184: 434.47 | H184: 461.47 | I184: 469.93 | J184: 474.97 | K184: 464.9 | L184: 451.4 | M184: 265.30369
A185: 176 | B185: SAIL | C185: 113.65 | D185: 114.93 | E185: 111.92 | F185: 110.18 | G185: 107.17 | H185: 116.67 | I185: 119.68 | J185: 121.42 | K185: 117.95 | L185: 113.2 | M185: 591.07985
A186: 177 | B186: SUNPHARMA | C186: 818.25 | D186: 819.27 | E186: 805.58 | F186: 792.92 | G186: 779.23 | H186: 831.93 | I186: 845.62 | J186: 858.28 | K186: 832.95 | L186: 806.6 | M186: 104.78553
A187: 178 | B187: SUNTV | C187: 505.35 | D187: 503.47 | E187: 498.18 | F187: 491.02 | G187: 485.73 | H187: 510.63 | I187: 515.92 | J187: 523.08 | K187: 508.75 | L187: 496.3 | M187: 31.26413
A188: 179 | B188: SYNGENE | C188: 599.9 | D188: 603.83 | E188: 590.17 | F188: 580.43 | G188: 566.77 | H188: 613.57 | I188: 627.23 | J188: 636.97 | K188: 617.5 | L188: 594.1 | M188: 15.22941
A189: 180 | B189: TVSMOTOR | C189: 549.45 | D189: 552.13 | E189: 545.52 | F189: 541.58 | G189: 534.97 | H189: 556.07 | I189: 562.68 | J189: 566.62 | K189: 558.75 | L189: 548.2 | M189: 13.39499
A190: 181 | B190: TATACHEM | C190: 919.3 | D190: 926.73 | E190: 907.97 | F190: 896.63 | G190: 877.87 | H190: 938.07 | I190: 956.83 | J190: 968.17 | K190: 945.5 | L190: 915.4 | M190: 38.23155
A191: 182 | B191: TCS | C191: 3775.55 | D191: 3776.88 | E191: 3748.77 | F191: 3721.98 | G191: 3693.87 | H191: 3803.67 | I191: 3831.78 | J191: 3858.57 | K191: 3805 | L191: 3750.1 | M191: 22.52412
A192: 183 | B192: TATACONSUM | C192: 813.6 | D192: 816.13 | E192: 808.32 | F192: 803.03 | G192: 795.22 | H192: 821.42 | I192: 829.23 | J192: 834.52 | K192: 823.95 | L192: 810.85 | M192: 16.22014
A193: 184 | B193: TATAELXSI | C193: 5594.05 | D193: 5614.02 | E193: 5560.03 | F193: 5526.02 | G193: 5472.03 | H193: 5648.03 | I193: 5702.02 | J193: 5736.03 | K193: 5668 | L193: 5580 | M193: 1.44992
A194: 185 | B194: TATAMOTORS | C194: 333.35 | D194: 333.45 | E194: 329.00 | F194: 324.65 | G194: 320.20 | H194: 337.80 | I194: 342.25 | J194: 346.60 | K194: 337.9 | L194: 329.1 | M194: 302.68517
A195: 186 | B195: TATAPOWER | C195: 158.75 | D195: 157.08 | E195: 152.97 | F195: 147.18 | G195: 143.07 | H195: 162.87 | I195: 166.98 | J195: 172.77 | K195: 161.2 | L195: 151.3 | M195: 1113.02311
A196: 187 | B196: TATASTEEL | C196: 1288.9 | D196: 1296.38 | E196: 1276.37 | F196: 1263.83 | G196: 1243.82 | H196: 1308.92 | I196: 1328.93 | J196: 1341.47 | K196: 1316.4 | L196: 1283.85 | M196: 75.14568
A197: 188 | B197: TECHM | C197: 1380.6 | D197: 1386.75 | E197: 1370.85 | F197: 1361.10 | G197: 1345.20 | H197: 1396.50 | I197: 1412.40 | J197: 1422.15 | K197: 1402.65 | L197: 1377 | M197: 38.5663
A198: 189 | B198: RAMCOCEM | C198: 984.65 | D198: 988.80 | E198: 974.15 | F198: 963.65 | G198: 949.00 | H198: 999.30 | I198: 1013.95 | J198: 1024.45 | K198: 1003.45 | L198: 978.3 | M198: 3.94003
A199: 190 | B199: TITAN | C199: 2161.85 | D199: 2161.05 | E199: 2137.10 | F199: 2112.35 | G199: 2088.40 | H199: 2185.80 | I199: 2209.75 | J199: 2234.50 | K199: 2185 | L199: 2136.3 | M199: 13.74265
A200: 191 | B200: TORNTPHARM | C200: 3085.5 | D200: 3128.90 | E200: 3007.60 | F200: 2929.70 | G200: 2808.40 | H200: 3206.80 | I200: 3328.10 | J200: 3406.00 | K200: 3250.2 | L200: 3051 | M200: 4.84547
A201: 192 | B201: TORNTPOWER | C201: 505.05 | D201: 509.03 | E201: 499.07 | F201: 493.08 | G201: 483.12 | H201: 515.02 | I201: 524.98 | J201: 530.97 | K201: 519 | L201: 503.05 | M201: 11.40668
A202: 193 | B202: TRENT | C202: 1025.85 | D202: 1022.90 | E202: 1004.20 | F202: 982.55 | G202: 963.85 | H202: 1044.55 | I202: 1063.25 | J202: 1084.90 | K202: 1041.6 | L202: 1001.25 | M202: 9.41677
A203: 194 | B203: UPL | C203: 707.7 | D203: 711.25 | E203: 702.60 | F203: 697.50 | G203: 688.85 | H203: 716.35 | I203: 725.00 | J203: 730.10 | K203: 719.9 | L203: 706.15 | M203: 24.87764
A204: 195 | B204: ULTRACEMCO | C204: 7396.1 | D204: 7422.00 | E204: 7345.10 | F204: 7294.10 | G204: 7217.20 | H204: 7473.00 | I204: 7549.90 | J204: 7600.90 | K204: 7498.9 | L204: 7371 | M204: 4.22904
A205: 196 | B205: UNIONBANK | C205: 36.25 | D205: 36.53 | E205: 35.77 | F205: 35.28 | G205: 34.52 | H205: 37.02 | I205: 37.78 | J205: 38.27 | K205: 37.3 | L205: 36.05 | M205: 256.34746
... 29 more rows

Sheet MidCap Intra
L5: Back To Main Page
A6: FOR INTRA DAY TRADING | K6: =Main!B10 -> 2021-10-01
A9: Sr.no | B9: Scrip | C9: CLOSE RATE | D9: Pivot Point | E9: Supports | H9: Resistances
E10: S1 | F10: S2 | G10: S3 | H10: R1 | I10: R2 | J10: R3 | K10: HIGH | L10: LOW | M10: Total Trade Quanity in Lakhs
A11: 1 | B11: 3MINDIA | C11: 24832.5 | D11: 24758.35 | E11: 24536.65 | F11: 24240.80 | G11: 24019.10 | H11: 25054.20 | I11: 25275.90 | J11: 25571.75 | K11: 24980.05 | L11: 24462.5 | M11: 0.01845
A12: 2 | B12: ABB | C12: 1870.6 | D12: 1856.97 | E12: 1834.93 | F12: 1799.27 | G12: 1777.23 | H12: 1892.63 | I12: 1914.67 | J12: 1950.33 | K12: 1879 | L12: 1821.3 | M12: 0.7099
A13: 3 | B13: POWERINDIA | C13: 2438.8 | D13: 2431.15 | E13: 2387.65 | F13: 2336.50 | G13: 2293.00 | H13: 2482.30 | I13: 2525.80 | J13: 2576.95 | K13: 2474.65 | L13: 2380 | M13: 0.70378
A14: 4 | B14: ACC | C14: 2254.5 | D14: 2260.87 | E14: 2244.83 | F14: 2235.17 | G14: 2219.13 | H14: 2270.53 | I14: 2286.57 | J14: 2296.23 | K14: 2276.9 | L14: 2251.2 | M14: 3.00368
A15: 5 | B15: AIAENG | C15: 1955.3 | D15: 1944.90 | E15: 1921.30 | F15: 1887.30 | G15: 1863.70 | H15: 1978.90 | I15: 2002.50 | J15: 2036.50 | K15: 1968.5 | L15: 1910.9 | M15: 0.31905
A16: 6 | B16: APLAPOLLO | C16: 821.8 | D16: 820.82 | E16: 805.08 | F16: 788.37 | G16: 772.63 | H16: 837.53 | I16: 853.27 | J16: 869.98 | K16: 836.55 | L16: 804.1 | M16: 9.26191
A17: 7 | B17: AUBANK | C17: 1164.25 | D17: 1169.28 | E17: 1149.97 | F17: 1135.68 | G17: 1116.37 | H17: 1183.57 | I17: 1202.88 | J17: 1217.17 | K17: 1188.6 | L17: 1155 | M17: 23.116
A18: 8 | B18: AARTIDRUGS | C18: 607.3 | D18: 609.48 | E18: 603.97 | F18: 600.63 | G18: 595.12 | H18: 612.82 | I18: 618.33 | J18: 621.67 | K18: 615 | L18: 606.15 | M18: 0.95787
A19: 9 | B19: AARTIIND | C19: 929.85 | D19: 935.03 | E19: 922.67 | F19: 915.48 | G19: 903.12 | H19: 942.22 | I19: 954.58 | J19: 961.77 | K19: 947.4 | L19: 927.85 | M19: 7.14066
A20: 10 | B20: AAVAS | C20: 2560 | D20: 2574.52 | E20: 2515.83 | F20: 2471.67 | G20: 2412.98 | H20: 2618.68 | I20: 2677.37 | J20: 2721.53 | K20: 2633.2 | L20: 2530.35 | M20: 1.17083
A21: 11 | B21: ABBOTINDIA | C21: 20517.8 | D21: 20287.67 | E21: 19933.33 | F21: 19348.87 | G21: 18994.53 | H21: 20872.13 | I21: 21226.47 | J21: 21810.93 | K21: 20642 | L21: 19703.2 | M21: 0.50607
A22: 12 | B22: ADANIENT | C22: 1468.1 | D22: 1483.48 | E22: 1447.97 | F22: 1427.83 | G22: 1392.32 | H22: 1503.62 | I22: 1539.13 | J22: 1559.27 | K22: 1519 | L22: 1463.35 | M22: 20.72145
A23: 13 | B23: ADANIGREEN | C23: 1146.6 | D23: 1143.53 | E23: 1128.07 | F23: 1109.53 | G23: 1094.07 | H23: 1162.07 | I23: 1177.53 | J23: 1196.07 | K23: 1159 | L23: 1125 | M23: 15.51279
A24: 14 | B24: ADANIPORTS | C24: 737.9 | D24: 743.47 | E24: 730.43 | F24: 722.97 | G24: 709.93 | H24: 750.93 | I24: 763.97 | J24: 771.43 | K24: 756.5 | L24: 736 | M24: 43.56469
A25: 15 | B25: ATGL | C25: 1423.15 | D25: 1416.63 | E25: 1401.52 | F25: 1379.88 | G25: 1364.77 | H25: 1438.27 | I25: 1453.38 | J25: 1475.02 | K25: 1431.75 | L25: 1395 | M25: 5.75925
A26: 16 | B26: ADANITRANS | C26: 1558.5 | D26: 1544.50 | E26: 1525.00 | F26: 1491.50 | G26: 1472.00 | H26: 1578.00 | I26: 1597.50 | J26: 1631.00 | K26: 1564 | L26: 1511 | M26: 1.56084
A27: 17 | B27: ABCAPITAL | C27: 112.75 | D27: 113.32 | E27: 111.73 | F27: 110.72 | G27: 109.13 | H27: 114.33 | I27: 115.92 | J27: 116.93 | K27: 114.9 | L27: 112.3 | M27: 23.50461
A28: 18 | B28: ABFRL | C28: 246.35 | D28: 241.85 | E28: 233.80 | F28: 221.25 | G28: 213.20 | H28: 254.40 | I28: 262.45 | J28: 275.00 | K28: 249.9 | L28: 229.3 | M28: 200.51452
A29: 19 | B29: ADVENZYMES | C29: 388.55 | D29: 390.52 | E29: 385.18 | F29: 381.82 | G29: 376.48 | H29: 393.88 | I29: 399.22 | J29: 402.58 | K29: 395.85 | L29: 387.15 | M29: 2.35983
A30: 20 | B30: AEGISCHEM | C30: 227.6 | D30: 230.03 | E30: 224.57 | F30: 221.53 | G30: 216.07 | H30: 233.07 | I30: 238.53 | J30: 241.57 | K30: 235.5 | L30: 227 | M30: 7.06687
A31: 21 | B31: AFFLE | C31: 5344.45 | D31: 5368.15 | E31: 5281.30 | F31: 5218.15 | G31: 5131.30 | H31: 5431.30 | I31: 5518.15 | J31: 5581.30 | K31: 5455 | L31: 5305 | M31: 0.87218
A32: 22 | B32: AJANTPHARM | C32: 2278.1 | D32: 2283.03 | E32: 2236.07 | F32: 2194.03 | G32: 2147.07 | H32: 2325.07 | I32: 2372.03 | J32: 2414.07 | K32: 2330 | L32: 2241 | M32: 1.14162
A33: 23 | B33: AKZOINDIA | C33: 2284.35 | D33: 2273.78 | E33: 2250.57 | F33: 2216.78 | G33: 2193.57 | H33: 2307.57 | I33: 2330.78 | J33: 2364.57 | K33: 2297 | L33: 2240 | M33: 0.19879
A34: 24 | B34: ALEMBICLTD | C34: 115.2 | D34: 115.77 | E34: 114.03 | F34: 112.87 | G34: 111.13 | H34: 116.93 | I34: 118.67 | J34: 119.83 | K34: 117.5 | L34: 114.6 | M34: 2.38958
A35: 25 | B35: APLLTD | C35: 789.1 | D35: 791.68 | E35: 783.42 | F35: 777.73 | G35: 769.47 | H35: 797.37 | I35: 805.63 | J35: 811.32 | K35: 799.95 | L35: 786 | M35: 2.90745
A36: 26 | B36: ALKEM | C36: 3980.75 | D36: 3958.57 | E36: 3917.13 | F36: 3853.52 | G36: 3812.08 | H36: 4022.18 | I36: 4063.62 | J36: 4127.23 | K36: 4000 | L36: 3894.95 | M36: 1.14702
A37: 27 | B37: ALKYLAMINE | C37: 3825.55 | D37: 3823.52 | E37: 3792.03 | F37: 3758.52 | G37: 3727.03 | H37: 3857.03 | I37: 3888.52 | J37: 3922.03 | K37: 3855 | L37: 3790 | M37: 0.40787
A38: 28 | B38: ALOKINDS | C38: 23.8 | D38: 23.93 | E38: 23.62 | F38: 23.43 | G38: 23.12 | H38: 24.12 | I38: 24.43 | J38: 24.62 | K38: 24.25 | L38: 23.75 | M38: 41.26816
A39: 29 | B39: AMARAJABAT | C39: 749.8 | D39: 752.77 | E39: 745.03 | F39: 740.27 | G39: 732.53 | H39: 757.53 | I39: 765.27 | J39: 770.03 | K39: 760.5 | L39: 748 | M39: 11.44824
A40: 30 | B40: AMBER | C40: 3263.7 | D40: 3223.23 | E40: 3136.47 | F40: 3009.23 | G40: 2922.47 | H40: 3350.47 | I40: 3437.23 | J40: 3564.47 | K40: 3310 | L40: 3096 | M40: 2.69811
A41: 31 | B41: AMBUJACEM | C41: 400.2 | D41: 402.32 | E41: 396.28 | F41: 392.37 | G41: 386.33 | H41: 406.23 | I41: 412.27 | J41: 416.18 | K41: 408.35 | L41: 398.4 | M41: 93.12005
A42: 32 | B42: ANGELBRKG | C42: 1322.75 | D42: 1319.28 | E42: 1288.57 | F42: 1254.38 | G42: 1223.67 | H42: 1353.47 | I42: 1384.18 | J42: 1418.37 | K42: 1350 | L42: 1285.1 | M42: 8.33885
A43: 33 | B43: APOLLOHOSP | C43: 4481.6 | D43: 4455.30 | E43: 4409.95 | F43: 4338.30 | G43: 4292.95 | H43: 4526.95 | I43: 4572.30 | J43: 4643.95 | K43: 4500.65 | L43: 4383.65 | M43: 8.08446
A44: 34 | B44: APOLLOTYRE | C44: 225.7 | D44: 226.07 | E44: 223.68 | F44: 221.67 | G44: 219.28 | H44: 228.08 | I44: 230.47 | J44: 232.48 | K44: 228.45 | L44: 224.05 | M44: 31.98232
A45: 35 | B45: ASAHIINDIA | C45: 362.7 | D45: 361.08 | E45: 357.47 | F45: 352.23 | G45: 348.62 | H45: 366.32 | I45: 369.93 | J45: 375.17 | K45: 364.7 | L45: 355.85 | M45: 1.45673
A46: 36 | B46: ASHOKLEY | C46: 133.8 | D46: 132.27 | E46: 130.03 | F46: 126.27 | G46: 124.03 | H46: 136.03 | I46: 138.27 | J46: 142.03 | K46: 134.5 | L46: 128.5 | M46: 366.30467
A47: 37 | B47: ASHOKA | C47: 98.45 | D47: 99.07 | E47: 97.13 | F47: 95.82 | G47: 93.88 | H47: 100.38 | I47: 102.32 | J47: 103.63 | K47: 101 | L47: 97.75 | M47: 11.53683
A48: 38 | B48: ASIANPAINT | C48: 3244.65 | D48: 3270.78 | E48: 3193.87 | F48: 3143.08 | G48: 3066.17 | H48: 3321.57 | I48: 3398.48 | J48: 3449.27 | K48: 3347.7 | L48: 3220 | M48: 20.77896
A49: 39 | B49: ASTERDM | C49: 207.55 | D49: 208.83 | E49: 205.72 | F49: 203.88 | G49: 200.77 | H49: 210.67 | I49: 213.78 | J49: 215.62 | K49: 211.95 | L49: 207 | M49: 5.96809
A50: 40 | B50: ASTRAZEN | C50: 3089.6 | D50: 3111.77 | E50: 3064.83 | F50: 3040.07 | G50: 2993.13 | H50: 3136.53 | I50: 3183.47 | J50: 3208.23 | K50: 3158.7 | L50: 3087 | M50: 0.18703
A51: 41 | B51: ASTRAL | C51: 2160.4 | D51: 2172.93 | E51: 2117.87 | F51: 2075.33 | G51: 2020.27 | H51: 2215.47 | I51: 2270.53 | J51: 2313.07 | K51: 2228 | L51: 2130.4 | M51: 6.60968
A52: 42 | B52: ATUL | C52: 9462.55 | D52: 9499.13 | E52: 9359.42 | F52: 9256.28 | G52: 9116.57 | H52: 9602.27 | I52: 9741.98 | J52: 9845.12 | K52: 9638.85 | L52: 9396 | M52: 0.22628
A53: 43 | B53: AUROPHARMA | C53: 724.8 | D53: 727.00 | E53: 718.15 | F53: 711.50 | G53: 702.65 | H53: 733.65 | I53: 742.50 | J53: 749.15 | K53: 735.85 | L53: 720.35 | M53: 19.9315
A54: 44 | B54: AVANTIFEED | C54: 539.15 | D54: 540.58 | E54: 536.82 | F54: 534.48 | G54: 530.72 | H54: 542.92 | I54: 546.68 | J54: 549.02 | K54: 544.35 | L54: 538.25 | M54: 0.97333
A55: 45 | B55: DMART | C55: 4250.2 | D55: 4255.15 | E55: 4200.30 | F55: 4150.40 | G55: 4095.55 | H55: 4305.05 | I55: 4359.90 | J55: 4409.80 | K55: 4310 | L55: 4205.25 | M55: 3.3996
A56: 46 | B56: AXISBANK | C56: 766.55 | D56: 772.92 | E56: 758.48 | F56: 750.42 | G56: 735.98 | H56: 780.98 | I56: 795.42 | J56: 803.48 | K56: 787.35 | L56: 764.85 | M56: 91.78187
A57: 47 | B57: BASF | C57: 3427.75 | D57: 3386.88 | E57: 3308.87 | F57: 3189.98 | G57: 3111.97 | H57: 3505.77 | I57: 3583.78 | J57: 3702.67 | K57: 3464.9 | L57: 3268 | M57: 0.71428
A58: 48 | B58: BEML | C58: 1433.5 | D58: 1435.42 | E58: 1423.08 | F58: 1412.67 | G58: 1400.33 | H58: 1445.83 | I58: 1458.17 | J58: 1468.58 | K58: 1447.75 | L58: 1425 | M58: 1.55406
A59: 49 | B59: BSE | C59: 1231.25 | D59: 1236.08 | E59: 1220.17 | F59: 1209.08 | G59: 1193.17 | H59: 1247.17 | I59: 1263.08 | J59: 1274.17 | K59: 1252 | L59: 1225 | M59: 2.96255
A60: 50 | B60: BAJAJ-AUTO | C60: 3832.65 | D60: 3847.02 | E60: 3797.63 | F60: 3762.62 | G60: 3713.23 | H60: 3882.03 | I60: 3931.42 | J60: 3966.43 | K60: 3896.4 | L60: 3812 | M60: 5.76711
A61: 51 | B61: BAJAJCON | C61: 252.4 | D61: 254.30 | E61: 250.05 | F61: 247.70 | G61: 243.45 | H61: 256.65 | I61: 260.90 | J61: 263.25 | K61: 258.55 | L61: 251.95 | M61: 4.6139
A62: 52 | B62: BAJAJELEC | C62: 1305.65 | D62: 1324.77 | E62: 1274.53 | F62: 1243.42 | G62: 1193.18 | H62: 1355.88 | I62: 1406.12 | J62: 1437.23 | K62: 1375 | L62: 1293.65 | M62: 5.86789
A63: 53 | B63: BAJFINANCE | C63: 7668.1 | D63: 7619.67 | E63: 7539.33 | F63: 7410.57 | G63: 7330.23 | H63: 7748.43 | I63: 7828.77 | J63: 7957.53 | K63: 7700 | L63: 7490.9 | M63: 14.90707
A64: 54 | B64: BAJAJFINSV | C64: 17786.75 | D64: 17686.30 | E64: 17512.65 | F64: 17238.55 | G64: 17064.90 | H64: 17960.40 | I64: 18134.05 | J64: 18408.15 | K64: 17859.95 | L64: 17412.2 | M64: 3.43
A65: 55 | B65: BAJAJHLDNG | C65: 4808.6 | D65: 4791.83 | E65: 4741.77 | F65: 4674.93 | G65: 4624.87 | H65: 4858.67 | I65: 4908.73 | J65: 4975.57 | K65: 4841.9 | L65: 4725 | M65: 0.62195
A66: 56 | B66: BALAMINES | C66: 4517.4 | D66: 4553.82 | E66: 4472.58 | F66: 4427.77 | G66: 4346.53 | H66: 4598.63 | I66: 4679.87 | J66: 4724.68 | K66: 4635.05 | L66: 4509 | M66: 0.36026
A67: 57 | B67: BALKRISIND | C67: 2533.65 | D67: 2523.80 | E67: 2501.50 | F67: 2469.35 | G67: 2447.05 | H67: 2555.95 | I67: 2578.25 | J67: 2610.40 | K67: 2546.1 | L67: 2491.65 | M67: 4.13871
A68: 58 | B68: BALMLAWRIE | C68: 129.3 | D68: 129.63 | E68: 127.67 | F68: 126.03 | G68: 124.07 | H68: 131.27 | I68: 133.23 | J68: 134.87 | K68: 131.6 | L68: 128 | M68: 5.17965
A69: 59 | B69: BALRAMCHIN | C69: 366.5 | D69: 364.15 | E69: 360.15 | F69: 353.80 | G69: 349.80 | H69: 370.50 | I69: 374.50 | J69: 380.85 | K69: 368.15 | L69: 357.8 | M69: 14.28587
A70: 60 | B70: BANDHANBNK | C70: 283 | D70: 285.30 | E70: 279.70 | F70: 276.40 | G70: 270.80 | H70: 288.60 | I70: 294.20 | J70: 297.50 | K70: 290.9 | L70: 282 | M70: 62.79584
A71: 61 | B71: BANKBARODA | C71: 81.75 | D71: 82.23 | E71: 80.77 | F71: 79.78 | G71: 78.32 | H71: 83.22 | I71: 84.68 | J71: 85.67 | K71: 83.7 | L71: 81.25 | M71: 371.28256
A72: 62 | B72: BANKINDIA | C72: 55.5 | D72: 56.22 | E72: 54.53 | F72: 53.57 | G72: 51.88 | H72: 57.18 | I72: 58.87 | J72: 59.83 | K72: 57.9 | L72: 55.25 | M72: 182.35786
A73: 63 | B73: MAHABANK | C73: 20.05 | D73: 20.10 | E73: 19.05 | F73: 18.05 | G73: 17.00 | H73: 21.10 | I73: 22.15 | J73: 23.15 | K73: 21.15 | L73: 19.1 | M73: 447.29608
A74: 64 | B74: BATAINDIA | C74: 1778.15 | D74: 1776.12 | E74: 1763.08 | F74: 1748.02 | G74: 1734.98 | H74: 1791.18 | I74: 1804.22 | J74: 1819.28 | K74: 1789.15 | L74: 1761.05 | M74: 2.95085
A75: 65 | B75: BAYERCROP | C75: 5298.05 | D75: 5305.70 | E75: 5266.40 | F75: 5234.75 | G75: 5195.45 | H75: 5337.35 | I75: 5376.65 | J75: 5408.30 | K75: 5345 | L75: 5274.05 | M75: 0.10417
A76: 66 | B76: BERGEPAINT | C76: 809 | D76: 813.12 | E76: 803.08 | F76: 797.17 | G76: 787.13 | H76: 819.03 | I76: 829.07 | J76: 834.98 | K76: 823.15 | L76: 807.2 | M76: 6.19854
A77: 67 | B77: BDL | C77: 382.95 | D77: 385.70 | E77: 378.95 | F77: 374.95 | G77: 368.20 | H77: 389.70 | I77: 396.45 | J77: 400.45 | K77: 392.45 | L77: 381.7 | M77: 3.41399
A78: 68 | B78: BEL | C78: 202.95 | D78: 204.07 | E78: 200.58 | F78: 198.22 | G78: 194.73 | H78: 206.43 | I78: 209.92 | J78: 212.28 | K78: 207.55 | L78: 201.7 | M78: 114.12417
A79: 69 | B79: BHARATFORG | C79: 737.45 | D79: 741.47 | E79: 730.98 | F79: 724.52 | G79: 714.03 | H79: 747.93 | I79: 758.42 | J79: 764.88 | K79: 751.95 | L79: 735 | M79: 25.47525
A80: 70 | B80: BHEL | C80: 64.65 | D80: 64.12 | E80: 62.98 | F80: 61.32 | G80: 60.18 | H80: 65.78 | I80: 66.92 | J80: 68.58 | K80: 65.25 | L80: 62.45 | M80: 849.62917
A81: 71 | B81: BPCL | C81: 432.2 | D81: 434.53 | E81: 428.67 | F81: 425.13 | G81: 419.27 | H81: 438.07 | I81: 443.93 | J81: 447.47 | K81: 440.4 | L81: 431 | M81: 44.67366
A82: 72 | B82: BHARATRAS | C82: 12154.05 | D82: 12184.35 | E82: 12069.70 | F82: 11985.35 | G82: 11870.70 | H82: 12268.70 | I82: 12383.35 | J82: 12467.70 | K82: 12299 | L82: 12100 | M82: 0.00939
A83: 73 | B83: BHARTIARTL | C83: 688.3 | D83: 694.97 | E83: 680.13 | F83: 671.97 | G83: 657.13 | H83: 703.13 | I83: 717.97 | J83: 726.13 | K83: 709.8 | L83: 686.8 | M83: 139.11568
A84: 74 | B84: BIOCON | C84: 362.7 | D84: 364.30 | E84: 359.55 | F84: 356.40 | G84: 351.65 | H84: 367.45 | I84: 372.20 | J84: 375.35 | K84: 369.05 | L84: 361.15 | M84: 21.47714
A85: 75 | B85: BIRLACORPN | C85: 1435.7 | D85: 1417.83 | E85: 1387.87 | F85: 1340.03 | G85: 1310.07 | H85: 1465.67 | I85: 1495.63 | J85: 1543.47 | K85: 1447.8 | L85: 1370 | M85: 6.40464
A86: 76 | B86: BSOFT | C86: 409.65 | D86: 410.92 | E86: 406.83 | F86: 404.02 | G86: 399.93 | H86: 413.73 | I86: 417.82 | J86: 420.63 | K86: 415 | L86: 408.1 | M86: 9.94915
A87: 77 | B87: BLISSGVS | C87: 109.85 | D87: 110.28 | E87: 109.17 | F87: 108.48 | G87: 107.37 | H87: 110.97 | I87: 112.08 | J87: 112.77 | K87: 111.4 | L87: 109.6 | M87: 1.39602
A88: 78 | B88: BLUEDART | C88: 6506.9 | D88: 6527.48 | E88: 6435.97 | F88: 6365.03 | G88: 6273.52 | H88: 6598.42 | I88: 6689.93 | J88: 6760.87 | K88: 6619 | L88: 6456.55 | M88: 0.45988
A89: 79 | B89: BLUESTARCO | C89: 910.25 | D89: 901.12 | E89: 886.23 | F89: 862.22 | G89: 847.33 | H89: 925.13 | I89: 940.02 | J89: 964.03 | K89: 916 | L89: 877.1 | M89: 1.42408
A90: 80 | B90: BBTC | C90: 1147.75 | D90: 1148.58 | E90: 1139.17 | F90: 1130.58 | G90: 1121.17 | H90: 1157.17 | I90: 1166.58 | J90: 1175.17 | K90: 1158 | L90: 1140 | M90: 0.38448
A91: 81 | B91: BOSCHLTD | C91: 15474.5 | D91: 15542.55 | E91: 15331.95 | F91: 15189.40 | G91: 14978.80 | H91: 15685.10 | I91: 15895.70 | J91: 16038.25 | K91: 15753.15 | L91: 15400 | M91: 0.26957
A92: 82 | B92: BRIGADE | C92: 410 | D92: 407.18 | E92: 395.87 | F92: 381.73 | G92: 370.42 | H92: 421.32 | I92: 432.63 | J92: 446.77 | K92: 418.5 | L92: 393.05 | M92: 11.96651
A93: 83 | B93: BRITANNIA | C93: 3948.95 | D93: 3960.75 | E93: 3928.50 | F93: 3908.05 | G93: 3875.80 | H93: 3981.20 | I93: 4013.45 | J93: 4033.90 | K93: 3993 | L93: 3940.3 | M93: 2.17501
A94: 84 | B94: BURGERKING | C94: 162.45 | D94: 162.87 | E94: 161.23 | F94: 160.02 | G94: 158.38 | H94: 164.08 | I94: 165.72 | J94: 166.93 | K94: 164.5 | L94: 161.65 | M94: 9.18262
A95: 85 | B95: CCL | C95: 384.55 | D95: 385.25 | E95: 381.80 | F95: 379.05 | G95: 375.60 | H95: 388.00 | I95: 391.45 | J95: 394.20 | K95: 388.7 | L95: 382.5 | M95: 1.82529
A96: 86 | B96: CESC | C96: 91.55 | D96: 90.15 | E96: 88.30 | F96: 85.05 | G96: 83.20 | H96: 93.40 | I96: 95.25 | J96: 98.50 | K96: 92 | L96: 86.9 | M96: 150.09512
A97: 87 | B97: CRISIL | C97: 2718.3 | D97: 2726.03 | E97: 2679.37 | F97: 2640.43 | G97: 2593.77 | H97: 2764.97 | I97: 2811.63 | J97: 2850.57 | K97: 2772.7 | L97: 2687.1 | M97: 0.27193
A98: 88 | B98: CSBBANK | C98: 316.8 | D98: 318.13 | E98: 311.27 | F98: 305.73 | G98: 298.87 | H98: 323.67 | I98: 330.53 | J98: 336.07 | K98: 325 | L98: 312.6 | M98: 1.86076
A99: 89 | B99: CADILAHC | C99: 551.85 | D99: 550.45 | E99: 545.40 | F99: 538.95 | G99: 533.90 | H99: 556.90 | I99: 561.95 | J99: 568.40 | K99: 555.5 | L99: 544 | M99: 22.55845
A100: 90 | B100: CANFINHOME | C100: 686.8 | D100: 676.02 | E100: 661.03 | F100: 635.27 | G100: 620.28 | H100: 701.78 | I100: 716.77 | J100: 742.53 | K100: 691 | L100: 650.25 | M100: 27.13429
A101: 91 | B101: CANBK | C101: 173 | D101: 173.02 | E101: 168.53 | F101: 164.07 | G101: 159.58 | H101: 177.48 | I101: 181.97 | J101: 186.43 | K101: 177.5 | L101: 168.55 | M101: 441.91136
A102: 92 | B102: CAPLIPOINT | C102: 884.25 | D102: 892.37 | E102: 869.53 | F102: 854.82 | G102: 831.98 | H102: 907.08 | I102: 929.92 | J102: 944.63 | K102: 915.2 | L102: 877.65 | M102: 2.02096
A103: 93 | B103: CGCL | C103: 515.25 | D103: 513.40 | E103: 505.10 | F103: 494.95 | G103: 486.65 | H103: 523.55 | I103: 531.85 | J103: 542.00 | K103: 521.7 | L103: 503.25 | M103: 0.50573
A104: 94 | B104: CARBORUNIV | C104: 887.55 | D104: 883.88 | E104: 868.77 | F104: 849.98 | G104: 834.87 | H104: 902.67 | I104: 917.78 | J104: 936.57 | K104: 899 | L104: 865.1 | M104: 9.66932
A105: 95 | B105: CASTROLIND | C105: 140.2 | D105: 140.25 | E105: 139.00 | F105: 137.80 | G105: 136.55 | H105: 141.45 | I105: 142.70 | J105: 143.90 | K105: 141.5 | L105: 139.05 | M105: 5.65862
A106: 96 | B106: CEATLTD | C106: 1321.7 | D106: 1323.92 | E106: 1315.78 | F106: 1309.87 | G106: 1301.73 | H106: 1329.83 | I106: 1337.97 | J106: 1343.88 | K106: 1332.05 | L106: 1318 | M106: 0.63195
A107: 97 | B107: CENTRALBK | C107: 22.15 | D107: 23.03 | E107: 20.92 | F107: 19.68 | G107: 17.57 | H107: 24.27 | I107: 26.38 | J107: 27.62 | K107: 25.15 | L107: 21.8 | M107: 532.54854
A108: 98 | B108: CDSL | C108: 1290 | D108: 1294.67 | E108: 1274.33 | F108: 1258.67 | G108: 1238.33 | H108: 1310.33 | I108: 1330.67 | J108: 1346.33 | K108: 1315 | L108: 1279 | M108: 2.45856
A109: 99 | B109: CENTURYPLY | C109: 472.65 | D109: 470.57 | E109: 462.13 | F109: 451.62 | G109: 443.18 | H109: 481.08 | I109: 489.52 | J109: 500.03 | K109: 479 | L109: 460.05 | M109: 2.43112
A110: 100 | B110: CENTURYTEX | C110: 936.8 | D110: 936.20 | E110: 925.60 | F110: 914.40 | G110: 903.80 | H110: 947.40 | I110: 958.00 | J110: 969.20 | K110: 946.8 | L110: 925 | M110: 2.97827
A111: 101 | B111: CERA | C111: 5260.6 | D111: 5337.53 | E111: 5145.07 | F111: 5029.53 | G111: 4837.07 | H111: 5453.07 | I111: 5645.53 | J111: 5761.07 | K111: 5530 | L111: 5222 | M111: 0.3369
A112: 102 | B112: CHALET | C112: 239.9 | D112: 239.38 | E112: 234.57 | F112: 229.23 | G112: 224.42 | H112: 244.72 | I112: 249.53 | J112: 254.87 | K112: 244.2 | L112: 234.05 | M112: 4.51305
A113: 103 | B113: CHAMBLFERT | C113: 338.95 | D113: 336.87 | E113: 331.73 | F113: 324.52 | G113: 319.38 | H113: 344.08 | I113: 349.22 | J113: 356.43 | K113: 342 | L113: 329.65 | M113: 7.16112
A114: 104 | B114: CHOLAHLDNG | C114: 688.25 | D114: 691.42 | E114: 677.83 | F114: 667.42 | G114: 653.83 | H114: 701.83 | I114: 715.42 | J114: 725.83 | K114: 705 | L114: 681 | M114: 0.46051
A115: 105 | B115: CHOLAFIN | C115: 564.25 | D115: 568.95 | E115: 557.30 | F115: 550.35 | G115: 538.70 | H115: 575.90 | I115: 587.55 | J115: 594.50 | K115: 580.6 | L115: 562 | M115: 17.27522
A116: 106 | B116: CIPLA | C116: 983.55 | D116: 986.55 | E116: 973.35 | F116: 963.15 | G116: 949.95 | H116: 996.75 | I116: 1009.95 | J116: 1020.15 | K116: 999.75 | L116: 976.35 | M116: 23.12926
A117: 107 | B117: CUB | C117: 157.65 | D117: 159.53 | E117: 155.12 | F117: 152.58 | G117: 148.17 | H117: 162.07 | I117: 166.48 | J117: 169.02 | K117: 163.95 | L117: 157 | M117: 48.20978
A118: 108 | B118: COALINDIA | C118: 185.1 | D118: 186.90 | E118: 182.30 | F118: 179.50 | G118: 174.90 | H118: 189.70 | I118: 194.30 | J118: 197.10 | K118: 191.5 | L118: 184.1 | M118: 489.57916
A119: 109 | B119: COCHINSHIP | C119: 362.85 | D119: 364.02 | E119: 360.03 | F119: 357.22 | G119: 353.23 | H119: 366.83 | I119: 370.82 | J119: 373.63 | K119: 368 | L119: 361.2 | M119: 1.49706
A120: 110 | B120: COFORGE | C120: 5241.3 | D120: 5255.72 | E120: 5189.63 | F120: 5137.97 | G120: 5071.88 | H120: 5307.38 | I120: 5373.47 | J120: 5425.13 | K120: 5321.8 | L120: 5204.05 | M120: 3.55976
A121: 111 | B121: COLPAL | C121: 1669.5 | D121: 1671.13 | E121: 1658.52 | F121: 1647.53 | G121: 1634.92 | H121: 1682.12 | I121: 1694.73 | J121: 1705.72 | K121: 1683.75 | L121: 1660.15 | M121: 3.32202
A122: 112 | B122: CAMS | C122: 3034.55 | D122: 3087.85 | E122: 2966.70 | F122: 2898.85 | G122: 2777.70 | H122: 3155.70 | I122: 3276.85 | J122: 3344.70 | K122: 3209 | L122: 3020 | M122: 13.85793
A123: 113 | B123: CONCOR | C123: 704.3 | D123: 706.30 | E123: 698.75 | F123: 693.20 | G123: 685.65 | H123: 711.85 | I123: 719.40 | J123: 724.95 | K123: 713.85 | L123: 700.75 | M123: 20.88535
A124: 114 | B124: COROMANDEL | C124: 794.45 | D124: 797.98 | E124: 787.97 | F124: 781.48 | G124: 771.47 | H124: 804.47 | I124: 814.48 | J124: 820.97 | K124: 808 | L124: 791.5 | M124: 2.94773
A125: 115 | B125: CREDITACC | C125: 636.45 | D125: 632.88 | E125: 626.77 | F125: 617.08 | G125: 610.97 | H125: 642.57 | I125: 648.68 | J125: 658.37 | K125: 639 | L125: 623.2 | M125: 3.16854
A126: 116 | B126: CROMPTON | C126: 478.9 | D126: 477.52 | E126: 469.48 | F126: 460.07 | G126: 452.03 | H126: 486.93 | I126: 494.97 | J126: 504.38 | K126: 485.55 | L126: 468.1 | M126: 23.34376
A127: 117 | B127: CUMMINSIND | C127: 991.95 | D127: 974.65 | E127: 949.30 | F127: 906.65 | G127: 881.30 | H127: 1017.30 | I127: 1042.65 | J127: 1085.30 | K127: 1000 | L127: 932 | M127: 7.44956
A128: 118 | B128: CYIENT | C128: 1062.75 | D128: 1055.47 | E128: 1040.93 | F128: 1019.12 | G128: 1004.58 | H128: 1077.28 | I128: 1091.82 | J128: 1113.63 | K128: 1070 | L128: 1033.65 | M128: 3.77194
A129: 119 | B129: DCBBANK | C129: 91 | D129: 91.35 | E129: 90.30 | F129: 89.60 | G129: 88.55 | H129: 92.05 | I129: 93.10 | J129: 93.80 | K129: 92.4 | L129: 90.65 | M129: 10.77327
A130: 120 | B130: DCMSHRIRAM | C130: 1010.9 | D130: 1010.97 | E130: 986.93 | F130: 962.97 | G130: 938.93 | H130: 1034.93 | I130: 1058.97 | J130: 1082.93 | K130: 1035 | L130: 987 | M130: 0.73733
A131: 121 | B131: DLF | C131: 417.2 | D131: 415.38 | E131: 409.97 | F131: 402.73 | G131: 397.32 | H131: 422.62 | I131: 428.03 | J131: 435.27 | K131: 420.8 | L131: 408.15 | M131: 122.48397
A132: 122 | B132: DABUR | C132: 617.05 | D132: 619.98 | E132: 613.17 | F132: 609.28 | G132: 602.47 | H132: 623.87 | I132: 630.68 | J132: 634.57 | K132: 626.8 | L132: 616.1 | M132: 17.05501
A133: 123 | B133: DALBHARAT | C133: 2105.75 | D133: 2091.25 | E133: 2062.50 | F133: 2019.25 | G133: 1990.50 | H133: 2134.50 | I133: 2163.25 | J133: 2206.50 | K133: 2120 | L133: 2048 | M133: 2.52126
A134: 124 | B134: DEEPAKNTR | C134: 2406.55 | D134: 2396.00 | E134: 2373.90 | F134: 2341.25 | G134: 2319.15 | H134: 2428.65 | I134: 2450.75 | J134: 2483.40 | K134: 2418.1 | L134: 2363.35 | M134: 5.76314
A135: 125 | B135: DELTACORP | C135: 263.3 | D135: 260.87 | E135: 256.93 | F135: 250.57 | G135: 246.63 | H135: 267.23 | I135: 271.17 | J135: 277.53 | K135: 264.8 | L135: 254.5 | M135: 113.99538
A136: 126 | B136: DHANI | C136: 183.3 | D136: 183.23 | E136: 180.97 | F136: 178.63 | G136: 176.37 | H136: 185.57 | I136: 187.83 | J136: 190.17 | K136: 185.5 | L136: 180.9 | M136: 13.23622
A137: 127 | B137: DHANUKA | C137: 816.9 | D137: 818.47 | E137: 811.93 | F137: 806.97 | G137: 800.43 | H137: 823.43 | I137: 829.97 | J137: 834.93 | K137: 825 | L137: 813.5 | M137: 0.34116
A138: 128 | B138: DBL | C138: 568.4 | D138: 564.08 | E138: 545.17 | F138: 521.93 | G138: 503.02 | H138: 587.32 | I138: 606.23 | J138: 629.47 | K138: 583 | L138: 540.85 | M138: 16.82342
A139: 129 | B139: DISHTV | C139: 20.5 | D139: 20.68 | E139: 20.07 | F139: 19.63 | G139: 19.02 | H139: 21.12 | I139: 21.73 | J139: 22.17 | K139: 21.3 | L139: 20.25 | M139: 114.04343
A140: 130 | B140: DCAL | C140: 200 | D140: 200.92 | E140: 197.58 | F140: 195.17 | G140: 191.83 | H140: 203.33 | I140: 206.67 | J140: 209.08 | K140: 204.25 | L140: 198.5 | M140: 7.92359
A141: 131 | B141: DIVISLAB | C141: 4798.7 | D141: 4803.05 | E141: 4761.25 | F141: 4723.80 | G141: 4682.00 | H141: 4840.50 | I141: 4882.30 | J141: 4919.75 | K141: 4844.85 | L141: 4765.6 | M141: 5.41396
A142: 132 | B142: DIXON | C142: 4611.9 | D142: 4568.63 | E142: 4493.27 | F142: 4374.63 | G142: 4299.27 | H142: 4687.27 | I142: 4762.63 | J142: 4881.27 | K142: 4644 | L142: 4450 | M142: 5.25326
A143: 133 | B143: LALPATHLAB | C143: 3676.8 | D143: 3694.43 | E143: 3632.37 | F143: 3587.93 | G143: 3525.87 | H143: 3738.87 | I143: 3800.93 | J143: 3845.37 | K143: 3756.5 | L143: 3650 | M143: 2.16457
A144: 134 | B144: DRREDDY | C144: 4880.7 | D144: 4910.38 | E144: 4835.77 | F144: 4790.83 | G144: 4716.22 | H144: 4955.32 | I144: 5029.93 | J144: 5074.87 | K144: 4985 | L144: 4865.45 | M144: 7.76015
A145: 135 | B145: EIDPARRY | C145: 420.7 | D145: 418.27 | E145: 411.53 | F145: 402.37 | G145: 395.63 | H145: 427.43 | I145: 434.17 | J145: 443.33 | K145: 425 | L145: 409.1 | M145: 1.64953
A146: 136 | B146: EIHOTEL | C146: 129.35 | D146: 129.17 | E146: 126.18 | F146: 123.02 | G146: 120.03 | H146: 132.33 | I146: 135.32 | J146: 138.48 | K146: 132.15 | L146: 126 | M146: 8.55276
A147: 137 | B147: EPL | C147: 239.65 | D147: 240.68 | E147: 237.02 | F147: 234.38 | G147: 230.72 | H147: 243.32 | I147: 246.98 | J147: 249.62 | K147: 244.35 | L147: 238.05 | M147: 8.72317
A148: 138 | B148: EDELWEISS | C148: 79.2 | D148: 79.48 | E148: 78.72 | F148: 78.23 | G148: 77.47 | H148: 79.97 | I148: 80.73 | J148: 81.22 | K148: 80.25 | L148: 79 | M148: 13.89918
A149: 139 | B149: EICHERMOT | C149: 2790.2 | D149: 2802.87 | E149: 2758.88 | F149: 2727.57 | G149: 2683.58 | H149: 2834.18 | I149: 2878.17 | J149: 2909.48 | K149: 2846.85 | L149: 2771.55 | M149: 8.61344
A150: 140 | B150: ELGIEQUIP | C150: 205.45 | D150: 205.15 | E150: 204.30 | F150: 203.15 | G150: 202.30 | H150: 206.30 | I150: 207.15 | J150: 208.30 | K150: 206 | L150: 204 | M150: 0.69811
A151: 141 | B151: EMAMILTD | C151: 574 | D151: 577.92 | E151: 566.08 | F151: 558.17 | G151: 546.33 | H151: 585.83 | I151: 597.67 | J151: 605.58 | K151: 589.75 | L151: 570 | M151: 12.24714
A152: 142 | B152: ENDURANCE | C152: 1584.45 | D152: 1592.60 | E152: 1570.45 | F152: 1556.45 | G152: 1534.30 | H152: 1606.60 | I152: 1628.75 | J152: 1642.75 | K152: 1614.75 | L152: 1578.6 | M152: 1.51609
A153: 143 | B153: ENGINERSIN | C153: 78.75 | D153: 77.88 | E153: 76.27 | F153: 73.78 | G153: 72.17 | H153: 80.37 | I153: 81.98 | J153: 84.47 | K153: 79.5 | L153: 75.4 | M153: 106.07927
A154: 144 | B154: EQUITAS | C154: 121 | D154: 121.68 | E154: 119.52 | F154: 118.03 | G154: 115.87 | H154: 123.17 | I154: 125.33 | J154: 126.82 | K154: 123.85 | L154: 120.2 | M154: 10.03015
A155: 145 | B155: ERIS | C155: 760.55 | D155: 757.28 | E155: 749.62 | F155: 738.68 | G155: 731.02 | H155: 768.22 | I155: 775.88 | J155: 786.82 | K155: 764.95 | L155: 746.35 | M155: 0.46393
A156: 146 | B156: ESCORTS | C156: 1480.1 | D156: 1491.82 | E156: 1463.93 | F156: 1447.77 | G156: 1419.88 | H156: 1507.98 | I156: 1535.87 | J156: 1552.03 | K156: 1519.7 | L156: 1475.65 | M156: 14.2655
A157: 147 | B157: EXIDEIND | C157: 178.25 | D157: 179.17 | E157: 177.08 | F157: 175.92 | G157: 173.83 | H157: 180.33 | I157: 182.42 | J157: 183.58 | K157: 181.25 | L157: 178 | M157: 41.30332
A158: 148 | B158: FDC | C158: 349.4 | D158: 350.12 | E158: 347.23 | F158: 345.07 | G158: 342.18 | H158: 352.28 | I158: 355.17 | J158: 357.33 | K158: 353 | L158: 347.95 | M158: 0.54482
A159: 149 | B159: FEDERALBNK | C159: 84.3 | D159: 84.08 | E159: 81.92 | F159: 79.53 | G159: 77.37 | H159: 86.47 | I159: 88.63 | J159: 91.02 | K159: 86.25 | L159: 81.7 | M159: 334.72211
A160: 150 | B160: FINEORG | C160: 3075.65 | D160: 3071.42 | E160: 3015.28 | F160: 2954.92 | G160: 2898.78 | H160: 3131.78 | I160: 3187.92 | J160: 3248.28 | K160: 3127.55 | L160: 3011.05 | M160: 0.27759
A161: 151 | B161: FINCABLES | C161: 487.1 | D161: 487.57 | E161: 482.53 | F161: 477.97 | G161: 472.93 | H161: 492.13 | I161: 497.17 | J161: 501.73 | K161: 492.6 | L161: 483 | M161: 1.54969
A162: 152 | B162: FINPIPE | C162: 208.8 | D162: 207.52 | E162: 205.58 | F162: 202.37 | G162: 200.43 | H162: 210.73 | I162: 212.67 | J162: 215.88 | K162: 209.45 | L162: 204.3 | M162: 9.32331
A163: 153 | B163: FSL | C163: 195.5 | D163: 195.52 | E163: 194.13 | F163: 192.77 | G163: 191.38 | H163: 196.88 | I163: 198.27 | J163: 199.63 | K163: 196.9 | L163: 194.15 | M163: 16.60603
A164: 154 | B164: FORTIS | C164: 263.5 | D164: 265.03 | E164: 260.57 | F164: 257.63 | G164: 253.17 | H164: 267.97 | I164: 272.43 | J164: 275.37 | K164: 269.5 | L164: 262.1 | M164: 16.61424
A165: 155 | B165: FCONSUMER | C165: 7.6 | D165: 7.68 | E165: 7.52 | F165: 7.43 | G165: 7.27 | H165: 7.77 | I165: 7.93 | J165: 8.02 | K165: 7.85 | L165: 7.6 | M165: 85.35181
A166: 156 | B166: FRETAIL | C166: 51.85 | D166: 52.65 | E166: 50.90 | F166: 49.95 | G166: 48.20 | H166: 53.60 | I166: 55.35 | J166: 56.30 | K166: 54.4 | L166: 51.7 | M166: 20.31042
A167: 157 | B167: GAIL | C167: 158.85 | D167: 157.92 | E167: 156.03 | F167: 153.22 | G167: 151.33 | H167: 160.73 | I167: 162.62 | J167: 165.43 | K167: 159.8 | L167: 155.1 | M167: 208.12038
A168: 158 | B168: GEPIL | C168: 304.85 | D168: 306.05 | E168: 301.80 | F168: 298.75 | G168: 294.50 | H168: 309.10 | I168: 313.35 | J168: 316.40 | K168: 310.3 | L168: 303 | M168: 0.91912
A169: 159 | B169: GMMPFAUDLR | C169: 4418.7 | D169: 4433.10 | E169: 4378.20 | F169: 4337.70 | G169: 4282.80 | H169: 4473.60 | I169: 4528.50 | J169: 4569.00 | K169: 4488 | L169: 4392.6 | M169: 0.35217
A170: 160 | B170: GMRINFRA | C170: 38.35 | D170: 38.63 | E170: 37.87 | F170: 37.38 | G170: 36.62 | H170: 39.12 | I170: 39.88 | J170: 40.37 | K170: 39.4 | L170: 38.15 | M170: 343.181
A171: 161 | B171: GALAXYSURF | C171: 3293.1 | D171: 3279.67 | E171: 3205.43 | F171: 3117.77 | G171: 3043.53 | H171: 3367.33 | I171: 3441.57 | J171: 3529.23 | K171: 3353.9 | L171: 3192 | M171: 0.44295
A172: 162 | B172: GRSE | C172: 193.3 | D172: 192.65 | E172: 190.30 | F172: 187.30 | G172: 184.95 | H172: 195.65 | I172: 198.00 | J172: 201.00 | K172: 195 | L172: 189.65 | M172: 1.04529
A173: 163 | B173: GARFIBRES | C173: 3335.65 | D173: 3350.80 | E173: 3305.95 | F173: 3276.25 | G173: 3231.40 | H173: 3380.50 | I173: 3425.35 | J173: 3455.05 | K173: 3395.65 | L173: 3321.1 | M173: 0.05586
A174: 164 | B174: GICRE | C174: 145.05 | D174: 143.32 | E174: 139.23 | F174: 133.42 | G174: 129.33 | H174: 149.13 | I174: 153.22 | J174: 159.03 | K174: 147.4 | L174: 137.5 | M174: 69.73381
A175: 165 | B175: GILLETTE | C175: 5898.95 | D175: 5924.15 | E175: 5859.80 | F175: 5820.65 | G175: 5756.30 | H175: 5963.30 | I175: 6027.65 | J175: 6066.80 | K175: 5988.5 | L175: 5885 | M175: 0.0472
A176: 166 | B176: GLAND | C176: 3719.9 | D176: 3717.32 | E176: 3674.58 | F176: 3629.27 | G176: 3586.53 | H176: 3762.63 | I176: 3805.37 | J176: 3850.68 | K176: 3760.05 | L176: 3672 | M176: 1.68438
A177: 167 | B177: GLAXO | C177: 1480.75 | D177: 1485.57 | E177: 1473.23 | F177: 1465.72 | G177: 1453.38 | H177: 1493.08 | I177: 1505.42 | J177: 1512.93 | K177: 1497.9 | L177: 1478.05 | M177: 0.5991
A178: 168 | B178: GLENMARK | C178: 510.45 | D178: 511.92 | E178: 505.18 | F178: 499.92 | G178: 493.18 | H178: 517.18 | I178: 523.92 | J178: 529.18 | K178: 518.65 | L178: 506.65 | M178: 23.13759
A179: 169 | B179: GODFRYPHLP | C179: 1195.7 | D179: 1190.30 | E179: 1155.70 | F179: 1115.70 | G179: 1081.10 | H179: 1230.30 | I179: 1264.90 | J179: 1304.90 | K179: 1224.9 | L179: 1150.3 | M179: 7.6208
A180: 170 | B180: GODREJAGRO | C180: 640 | D180: 638.00 | E180: 622.00 | F180: 604.00 | G180: 588.00 | H180: 656.00 | I180: 672.00 | J180: 690.00 | K180: 654 | L180: 620 | M180: 2.01719
A181: 171 | B181: GODREJCP | C181: 1029.9 | D181: 1025.87 | E181: 1014.98 | F181: 1000.07 | G181: 989.18 | H181: 1040.78 | I181: 1051.67 | J181: 1066.58 | K181: 1036.75 | L181: 1010.95 | M181: 13.84361
A182: 172 | B182: GODREJIND | C182: 579.15 | D182: 579.35 | E182: 574.30 | F182: 569.45 | G182: 564.40 | H182: 584.20 | I182: 589.25 | J182: 594.10 | K182: 584.4 | L182: 574.5 | M182: 1.88016
A183: 173 | B183: GODREJPROP | C183: 2311.9 | D183: 2317.23 | E183: 2284.67 | F183: 2257.43 | G183: 2224.87 | H183: 2344.47 | I183: 2377.03 | J183: 2404.27 | K183: 2349.8 | L183: 2290 | M183: 23.56351
A184: 174 | B184: GRANULES | C184: 320.35 | D184: 321.70 | E184: 318.65 | F184: 316.95 | G184: 313.90 | H184: 323.40 | I184: 326.45 | J184: 328.15 | K184: 324.75 | L184: 320 | M184: 11.72171
A185: 175 | B185: GRAPHITE | C185: 604.55 | D185: 612.12 | E185: 595.23 | F185: 585.92 | G185: 569.03 | H185: 621.43 | I185: 638.32 | J185: 647.63 | K185: 629 | L185: 602.8 | M185: 5.86808
A186: 176 | B186: GRASIM | C186: 1669.45 | D186: 1674.58 | E186: 1654.87 | F186: 1640.28 | G186: 1620.57 | H186: 1689.17 | I186: 1708.88 | J186: 1723.47 | K186: 1694.3 | L186: 1660 | M186: 10.7754
A187: 177 | B187: GESHIP | C187: 368.7 | D187: 369.83 | E187: 363.97 | F187: 359.23 | G187: 353.37 | H187: 374.57 | I187: 380.43 | J187: 385.17 | K187: 375.7 | L187: 365.1 | M187: 3.55505
A188: 178 | B188: GREAVESCOT | C188: 137.25 | D188: 138.07 | E188: 135.83 | F188: 134.42 | G188: 132.18 | H188: 139.48 | I188: 141.72 | J188: 143.13 | K188: 140.3 | L188: 136.65 | M188: 10.35855
A189: 179 | B189: GRINDWELL | C189: 1372.65 | D189: 1390.12 | E189: 1350.23 | F189: 1327.82 | G189: 1287.93 | H189: 1412.53 | I189: 1452.42 | J189: 1474.83 | K189: 1430 | L189: 1367.7 | M189: 0.77254
A190: 180 | B190: GUJALKALI | C190: 672.75 | D190: 672.63 | E190: 657.27 | F190: 641.78 | G190: 626.42 | H190: 688.12 | I190: 703.48 | J190: 718.97 | K190: 688 | L190: 657.15 | M190: 8.35644
A191: 181 | B191: GAEL | C191: 173.25 | D191: 174.25 | E191: 171.10 | F191: 168.95 | G191: 165.80 | H191: 176.40 | I191: 179.55 | J191: 181.70 | K191: 177.4 | L191: 172.1 | M191: 2.14238
A192: 182 | B192: FLUOROCHEM | C192: 1911.35 | D192: 1901.13 | E192: 1878.27 | F192: 1845.18 | G192: 1822.32 | H192: 1934.22 | I192: 1957.08 | J192: 1990.17 | K192: 1924 | L192: 1868.05 | M192: 4.81345
A193: 183 | B193: GUJGASLTD | C193: 637.45 | D193: 633.17 | E193: 626.58 | F193: 615.72 | G193: 609.13 | H193: 644.03 | I193: 650.62 | J193: 661.48 | K193: 639.75 | L193: 622.3 | M193: 22.29385
A194: 184 | B194: GNFC | C194: 434.25 | D194: 437.12 | E194: 428.13 | F194: 422.02 | G194: 413.03 | H194: 443.23 | I194: 452.22 | J194: 458.33 | K194: 446.1 | L194: 431 | M194: 13.15804
A195: 185 | B195: GPPL | C195: 110.6 | D195: 109.33 | E195: 106.82 | F195: 103.03 | G195: 100.52 | H195: 113.12 | I195: 115.63 | J195: 119.42 | K195: 111.85 | L195: 105.55 | M195: 39.44707
A196: 186 | B196: GSFC | C196: 129.25 | D196: 130.27 | E196: 127.53 | F196: 125.82 | G196: 123.08 | H196: 131.98 | I196: 134.72 | J196: 136.43 | K196: 133 | L196: 128.55 | M196: 46.55749
A197: 187 | B197: GSPL | C197: 316 | D197: 318.05 | E197: 310.45 | F197: 304.90 | G197: 297.30 | H197: 323.60 | I197: 331.20 | J197: 336.75 | K197: 325.65 | L197: 312.5 | M197: 13.92816
A198: 188 | B198: GULFOILLUB | C198: 584.2 | D198: 586.57 | E198: 580.63 | F198: 577.07 | G198: 571.13 | H198: 590.13 | I198: 596.07 | J198: 599.63 | K198: 592.5 | L198: 583 | M198: 0.51316
A199: 189 | B199: HEG | C199: 2248 | D199: 2276.67 | E199: 2213.33 | F199: 2178.67 | G199: 2115.33 | H199: 2311.33 | I199: 2374.67 | J199: 2409.33 | K199: 2340 | L199: 2242 | M199: 1.41189
A200: 190 | B200: HCLTECH | C200: 1279.55 | D200: 1279.95 | E200: 1268.45 | F200: 1257.35 | G200: 1245.85 | H200: 1291.05 | I200: 1302.55 | J200: 1313.65 | K200: 1291.45 | L200: 1268.85 | M200: 35.89722
A201: 191 | B201: HDFCAMC | C201: 2908.6 | D201: 2915.92 | E201: 2897.83 | F201: 2887.07 | G201: 2868.98 | H201: 2926.68 | I201: 2944.77 | J201: 2955.53 | K201: 2934 | L201: 2905.15 | M201: 5.75176
A202: 192 | B202: HDFCBANK | C202: 1594.95 | D202: 1594.80 | E202: 1583.25 | F202: 1571.55 | G202: 1560.00 | H202: 1606.50 | I202: 1618.05 | J202: 1629.75 | K202: 1606.35 | L202: 1583.1 | M202: 79.87674
A203: 193 | B203: HDFCLIFE | C203: 722.4 | D203: 727.70 | E203: 715.40 | F203: 708.40 | G203: 696.10 | H203: 734.70 | I203: 747.00 | J203: 754.00 | K203: 740 | L203: 720.7 | M203: 32.35673
A204: 194 | B204: HFCL | C204: 71.4 | D204: 71.87 | E204: 70.53 | F204: 69.67 | G204: 68.33 | H204: 72.73 | I204: 74.07 | J204: 74.93 | K204: 73.2 | L204: 71 | M204: 14.98776
A205: 195 | B205: HAPPSTMNDS | C205: 1379.95 | D205: 1383.32 | E205: 1371.63 | F205: 1363.32 | G205: 1351.63 | H205: 1391.63 | I205: 1403.32 | J205: 1411.63 | K205: 1395 | L205: 1375 | M205: 1.47078
A206: 196 | B206: HATSUN | C206: 1409.35 | D206: 1416.75 | E206: 1393.60 | F206: 1377.85 | G206: 1354.70 | H206: 1432.50 | I206: 1455.65 | J206: 1471.40 | K206: 1439.9 | L206: 1401 | M206: 0.72629
... 321 more rows

Sheet Bulk Deals
E6: Back To Main Page
A7: Subject : | B7: BULK DEAL | D7: =Main!B10 -> 2021-10-01
A9: Date | B9: Scrip code | C9: Scrip Name | D9: Client Name | E9: Buy / Sell | F9: Quantity Traded | G9: Trade Price / Wt.Avg.trade price | H9: Exchange
A10: 2021-09-30 | B10: 540694 | C10: ANG | D10: WAYS VINIMAY PRIVATE LIMITED | E10: SELL | F10: 32,000 | G10: 349.55 | H10: BSE
A11: 2021-09-30 | B11: 533095 | C11: BENGALASM | D11: NAVBHARAT VANIJYA LIMITED | E11: BUY | F11: 97,000 | G11: 2300 | H11: BSE
A12: 2021-09-30 | B12: 533095 | C12: BENGALASM | D12: J K CREDIT & FINANCE LIMITED | E12: BUY | F12: 188,000 | G12: 2300 | H12: BSE
A13: 2021-09-30 | B13: 533095 | C13: BENGALASM | D13: HARI SHANKAR SINGHANIA HOLDINGS PRIVATE LIMITED | E13: SELL | F13: 325,000 | G13: 2299.94 | H13: BSE
A14: 2021-09-30 | B14: 543209 | C14: BILLWIN | D14: SUJATA PILINJA RAO | E14: SELL | F14: 12,000 | G14: 19 | H14: BSE
A15: 2021-09-30 | B15: 530427 | C15: CHOKSI | D15: AKSHOBHYA HEALTH CARE PRIVATE LIMITED | E15: BUY | F15: 27,500 | G15: 41.57 | H15: BSE
A16: 2021-09-30 | B16: 530427 | C16: CHOKSI | D16: RATNA GAURAV CHOKSI | E16: SELL | F16: 34,260 | G16: 41.21 | H16: BSE
A17: 2021-09-30 | B17: 530457 | C17: CINERAD | D17: TALLURI NARASIMHA RAO | E17: BUY | F17: 30,000 | G17: 2.08 | H17: BSE
A18: 2021-09-30 | B18: 530457 | C18: CINERAD | D18: PREMJI BHURALAL GALA | E18: SELL | F18: 29,798 | G18: 2.08 | H18: BSE
A19: 2021-09-30 | B19: 540811 | C19: DML | D19: KINGSMAN WEALTH MANAGEMENT PRIVATE LIMITED | E19: BUY | F19: 50,000 | G19: 12 | H19: BSE
A20: 2021-09-30 | B20: 532022 | C20: FILATFASH | D20: NEETA SHRINIVAS ZANVAR | E20: SELL | F20: 672,336 | G20: 2.97 | H20: BSE
A21: 2021-09-30 | B21: 532022 | C21: FILATFASH | D21: MITHUN SECURITIES PRIVATE LIMITED | E21: BUY | F21: 500,000 | G21: 2.97 | H21: BSE
A22: 2021-09-30 | B22: 539083 | C22: INOXWIND | D22: DEVANSH TRADEMART LLP | E22: SELL | F22: 1,993,393 | G22: 98.91 | H22: BSE
A23: 2021-09-30 | B23: 539083 | C23: INOXWIND | D23: NEOMILE CORPORATE ADVISORY PRIVATE LIMITED | E23: BUY | F23: 1,750,000 | G23: 98.9 | H23: BSE
A24: 2021-09-30 | B24: 536868 | C24: INTELSOFT | D24: CHIMMAN LAL AGRAWAL | E24: SELL | F24: 350,000 | G24: 63.1 | H24: BSE
A25: 2021-09-30 | B25: 538896 | C25: KANCHI | D25: MADRAS PARAMESWARAN MANOJ MAHADEV | E25: BUY | F25: 25,294 | G25: 917.87 | H25: BSE
A26: 2021-09-30 | B26: 534422 | C26: LOOKS | D26: PARESH DHIRAJLAL SHAH | E26: BUY | F26: 75,000 | G26: 22.83 | H26: BSE
A27: 2021-09-30 | B27: 505523 | C27: MAHACORP | D27: MOHANRAMESH | E27: BUY | F27: 1,830,892 | G27: 0.51 | H27: BSE
A28: 2021-09-30 | B28: 505523 | C28: MAHACORP | D28: MOHANRAMESH | E28: SELL | F28: 218,383 | G28: 0.52 | H28: BSE
A29: 2021-09-30 | B29: 505523 | C29: MAHACORP | D29: SAT PAUL SACHDEVA | E29: SELL | F29: 2,100,000 | G29: 0.51 | H29: BSE
A30: 2021-09-30 | B30: 526622 | C30: MFLINDIA | D30: KAMLESH NAVINCHANDRA SHAH | E30: BUY | F30: 1,894,855 | G30: 0.37 | H30: BSE
A31: 2021-09-30 | B31: 526622 | C31: MFLINDIA | D31: KAMLESH NAVINCHANDRA SHAH | E31: SELL | F31: 1,894,855 | G31: 0.37 | H31: BSE
A32: 2021-09-30 | B32: 526622 | C32: MFLINDIA | D32: SHEETAL THUKRAL | E32: SELL | F32: 5,619,450 | G32: 0.37 | H32: BSE
A33: 2021-09-30 | B33: 539767 | C33: MNIL | D33: KABIR SHRAN DAGAR | E33: BUY | F33: 22,849 | G33: 14.02 | H33: BSE
A34: 2021-09-30 | B34: 539767 | C34: MNIL | D34: KABIR SHRAN DAGAR | E34: SELL | F34: 79,524 | G34: 14.01 | H34: BSE
A35: 2021-09-30 | B35: 539767 | C35: MNIL | D35: CHIRAG ARORA | E35: SELL | F35: 25,000 | G35: 14 | H35: BSE
A36: 2021-09-30 | B36: 539767 | C36: MNIL | D36: DEEPAK KUMAR | E36: BUY | F36: 64,865 | G36: 14 | H36: BSE
A37: 2021-09-30 | B37: 543282 | C37: NIKSTECH | D37: NAVINSHUKLA | E37: BUY | F37: 2,400 | G37: 208.25 | H37: BSE
A38: 2021-09-30 | B38: 543282 | C38: NIKSTECH | D38: MRADUL PASTOR | E38: BUY | F38: 2,400 | G38: 203 | H38: BSE
A39: 2021-09-30 | B39: 543282 | C39: NIKSTECH | D39: SHERWOOD SECURITIES PVT LTD | E39: SELL | F39: 7,200 | G39: 205.83 | H39: BSE
A40: 2021-09-30 | B40: 526723 | C40: NTCIND | D40: POOJA SOHIL VORA | E40: BUY | F40: 72,596 | G40: 152.6 | H40: BSE
A41: 2021-09-30 | B41: 539291 | C41: OZONEWORLD | D41: DHARMENDER . | E41: SELL | F41: 21,370 | G41: 7.38 | H41: BSE
A42: 2021-09-30 | B42: 540027 | C42: PTIL | D42: VISHWAMANI MATAMANI TIWARI . | E42: BUY | F42: 100,000 | G42: 464.65 | H42: BSE
A43: 2021-09-30 | B43: 540027 | C43: PTIL | D43: CHITRA GANDHI | E43: SELL | F43: 91,127 | G43: 465 | H43: BSE
A44: 2021-09-30 | B44: 526823 | C44: RAJINFRA | D44: SURAJ GOVINDBHAI PRAJAPATI | E44: BUY | F44: 40,000 | G44: 8.55 | H44: BSE
A45: 2021-09-30 | B45: 526823 | C45: RAJINFRA | D45: PRIYANKBHAI VITTHALBHAI PRAJAPATI | E45: BUY | F45: 65,000 | G45: 8.55 | H45: BSE
A46: 2021-09-30 | B46: 526823 | C46: RAJINFRA | D46: RAMAMURTHY ARUNACHALAM | E46: SELL | F46: 46,000 | G46: 8.55 | H46: BSE
A47: 2021-09-30 | B47: 526823 | C47: RAJINFRA | D47: KISHORE KUMAR R | E47: SELL | F47: 114,000 | G47: 8.55 | H47: BSE
A48: 2021-09-30 | B48: 526823 | C48: RAJINFRA | D48: HEMANTSINGH NAHARSINGH JHALA | E48: BUY | F48: 36,128 | G48: 8.55 | H48: BSE
A49: 2021-09-30 | B49: 539760 | C49: RELICAB | D49: ARYAMAN BROKING LIMITED | E49: BUY | F49: 180,000 | G49: 30 | H49: BSE
A50: 2021-09-30 | B50: 539760 | C50: RELICAB | D50: EMRALD COMMERCIAL LIMITED | E50: BUY | F50: 42,000 | G50: 30 | H50: BSE
A51: 2021-09-30 | B51: 539760 | C51: RELICAB | D51: ARC FINANCE LIMITED | E51: BUY | F51: 582,000 | G51: 30 | H51: BSE
A52: 2021-09-30 | B52: 539760 | C52: RELICAB | D52: PARAG JAYANTILAL SHAH | E52: SELL | F52: 810,000 | G52: 30 | H52: BSE
A53: 2021-09-30 | B53: 539561 | C53: REMLIFE | D53: SHAH KETANKUMAR JAYANTILAL | E53: BUY | F53: 20,000 | G53: 128.75 | H53: BSE
A54: 2021-09-30 | B54: 539561 | C54: REMLIFE | D54: ZUBER TRADING LLP | E54: BUY | F54: 11 | G54: 129 | H54: BSE
A55: 2021-09-30 | B55: 539561 | C55: REMLIFE | D55: ZUBER TRADING LLP | E55: SELL | F55: 20,302 | G55: 128.75 | H55: BSE
A56: 2021-09-30 | B56: 502448 | C56: ROLLT | D56: ALPHA LEON ENTERPRISES LLP | E56: BUY | F56: 11,440,553 | G56: 2.83 | H56: BSE
A57: 2021-09-30 | B57: 502448 | C57: ROLLT | D57: ALPHA LEON ENTERPRISES LLP | E57: SELL | F57: 331,423 | G57: 3 | H57: BSE
A58: 2021-09-30 | B58: 502448 | C58: ROLLT | D58: W.LD. INVESTMENT PVT. LTD. | E58: SELL | F58: 20,000,000 | G58: 2.85 | H58: BSE
A59: 2021-09-30 | B59: 502448 | C59: ROLLT | D59: ASHWIN KAMDAR (HUF) | E59: BUY | F59: 4,000,000 | G59: 2.91 | H59: BSE
A60: 2021-09-30 | B60: 502448 | C60: ROLLT | D60: CNM FINVEST PRIVATE LIMITED | E60: BUY | F60: 1,900,000 | G60: 2.9 | H60: BSE
A61: 2021-09-30 | B61: 521240 | C61: SAMBANDAM | D61: GENERAL INSURANCE CORPORATION OF INDIA | E61: SELL | F61: 25,244 | G61: 201.82 | H61: BSE
A62: 2021-09-30 | B62: 540693 | C62: SHISHIND | D62: SUNILKUMAR DIPLAL SHAH | E62: BUY | F62: 73,970 | G62: 68.1 | H62: BSE
A63: 2021-09-30 | B63: 540693 | C63: SHISHIND | D63: PRABHULAL LALLUBHAI PAREKH | E63: SELL | F63: 77,285 | G63: 68.1 | H63: BSE
A64: 2021-09-30 | B64: 540079 | C64: SPRAYKING | D64: THAKERSIBHAI JADAVBHAI KOTADIA | E64: SELL | F64: 18,000 | G64: 27 | H64: BSE
A65: 2021-09-30 | B65: 540079 | C65: SPRAYKING | D65: KOTADIYA PULKIT RAJESHBHAI | E65: SELL | F65: 30,000 | G65: 26.9 | H65: BSE
A66: 2021-09-30 | B66: 540079 | C66: SPRAYKING | D66: PRAFUL RATILAL KOTHARI | E66: BUY | F66: 72,000 | G66: 26.96 | H66: BSE
A67: 2021-09-30 | B67: 540738 | C67: STL | D67: JAI AMBE TRADEXIM PRIVATE LIMITED | E67: SELL | F67: 54,000 | G67: 43.5 | H67: BSE
A68: 2021-09-30 | B68: 537582 | C68: UNISHIRE | D68: CHINTAN S SHAH | E68: SELL | F68: 170,000 | G68: 1.17 | H68: BSE
A69: 2021-09-30 | B69: 537582 | C69: UNISHIRE | D69: URMIL SATISHKUMAR SHAH | E69: SELL | F69: 280,000 | G69: 1.14 | H69: BSE
A70: 2021-09-30 | B70: 537582 | C70: UNISHIRE | D70: SRIHARSHAPOLAVARAPU | E70: BUY | F70: 130,000 | G70: 1.18 | H70: BSE
A71: 2021-09-30 | B71: 537582 | C71: UNISHIRE | D71: SRIHARSHAPOLAVARAPU | E71: SELL | F71: 20,000 | G71: 1.29 | H71: BSE
A72: 2021-09-30 | B72: AAKASH | C72: Aakash Exploration Ser L | D72: THERMO PADS PRIVATE LIMITED | E72: BUY | F72: 110,000 | G72: 235 | H72: NSE
A73: 2021-09-30 | B73: ASIAN-RE | C73: Asian Granito India-RE | D73: M/S. PRARTHANA ENTERPRISES | E73: BUY | F73: 782,507 | G73: 37.49 | H73: NSE
A74: 2021-09-30 | B74: ASIAN-RE | C74: Asian Granito India-RE | D74: SUNDARAM MUTUAL FUND | E74: BUY | F74: 168,128 | G74: 37.75 | H74: NSE
A75: 2021-09-30 | B75: BANSWRAS | C75: Banswara Syntex Limited | D75: COFIPALUX INVEST S.A. | E75: BUY | F75: 676,169 | G75: 153.2 | H75: NSE
A76: 2021-09-30 | B76: DSML | C76: Debock Sale Marketing Ltd | D76: RAMESH BHANDAPPA MUNNOLI | E76: BUY | F76: 90,000 | G76: 50.15 | H76: NSE
A77: 2021-09-30 | B77: DSML | C77: Debock Sale Marketing Ltd | D77: SATISH RAMSEVAK PANDEY | E77: BUY | F77: 42,000 | G77: 45.6 | H77: NSE
A78: 2021-09-30 | B78: DSML | C78: Debock Sale Marketing Ltd | D78: JILESH NAVIN CHHEDA | E78: BUY | F78: 42,000 | G78: 45.5 | H78: NSE
A79: 2021-09-30 | B79: GOLDTECH | C79: Goldstone Tech Ltd. | D79: LITTY THOMAS | E79: BUY | F79: 250,000 | G79: 29.45 | H79: NSE
A80: 2021-09-30 | B80: HISARMETAL | C80: Hisar Metal Ind. Limited | D80: DEEP AGARWAL | E80: BUY | F80: 27,522 | G80: 131.79 | H80: NSE
A81: 2021-09-30 | B81: IEX | C81: Indian Energy Exc Ltd | D81: XTX MARKETS LLP | E81: BUY | F81: 1,832,840 | G81: 652.34 | H81: NSE
A82: 2021-09-30 | B82: IRB | C82: IRB Infrastructure Develo | D82: XTX MARKETS LLP | E82: BUY | F82: 2,111,617 | G82: 204.12 | H82: NSE
A83: 2021-09-30 | B83: KIL-RE | C83: Kesoram Industries Ltd-RE | D83: TUSK INVESTMENT LIMITED | E83: BUY | F83: 705,000 | G83: 8.42 | H83: NSE
A84: 2021-09-30 | B84: MCLEODRUSS | C84: McLeod Russel India Ltd. | D84: EKTA CREDIT PVT. LTD. | E84: BUY | F84: 1,615,559 | G84: 34.87 | H84: NSE
A85: 2021-09-30 | B85: QUADPRO | C85: Quadpro ITeS Limited | D85: SMRUTIBEN SHREYANSBHAI SHAH | E85: BUY | F85: 216,000 | G85: 19.8 | H85: NSE
A86: 2021-09-30 | B86: REXPIPES | C86: Rex Pipes And Cables Ltd | D86: PRASHANT EQUITY MANAGEMENT PRIVATE LIMITED | E86: BUY | F86: 44,000 | G86: 38.65 | H86: NSE
A87: 2021-09-30 | B87: ROLLT | C87: Rollatainers Limited | D87: CNM FINVEST PRIVATE LIMITED | E87: BUY | F87: 3,100,000 | G87: 2.9 | H87: NSE
A88: 2021-09-30 | B88: SANGINITA | C88: Sanginita Chemicals Limit | D88: QE SECURITIES | E88: BUY | F88: 86,979 | G88: 25.8 | H88: NSE
A89: 2021-09-30 | B89: SANGINITA | C89: Sanginita Chemicals Limit | D89: SKYVEIL TRADE SOLUTIONS LLP | E89: BUY | F89: 112,002 | G89: 25.73 | H89: NSE
A90: 2021-09-30 | B90: SPENCERS | C90: Spencer's Retail Limited | D90: XTX MARKETS LLP | E90: BUY | F90: 493,394 | G90: 126.18 | H90: NSE
A91: 2021-09-30 | B91: SPENCERS | C91: Spencer's Retail Limited | D91: GRAVITON RESEARCH CAPITAL LLP | E91: BUY | F91: 456,859 | G91: 125.74 | H91: NSE
A92: 2021-09-30 | B92: SUPREMEENG | C92: Supreme Engineering Ltd | D92: VIKRAMKUMAR KARANRAJ SAKARIA HUF DAKSH CORPORATION | E92: BUY | F92: 497,177 | G92: 22.09 | H92: NSE
A93: 2021-09-30 | B93: SUPREMEENG | C93: Supreme Engineering Ltd | D93: PJS SECURITIES LLP | E93: BUY | F93: 500,000 | G93: 22.4 | H93: NSE
A94: 2021-09-30 | B94: ASALCBR | C94: Asso Alcohols & Brew Ltd | D94: GARNET TRADELINK PRIVATE LIMITED | E94: SELL | F94: 100,000 | G94: 451.68 | H94: NSE
A95: 2021-09-30 | B95: ASIAN-RE | C95: Asian Granito India-RE | D95: M/S. PRARTHANA ENTERPRISES | E95: SELL | F95: 1,965 | G95: 37.15 | H95: NSE
A96: 2021-09-30 | B96: BANSWRAS | C96: Banswara Syntex Limited | D96: KOTAK MAHINDRA (INTERNATIONAL) LIMITED | E96: SELL | F96: 680,000 | G96: 153.2 | H96: NSE
A97: 2021-09-30 | B97: BRIGHT | C97: Bright Solar Limited | D97: PIYUSHKUMAR THUMAR | E97: SELL | F97: 357,000 | G97: 4.83 | H97: NSE
A98: 2021-09-30 | B98: BTML | C98: Bodhi Tree Multimedia Ltd | D98: SUJATA PILINJA RAO | E98: SELL | F98: 7,200 | G98: 98.48 | H98: NSE
A99: 2021-09-30 | B99: DSML | C99: Debock Sale Marketing Ltd | D99: SATISH RAMSEVAK PANDEY | E99: SELL | F99: 54,000 | G99: 50.15 | H99: NSE
A100: 2021-09-30 | B100: DSML | C100: Debock Sale Marketing Ltd | D100: JILESH NAVIN CHHEDA | E100: SELL | F100: 42,000 | G100: 45.6 | H100: NSE
A101: 2021-09-30 | B101: DSML | C101: Debock Sale Marketing Ltd | D101: RAMESH BHANDAPPA MUNNOLI | E101: SELL | F101: 132,000 | G101: 46.11 | H101: NSE
A102: 2021-09-30 | B102: GOLDTECH | C102: Goldstone Tech Ltd. | D102: GOPAL KRISHAN KOTHARI | E102: SELL | F102: 100,000 | G102: 29.45 | H102: NSE
A103: 2021-09-30 | B103: HISARMETAL | C103: Hisar Metal Ind. Limited | D103: DEEP AGARWAL | E103: SELL | F103: 27,522 | G103: 130.24 | H103: NSE
A104: 2021-09-30 | B104: IEX | C104: Indian Energy Exc Ltd | D104: XTX MARKETS LLP | E104: SELL | F104: 1,869,706 | G104: 652.32 | H104: NSE
A105: 2021-09-30 | B105: IRB | C105: IRB Infrastructure Develo | D105: XTX MARKETS LLP | E105: SELL | F105: 2,122,809 | G105: 204.33 | H105: NSE
A106: 2021-09-30 | B106: JUSTDIAL | C106: Justdial Ltd. | D106: NALANDA INDIA EQUITY FUND LIMITED | E106: SELL | F106: 517,765 | G106: 991.44 | H106: NSE
A107: 2021-09-30 | B107: KIL-RE | C107: Kesoram Industries Ltd-RE | D107: STATE BANK OF INDIA | E107: SELL | F107: 735,113 | G107: 8.58 | H107: NSE
A108: 2021-09-30 | B108: KIL-RE | C108: Kesoram Industries Ltd-RE | D108: SOUTH INDIAN BANK LTD. | E108: SELL | F108: 400,000 | G108: 8.64 | H108: NSE
A109: 2021-09-30 | B109: KIL-RE | C109: Kesoram Industries Ltd-RE | D109: SOUTH INDIAN BANK | E109: SELL | F109: 400,000 | G109: 8.71 | H109: NSE
A110: 2021-09-30 | B110: MCLEODRUSS | C110: McLeod Russel India Ltd. | D110: NIRAJ RAJNIKANT SHAH | E110: SELL | F110: 1,256,543 | G110: 34.86 | H110: NSE
A111: 2021-09-30 | B111: REXPIPES | C111: Rex Pipes And Cables Ltd | D111: BHINWARAM | E111: SELL | F111: 108,000 | G111: 38.59 | H111: NSE
A112: 2021-09-30 | B112: REXPIPES | C112: Rex Pipes And Cables Ltd | D112: PRASHANT EQUITY MANAGEMENT PRIVATE LIMITED | E112: SELL | F112: 40,000 | G112: 40.43 | H112: NSE
A113: 2021-09-30 | B113: ROLLT | C113: Rollatainers Limited | D113: W L D INVESTMENT PVT LTD | E113: SELL | F113: 2,500,000 | G113: 2.9 | H113: NSE
A114: 2021-09-30 | B114: SANGINITA | C114: Sanginita Chemicals Limit | D114: QE SECURITIES | E114: SELL | F114: 86,979 | G114: 25.69 | H114: NSE
A115: 2021-09-30 | B115: SANGINITA | C115: Sanginita Chemicals Limit | D115: SKYVEIL TRADE SOLUTIONS LLP | E115: SELL | F115: 112,002 | G115: 25.77 | H115: NSE
A116: 2021-09-30 | B116: SPENCERS | C116: Spencer's Retail Limited | D116: GRAVITON RESEARCH CAPITAL LLP | E116: SELL | F116: 456,859 | G116: 125.7 | H116: NSE
A117: 2021-09-30 | B117: SPENCERS | C117: Spencer's Retail Limited | D117: XTX MARKETS LLP | E117: SELL | F117: 499,564 | G117: 126.08 | H117: NSE
A118: 2021-09-30 | B118: SUPREMEENG | C118: Supreme Engineering Ltd | D118: SANJAY R CHOWDHARI | E118: SELL | F118: 1,100,000 | G118: 22.08 | H118: NSE
A119: 2021-09-30 | B119: SUPREMEENG | C119: Supreme Engineering Ltd | D119: VIKRAMKUMAR KARANRAJ SAKARIA HUF DAKSH CORPORATION | E119: SELL | F119: 497,177 | G119: 22.5 | H119: NSE

Sheet Call Tracker (Equity & F&O)
M5: Back To Main Page
A6: Retail Research Technical Calls & Fundamental Performance Report for the month of Sep-2021
M7: =Main!B10 -> 2021-10-01
B8: Positional Call
A9: Sr.no | B9: Date | D9: Company | E9: Rec | F9: Rec Price | G9: Stop Loss*** | H9: Call Closed At | I9: Target | J9: Remark | K9: Profit / Loss per Share | L9: All charges | M9: Net Gain / Loss % | N9: Status | O9: Closed Date | P9: Market Closing Price
A10: 1 | B10: 2021-07-19 | D10: IGL | E10: Buy | F10: 547.5 | G10: 510 | H10: 568.00 | I10: 620-640 | J10: Profit of Rs.20.5/- | K10: =H10-F10 -> 20.5 | L10: =(F10*-0.7)/100 -> -3.83 | M10: =(K10+L10)/F10 -> 3.04% | N10: Successful | O10: 2021-09-06 | R10: H
A11: 2 | B11: 2021-07-20 | D11: IOC | E11: Buy | F11: 104.5 | G11: 96.5 | H11: 111.50 | I11: 120-122 | J11: Profit of Rs.7/- | K11: =H11-F11 -> 7 | L11: =(F11*-0.7)/100 -> -0.73 | M11: =(K11+L11)/F11 -> 6.00% | N11: Successful | O11: 2021-09-03 | R11: H
A12: 3 | B12: 2021-07-30 | D12: AMARAJABAT | E12: Buy | F12: 715 | G12: 675 | H12: 730.00 | I12: 780-800 | J12: Profit of Rs.15/- | K12: =H12-F12 -> 15 | L12: -5.01 | M12: =(K12+L12)/F12 -> 1.40% | N12: Successful | O12: 2021-09-03 | R12: H
A13: 4 | B13: 2021-08-13 | D13: MCX | E13: Buy | F13: 1500 | G13: 1415 | H13: 1,607.50 | I13: 1650-1680 | J13: Profit of Rs.107.5/- | K13: 107.5 | L13: -10.50 | M13: 6.47% | N13: Successful | O13: 2021-09-03 | R13: H
A14: 5 | B14: 2021-09-03 | D14: ALKYLAMINE | E14: Buy | F14: 4085 | G14: 3900 | H14: 3,900.00 | I14: 4400-4500 | J14: Loss of Rs.185/- | K14: -185 | L14: -28.60 | M14: -5.23% | N14: Unsuccessful | O14: 2021-09-16 | R14: H
A15: 6 | B15: 2021-09-03 | D15: JBCHEPHARM | E15: Buy | F15: 1670 | G15: 1570 | H15: 1,785.00 | I15: 1840-1880 | J15: Profit of Rs.115/- | K15: =H15-F15 -> 115 | L15: =(F15*-0.7)/100 -> -11.69 | M15: =(K15+L15)/F15 -> 6.19% | N15: Successful | O15: 2021-09-07 | R15: H
A16: 7 | B16: 2021-09-08 | D16: GLAXO | E16: Buy | F16: 1500 | G16: 1395 | H16: 1,600.00 | I16: 1650-1700 | J16: Profit of Rs.100/- | K16: 100 | L16: -10.50 | M16: 5.97% | N16: Successful | O16: 2021-09-16 | R16: H
A17: 8 | B17: 2021-09-13 | D17: HDFCAMC | E17: Buy | F17: 3205 | G17: 3000 | H17: 3,125.00 | I17: 3500-3600 | J17: Loss of Rs.80/- | K17: =H17-F17 -> -80 | L17: =(F17*-0.7)/100 -> -22.44 | M17: =(K17+L17)/F17 -> -3.20% | N17: Unsuccessful | O17: 2021-09-29 | R17: N
A18: 9 | B18: 2021-09-15 | D18: AKZOINDIA | E18: Buy | F18: 2195 | G18: 2080 | H18: 2,295.00 | I18: 2400-2500 | J18: Part Profit of Rs.100/- | K18: 100 | L18: -15.37 | M18: 3.86% | N18: Successful | O18: 2021-09-30 | P18: =VLOOKUP(D18,'MidCap Intra'!B11:C511,2,0) -> 2284.35 | R18: H
A19: 10 | B19: 2021-09-17 | D19: BANKBARODA | E19: Buy | F19: 84 | G19: 78 | H19: 78.85 | I19: 90-92 | J19: Loss of Rs.5.15/- | K19: =H19-F19 -> -5.15 | L19: =(F19*-0.7)/100 -> -0.59 | M19: =(K19+L19)/F19 -> -6.83% | N19: Unsuccessful | O19: 2021-09-16 | R19: H
A20: 11 | B20: 2021-09-21 | D20: GLAXO | E20: Buy | F20: 1500-1520 | G20: 1395 | I20: 1680-1720 | J20: Open | P20: =VLOOKUP(D20,'MidCap Intra'!B13:C513,2,0) -> 1480.75 | R20: H
A21: 12 | B21: 2021-09-24 | D21: JKCEMENT | E21: Buy | F21: 3110-3150 | G21: 2920 | I21: 3500-3600 | J21: Open | P21: =VLOOKUP(D21,'MidCap Intra'!B14:C514,2,0) -> 3107.75 | R21: H
A22: 13 | B22: 2021-09-27 | D22: IGL | E22: Buy | F22: 525-530 | G22: 495 | I22: 580-600 | J22: Open | P22: =VLOOKUP(D22,'MidCap Intra'!B15:C515,2,0) -> 533.1 | R22: H
A23: 14 | B23: 2021-09-27 | D23: CROMPTON | E23: Buy | F23: 470-475 | G23: 445 | I23: 530 | J23: Open | P23: =VLOOKUP(D23,'MidCap Intra'!B16:C516,2,0) -> 478.9 | R23: H
A24: 15 | B24: 2021-09-27 | D24: DALBHARAT | E24: Buy | F24: 2030-2050 | G24: 1895 | I24: 2300-2400 | J24: Open | P24: =VLOOKUP(D24,'MidCap Intra'!B17:C517,2,0) -> 2105.75 | R24: N
A25: 16 | B25: 2021-09-27 | D25: ENDURANCE | E25: Buy | F25: 1570-1590 | G25: 1490 | I25: 1750-1800 | J25: Open | P25: =VLOOKUP(D25,'MidCap Intra'!B18:C518,2,0) -> 1584.45 | R25: H
A26: 17 | B26: 2021-09-27 | D26: GSFC | E26: Buy | F26: 122 | G26: 115 | H26: 133.50 | I26: 135-137 | J26: Profit of Rs.11.5/- | K26: =H26-F26 -> 11.5 | L26: =(F26*-0.7)/100 -> -0.85 | M26: =(K26+L26)/F26 -> 8.73% | N26: Successful | O26: 2021-09-28 | R26: N
A27: 18 | B27: 2021-09-29 | D27: CAMS | E27: Buy | F27: 3250-3290 | G27: 3140 | I27: 3600-3700 | J27: Open | P27: =VLOOKUP(D27,'MidCap Intra'!B20:C520,2,0) -> 3034.55 | R27: H
A28: 19 | B28: 2021-09-29 | D28: INDIACEM | E28: Buy | F28: 191.5 | G28: 178 | H28: 201.00 | I28: 210 | J28: Part Profit of Rs.9.5/- | K28: =H28-F28 -> 9.5 | L28: =(F28*-0.7)/100 -> -1.34 | M28: =(K28+L28)/F28 -> 4.26% | N28: Successful | O28: 2021-09-30 | P28: =VLOOKUP(D28,'MidCap Intra'!B21:C521,2,0) -> 200.3 | R28: N
A34: CLBS = Closing Basis ***
A35: Dividend adjusted <> | F35: Reinitiated $
A36: Part book {} | F36: Revised stoploss #
B38: Momentum Call
A39: Sr.no | B39: Date | D39: Company | E39: Rec | F39: Rec Price | G39: Stop Loss | H39: Call Closed At | I39: Target | J39: Remark | K39: Profit / Loss per Share/Lot | L39: All charges | M39: Net Gain / Loss % | N39: Status | O39: Closed Date
A40: 1 | B40: 2021-08-20 | D40: AARTIIND | E40: Buy | F40: 934 | G40: 899 | H40: 902.5 | I40: 980-1000 | J40: Loss of Rs.31.5/- | K40: =H40-F40 -> -31.5 | L40: =(F40*-0.7)/100 -> -6.54 | M40: =(K40+L40)/F40 -> -4.07% | N40: Unsuccessful | O40: 2021-09-08 | R40: H
A41: 2 | B41: 2021-08-27 | D41: ZYDUSWELL | E41: Buy | F41: 2305 | G41: 2240 | H41: 2390 | I41: 2400-2420 | J41: Profit of Rs.85/- | K41: =H41-F41 -> 85 | L41: =(F41*-0.7)/100 -> -16.14 | M41: =(K41+L41)/F41 -> 2.99% | N41: Successful | O41: 2021-09-01 | R41: N
A42: 3 | B42: 2021-08-30 | D42: PEL | E42: Buy | F42: 2630 | G42: 2550 | H42: 2700 | I42: 2700-2750 | J42: Profit of Rs.70/- | K42: 70 | L42: -18.41 | M42: 1.96% | N42: Successful | O42: 2021-09-03 | R42: N
A43: 4 | B43: 2021-09-02 | D43: CANBK | E43: Buy | F43: 158.75 | G43: 154.5 | H43: 163.4 | I43: 165-167 | J43: Profit of Rs.4.65/- | K43: =H43-F43 -> 4.65 | L43: =(F43*-0.7)/100 -> -1.11 | M43: =(K43+L43)/F43 -> 2.23% | N43: Successful | O43: 2021-09-03 | R43: H
A44: 5 | B44: 2021-09-03 | D44: HDFCLIFE | E44: Buy | F44: 732.5 | G44: 714 | H44: 746 | I44: 760-770 | J44: Profit of Rs.13.5/- | K44: 13.5 | L44: -5.13 | M44: 1.14% | N44: Successful | O44: 2021-09-15 | R44: H
A45: 6 | B45: 2021-09-03 | D45: CAMLINFINE | E45: Buy | F45: 171.5 | G45: 166 | H45: 176.5 | I45: 182 | J45: Profit of Rs.5/- | K45: =H45-F45 -> 5 | L45: =(F45*-0.7)/100 -> -1.20 | M45: =(K45+L45)/F45 -> 2.22% | N45: Successful | O45: 2021-09-14 | R45: N
A46: 7 | B46: 2021-09-07 | D46: KOTAKBANK | E46: Buy | F46: 1757.5 | G46: 1710 | H46: 1766 | I46: 1820-1850 | J46: Profit of Rs.8.5/- | K46: =H46-F46 -> 8.5 | L46: =(F46*-0.07)/100 -> -1.23 | M46: =(K46+L46)/F46 -> 0.41% | N46: Neutral | O46: 2021-09-07 | R46: H
A47: 8 | B47: 2021-09-07 | D47: JBCHEPHARM | E47: Buy | F47: 1742.5 | G47: 1695 | H47: 1772.5 | I47: 1820-1850 | J47: Profit of Rs.30/- | K47: =H47-F47 -> 30 | L47: =(F47*-0.07)/100 -> -1.22 | M47: =(K47+L47)/F47 -> 1.65% | N47: Successful | O47: 2021-09-07 | R47: H
A48: 9 | B48: 2021-09-08 | D48: HEROMOTOCO | E48: Buy | F48: 2785 | G48: 2697 | H48: 2849 | I48: 2950-2980 | J48: Profit of Rs.64/- | K48: 64 | L48: =(F48*-0.7)/100 -> -19.50 | M48: 1.60% | N48: Successful | O48: 2021-09-14 | R48: H
A49: 10 | B49: 2021-09-09 | D49: AARTIIND | E49: Buy | F49: 904 | G49: 877 | H49: 930 | I49: 950-960 | J49: Profit of Rs.26/- | K49: =H49-F49 -> 26 | L49: =(F49*-0.7)/100 -> -6.33 | M49: =(K49+L49)/F49 -> 2.18% | N49: Successful | O49: 2021-09-13 | R49: H
A50: 11 | B50: 2021-09-13 | D50: JBCHEPHARM | E50: Buy | F50: 1737.5 | G50: 1690 | H50: 1767.5 | I50: 1820-1850 | J50: Profit of Rs.30/- | K50: =H50-F50 -> 30 | L50: =(F50*-0.07)/100 -> -1.22 | M50: =(K50+L50)/F50 -> 1.66% | N50: Successful | O50: 2021-09-13 | R50: N
A51: 12 | B51: 2021-09-13 | D51: AEGISCHEM | E51: Buy | F51: 241 | G51: 234 | H51: 245.25 | I51: 255 | J51: Profit of Rs.4.25/- | K51: =H51-F51 -> 4.25 | L51: =(F51*-0.07)/100 -> -0.17 | M51: =(K51+L51)/F51 -> 1.69% | N51: Successful | O51: 2021-09-13 | R51: H
A52: 13 | B52: 2021-09-13 | D52: THERMAX | E52: Buy | F52: 1410 | G52: 1375 | H52: 1429 | I52: 1450-1470 | J52: Profit of Rs.19/- | K52: =H52-F52 -> 19 | L52: =(F52*-0.07)/100 -> -0.99 | M52: =(K52+L52)/F52 -> 1.28% | N52: Successful | O52: 2021-09-13 | R52: H
A53: 14 | B53: 2021-09-13 | D53: KSCL | E53: Buy | F53: 604 | G53: 590 | H53: 590 | I53: 630-640 | J53: Loss of Rs.14/- | K53: -14 | L53: =(F53*-0.7)/100 -> -4.23 | M53: -3.02% | N53: Unsuccessful | O53: 2021-09-21 | R53: H
A54: 15 | B54: 2021-09-14 | D54: JBCHEPHARM | E54: Buy | F54: 1737.5 | G54: 1690 | H54: 1775 | I54: 1820-1850 | J54: Profit of Rs.37.5/- | K54: 37.5 | L54: -12.16 | M54: 1.46% | N54: Successful | O54: 2021-09-24 | R54: H
A55: 16 | B55: 2021-09-15 | D55: BANKBARODA | E55: Buy | F55: 80.3 | G55: 78 | H55: 81.85 | I55: 83-84 | J55: Profit of Rs.1.55/- | K55: =H55-F55 -> 1.55 | L55: =(F55*-0.07)/100 -> -0.06 | M55: =(K55+L55)/F55 -> 1.86% | N55: Successful | O55: 2021-09-15 | R55: H
A56: 17 | B56: 2021-09-16 | D56: BANKINDIA | E56: Buy | F56: 57.75 | G56: 55 | H56: 58.9 | I56: 60-61 | J56: Profit of Rs.1.15/- | K56: =H56-F56 -> 1.15 | L56: =(F56*-0.07)/100 -> -0.04 | M56: =(K56+L56)/F56 -> 1.92% | N56: Successful | O56: 2021-09-16 | R56: H
A57: 18 | B57: 2021-09-16 | D57: IDFCFIRST | E57: Buy | F57: 49.6 | G57: 48 | H57: 50.7 | I57: 52 | J57: Profit of Rs.1.10/- | K57: =H57-F57 -> 1.1 | L57: =(F57*-0.07)/100 -> -0.03 | M57: =(K57+L57)/F57 -> 2.15% | N57: Successful | O57: 2021-09-16 | R57: H
A58: 19 | B58: 2021-09-16 | D58: IDBI | E58: Buy | F58: 40.05 | G58: 38.8 | H58: 41.5 | I58: 42-42.5 | J58: Profit of Rs.1.45/- | K58: 1.45 | L58: -0.03 | M58: 3.55% | N58: Successful | O58: 2021-09-16 | R58: H
A59: 20 | B59: 2021-09-16 | D59: AEGISCHEM | E59: Buy | F59: 240.5 | G59: 234 | H59: 233 | I59: 250-255 | J59: Loss of Rs.7/- | K59: -7.5 | L59: =(F59*-0.7)/100 -> -1.68 | M59: -3.82% | N59: Unsuccessful | O59: 2021-09-17 | R59: H
A60: 21 | B60: 2021-09-17 | D60: IDFCFIRSTB | E60: Buy | F60: 49.5 | G60: 48 | H60: 49.6 | I60: 52 | J60: Profit of Rs.0.10/- | K60: 0.1 | L60: =(F60*-0.7)/100 -> -0.35 | M60: -0.50% | N60: Neutral | O60: 2021-09-20 | R60: H
A61: 22 | B61: 2021-09-17 | D61: ITC | E61: Buy | F61: 230 | G61: 224 | H61: 236.5 | I61: 240-242 | J61: Profit of Rs.6.5/- | K61: 6.5 | L61: =(F61*-0.7)/100 -> -1.61 | M61: 2.13% | N61: Successful | O61: 2021-09-20 | R61: H
A62: 23 | B62: 2021-09-21 | D62: TATAMTRDVR | E62: Buy | F62: 144.5 | G62: 139.5 | H62: 147.25 | I62: 150-152 | J62: Profit of Rs.2.75/- | K62: =H62-F62 -> 2.75 | L62: =(F62*-0.07)/100 -> -0.10 | M62: =(K62+L62)/F62 -> 1.83% | N62: Successful | O62: 2021-09-21 | R62: H
A63: 24 | B63: 2021-09-22 | D63: GNFC | E63: Buy | F63: 395 | G63: 383 | H63: 405 | I63: 410-415 | J63: Profit of Rs.10/- | K63: 10 | L63: =(F63*-0.7)/100 -> -2.77 | M63: 1.83% | N63: Successful | O63: 2021-09-24 | R63: N
A64: 25 | B64: 2021-09-23 | D64: COLPAL | E64: Buy | F64: 1704-1710 | G64: 1670 | I64: 1760-1780 | J64: Open | R64: H
A65: 26 | B65: 2021-09-23 | D65: HDFCLIFE | E65: Buy | F65: 722 | G65: 699 | H65: 740 | I65: 755-765 | J65: Profit of Rs.18/- | K65: =H65-F65 -> 18 | L65: =(F65*-0.7)/100 -> -5.05 | M65: =(K65+L65)/F65 -> 1.79% | N65: Successful | O65: 2021-09-30 | R65: H
A66: 27 | B66: 2021-09-27 | D66: GLENMARK | E66: Buy | F66: 502 | G66: 487 | H66: 514.5 | I66: 530-540 | J66: Profit of Rs.12.5/- | K66: =H66-F66 -> 12.5 | L66: =(F66*-0.7)/100 -> -3.51 | M66: =(K66+L66)/F66 -> 1.79% | N66: Successful | O66: 2021-09-29 | R66: H
A67: 28 | B67: 2021-09-28 | D67: TATASTEEL | E67: Sell | F67: 1286 | G67: 1316 | H67: 1263 | I67: 1240-1220 | J67: Profit of Rs.23/- | K67: =F67-H67 -> 23 | L67: =(F67*-0.07)/100 -> -0.90 | M67: =(K67+L67)/F67 -> 1.72% | N67: Successful | O67: 2021-09-28 | R67: H
A68: 29 | B68: 2021-09-28 | D68: LAURUSLABS | E68: Buy | F68: 592.5 | G68: 575 | H68: 609 | I68: 615-625 | J68: Profit of Rs.16.5/- | K68: =H68-F68 -> 16.5 | L68: =(F68*-0.7)/100 -> -4.15 | M68: 2.08% | N68: Successful | O68: 2021-09-30 | R68: H
A77: CLBS = Closing Basis *** | H77: *
A78: Dividend adjusted <> | F78: Reinitiated $
F79: Revised stoploss #
A81: Master Trade High Risk
A82: Sr.no | B82: Date | D82: Company | E82: Rec | F82: Rec Price | G82: Stop Loss | H82: Call Closed At | I82: Target | J82: Remark | K82: Profit / Loss per share | L82: All charges | M82: Gain / Loss per Lot | N82: Lot | O82: Status | P82: Closed Date
A83: 1 | B83: 2021-08-31 | D83: TATACHEM SEP FUT | E83: Buy | F83: 847 | G83: 834 | H83: 855.5 | I83: 870 | J83: Profit of Rs.8.5/- | K83: =H83-F83 -> 8.5 | L83: =(H83*N83)*0.07% -> 598.85 | M83: =(K83*N83)-L83 -> 7901.2 | N83: 1000 | O83: Successful | P83: 2021-09-02 | R83: N
A84: 2 | B84: 2021-09-02 | D84: LT SEP FUT | E84: Sell | F84: 1703 | G84: 1724 | H84: 1689 | I84: 1660-1650 | J84: Profit of Rs.14/- | K84: =F84-H84 -> 14.00 | L84: 679.82 | M84: =(K84*N84)-L84 -> 7370.2 | N84: 575 | O84: Successful | P84: 2021-09-02 | R84: H
A85: 3 | B85: 2021-09-02 | D85: BATAINDIA SEP FUT | E85: Sell | F85: 1796 | G85: 1824 | H85: 1821 | I85: 1750 | J85: Loss of Rs.25/- | K85: =F85-H85 -> -25.00 | L85: =(H85*N85)*0.07% -> 701.09 | M85: =(K85*N85)-L85 -> -14451.1 | N85: 550 | O85: Unsuccessful | P85: 2021-09-02 | R85: H
A86: 4 | B86: 2021-09-02 | D86: NIFTY SEP FUT | E86: Sell | F86: 17155 | G86: 17340 | H86: 17340 | I86: 16900 | J86: Loss of Rs.185/- | K86: =F86-H86 -> -185.00 | L86: =(H86*N86)*0.07% -> 606.90 | M86: =(K86*N86)-L86 -> -9856.9 | N86: 50 | O86: Unsuccessful | P86: 2021-09-03 | R86: H
A87: 5 | B87: 2021-09-02 | D87: AARTIIND SEP FUT | E87: Buy | F87: 923.5 | G87: 907 | H87: 907 | I87: 945-955 | J87: Loss of Rs.16.5/- | K87: =H87-F87 -> -16.50 | L87: 539.67 | M87: -14564.7 | N87: 850 | O87: Unsuccessful | P87: 2021-09-07 | R87: N
A88: 6 | B88: 2021-09-06 | D88: LT SEP FUT | E88: Sell | F88: 1716 | G88: 1737 | H88: 1699 | I88: 1680-1670 | J88: Profit of Rs.17/- | K88: =F88-H88 -> 17.00 | L88: =(H88*N88)*0.07% -> 683.85 | M88: =(K88*N88)-L88 -> 9091.2 | N88: 575 | O88: Successful | P88: 2021-09-06 | R88: H
A89: 7 | B89: 2021-09-06 | D89: HDFCAMC SEP FUT | E89: Buy | F89: 3190 | G89: 3120 | H89: 3235 | I89: 3300-3330 | J89: Profit of Rs.45/- | K89: =H89-F89 -> 45.00 | L89: 452.90 | M89: 8547.1 | N89: 200 | O89: Successful | P89: 2021-09-08 | R89: N
A90: 8 | B90: 2021-09-06 | D90: SIEMENS SEP FUT | E90: Buy | F90: 2251.5 | G90: 2205 | H90: 2205 | I90: 2320-2340 | J90: Loss of Rs.46.5/- | K90: =H90-F90 -> -46.50 | L90: =(H90*N90)*0.07% -> 424.46 | M90: =(K90*N90)-L90 -> -13212.0 | N90: 275 | O90: Unsuccessful | P90: 2021-09-08 | R90: N
A91: 9 | B91: 2021-09-06 | D91: TATACHEM SEP FUT | E91: Buy | F91: 840 | G91: 827 | H91: 827 | I91: 865 | J91: Loss of Rs.13/- | K91: =H91-F91 -> -13.00 | L91: =(H91*N91)*0.07% -> 578.90 | M91: =(K91*N91)-L91 -> -13578.9 | N91: 1000 | O91: Unsuccessful | P91: 2021-09-07 | R91: N
A92: 10 | B92: 2021-09-07 | D92: TCS SEP FUT | E92: Sell | F92: 3848 | G92: 3890 | H92: 3812.5 | I92: 3770 | J92: Profit of Rs.35.5/- | K92: =F92-H92 -> 35.50 | L92: 800.63 | M92: 9849.4 | N92: 300 | O92: Successful | P92: 2021-09-08 | R92: H
A93: 11 | B93: 2021-09-08 | D93: ITC SEP FUT | E93: Buy | F93: 212.25 | G93: 209 | H93: 215 | I93: 218-220 | J93: Profit of Rs.2.75/- | K93: =H93-F93 -> 2.75 | L93: 481.60 | M93: 8318.4 | N93: 3200 | O93: Successful | P93: 2021-09-13 | R93: H
A94: 12 | B94: 2021-09-08 | D94: COLPAL SEP FUT | E94: Buy | F94: 1708 | G94: 1670 | H94: 1732 | I94: 1760-1780 | J94: Profit of Rs.24/- | K94: =H94-F94 -> 24.00 | L94: =(H94*N94)*0.07% -> 424.34 | M94: =(K94*N94)-L94 -> 7975.7 | N94: 350 | O94: Successful | P94: 2021-09-09 | R94: N
A95: 13 | B95: 2021-09-13 | D95: COLPAL SEP FUT | E95: Buy | F95: 1735 | G95: 1695 | H95: 1695 | I95: 1800-1820 | J95: Loss of Rs.40/- | K95: -40.00 | L95: 415.28 | M95: -14415.3 | N95: 350 | O95: Unsuccessful | P95: 2021-09-24 | R95: N
A96: 14 | B96: 2021-09-15 | D96: LT SEP FUT | E96: Sell | F96: 1705.5 | G96: 1730 | H96: 1722 | I96: 1670-1660 | J96: Loss of Rs.16.5/- | K96: =F96-H96 -> -16.50 | L96: =(H96*N96)*0.07% -> 693.11 | M96: =(K96*N96)-L96 -> -10180.6 | N96: 575 | O96: Unsuccessful | P96: 2021-09-15 | R96: H
A97: 15 | B97: 2021-09-15 | D97: INDUSINDBK SEP FUT | E97: Buy | F97: 1031.5 | G97: 1018 | H97: 1041.5 | I97: 1055-1060 | J97: Profit of Rs.10/- | K97: =H97-F97 -> 10.00 | L97: 656.15 | M97: 8343.9 | N97: 900 | O97: Successful | P97: 2021-09-15 | R97: H
A98: 16 | B98: 2021-09-15 | D98: HDFCBANK SEP FUT | E98: Buy | F98: 1546 | G98: 1522 | H98: 1571 | I98: 1580-1590 | J98: Profit of Rs.25/- | K98: =H98-F98 -> 25.00 | L98: =(H98*N98)*0.07% -> 604.84 | M98: =(K98*N98)-L98 -> 13145.2 | N98: 550 | O98: Successful | P98: 2021-09-17 | R98: H
A99: 17 | B99: 2021-09-17 | D99: AARTIIND SEP FUT | E99: Buy | F99: 946 | G99: 931 | H99: 931 | I99: 975 | J99: Loss of Rs.15/- | K99: -15.00 | L99: 553.95 | M99: -13303.9 | N99: 850 | O99: Unsuccessful | P99: 2021-09-17 | R99: N
A100: 18 | B100: 2021-09-23 | D100: HDFCAMC SEP FUT | E100: Buy | F100: 3245 | G100: 3180 | H100: 3180 | I100: 3300-3350 | J100: Loss of Rs.65/- | K100: =H100-F100 -> -65.00 | L100: =(H100*N100)*0.07% -> 445.20 | M100: =(K100*N100)-L100 -> -13445.2 | N100: 200 | O100: Unsuccessful | P100: 2021-09-27 | R100: N
A101: 19 | B101: 2021-09-23 | D101: NIFTY SEP FUT | E101: Buy | F101: 17830 | G101: 17740 | H101: 17895 | I101: 18000 | J101: Profit of Rs.65/- | K101: =H101-F101 -> 65.00 | L101: =(H101*N101)*0.07% -> 626.33 | M101: =(K101*N101)-L101 -> 2623.7 | N101: 50 | O101: Successful | P101: 2021-09-24 | R101: H
A102: 20 | B102: 2021-09-24 | D102: ICICIBANK SEP FUT | E102: Buy | F102: 721.5 | G102: 712 | H102: 728.5 | I102: 740 | J102: Profit of Rs.7/- | K102: 7.00 | L102: 803.17 | M102: 10221.8 | N102: 1575 | O102: Successful | P102: 2021-09-27 | R102: N
A103: 21 | B103: 2021-09-27 | D103: UPL SEP FUT | E103: Buy | F103: 732.5 | G103: 722 | H103: 722 | I103: 750-755 | J103: Loss of Rs.10.50/- | K103: -10.50 | L103: 606.48 | M103: -13206.5 | N103: 1200 | O103: Unsuccessful | P103: 2021-09-28 | R103: H
A104: 22 | B104: 2021-09-28 | D104: ITC SEP FUT | E104: Buy | F104: 240.5 | G104: 235 | H104: 236.5 | I104: 250-252 | J104: Loss of Rs.4/- | K104: =H104-F104 -> -4.00 | L104: =(H104*N104)*0.07% -> 529.76 | M104: =(K104*N104)-L104 -> -13329.8 | N104: 3200 | O104: Unsuccessful | P104: 2021-09-30 | R104: H
A105: 23 | B105: 2021-09-28 | D105: ICICIBANK OCT FUT | E105: Sell | F105: 722 | G105: 734 | H105: 715 | I105: 700 | J105: Profit of Rs.7/- | K105: =F105-H105 -> 7.00 | L105: =(H105*N105)*0.07% -> 788.29 | M105: =(K105*N105)-L105 -> 10236.7 | N105: 1575 | O105: Successful | P105: 2021-09-28 | R105: H
A106: 24 | B106: 2021-09-28 | D106: SIEMENS OCT FUT | E106: Buy | F106: 2115 | G106: 2065 | H106: 2145 | I106: 2200 | J106: Profit of Rs.30/- | K106: =H106-F106 -> 30.00 | L106: =(H106*N106)*0.07% -> 412.91 | M106: =(K106*N106)-L106 -> 7837.1 | N106: 275 | O106: Successful | P106: 2021-09-29 | R106: N
A107: 25 | B107: 2021-09-29 | D107: IGL OCT FUT | E107: Buy | F107: 520.5 | G107: 510 | H107: 527 | I107: 540 | J107: Profit of Rs.6.50/- | K107: 6.50 | L107: 507.24 | M107: 8430.3 | N107: 1375 | O107: Successful | P107: 2021-09-30 | R107: H
A108: 26 | B108: 2021-09-30 | D108: HDFCBANK OCT FUT | E108: Buy | F108: 1596-1599 | G108: 1575 | I108: 1640 | J108: Open | R108: H
A109: 27 | B109: 2021-09-30 | D109: HDFCLIFE OCT FUT | E109: Buy | F109: 727-728 | G109: 717 | I109: 745 | J109: Open | R109: H
A115: Master Trade Medium Risk
A116: Sr.no | B116: Date | D116: Company | E116: Rec | F116: Rec Price | G116: Stop Loss | H116: Call Closed At | I116: Target | J116: Remark | K116: Profit/ Loss per lot | L116: All charges | M116: Gain / Loss per Lot | N116: Lot | O116: Status | P116: Closed Date
A117: 1 | B117: 2021-08-30 | D117: BANKNIFTY 36000 PE 2-SEP | E117: Buy | F117: 135 | G117: 0 | H117: 0 | I117: 250-300 | J117: Loss of Rs.135/- | K117: =H117-F117 -> -135.00 | L117: 100.00 | M117: =(K117*N117)-100 -> -3475 | N117: 25 | O117: Unsuccessful | P117: 2021-09-02 | R117: N
A118: 2 | B118: 2021-08-31 | D118: RELIANCE 2300 CE SEP | E118: Buy | F118: 38 | G118: 19 | H118: 45 | I118: 65-75 | J118: Profit of Rs.7/- | K118: =H118-F118 -> 7.00 | L118: 100.00 | M118: =(K118*N118)-100 -> 1650 | N118: 250 | O118: Successful | P118: 2021-09-01 | R118: N
A119: 3 | B119: 2021-08-31 | D119: NIFTY 17000 PE 2-SEP | E119: Buy | F119: 67.5 | G119: 20 | H119: 20 | I119: 120-130 | J119: Loss of Rs.47.5/- | K119: =H119-F119 -> -47.50 | L119: 100.00 | M119: =(K119*N119)-100 -> -2475 | N119: 50 | O119: Unsuccessful | P119: 2021-09-01 | R119: N
A120: 4 | B120: 2021-09-01 | D120: NIFTY 17500 CE 16-SEP | E120: Sell | F120: 86 | G120: 124 | H120: 62 | I120: 0.1 | J120: Profit of Rs.24/- | K120: =F120-H120 -> 24.00 | L120: 100.00 | M120: =(K120*N120)-100 -> 1100 | N120: 50 | O120: Successful | P120: 2021-09-01 | R120: H
A121: 5 | B121: 2021-09-01 | D121: NIFTY 17100 PE 2-SEP | E121: Buy | F121: 53.5 | G121: 14 | H121: 67.5 | I121: 100-110 | J121: Profit of Rs.14/- | K121: =H121-F121 -> 14.00 | L121: 100.00 | M121: 600 | N121: 50 | O121: Successful | P121: 2021-09-01 | R121: H
A122: 6 | B122: 2021-09-01 | D122: NIFTY 17100 PE 2-SEP | E122: Buy | F122: 50 | G122: 14 | H122: 67.5 | I122: 100-110 | J122: Profit of Rs.17.5/- | K122: 17.50 | L122: 100.00 | M122: 775 | N122: 50 | O122: Successful | P122: 2021-09-01 | R122: H
A123: 7 | B123: 2021-09-01 | D123: NIFTY 17150 PE 2-SEP | E123: Buy | F123: 63.5 | G123: 14 | H123: 80 | I123: 100-120 | J123: Profit of Rs.16.5/- | K123: 16.50 | L123: 100.00 | M123: 725 | N123: 50 | O123: Successful | P123: 2021-09-01 | R123: H
A124: 8 | B124: 2021-09-01 | D124: EXIDEIND 165 PE SEP | E124: Buy | F124: 3.45 | G124: 2 | H124: 2.35 | I124: 5.0-6.0 | J124: Loss of Rs.1.10/- | K124: -1.10 | L124: 100.00 | M124: -4060 | N124: 3600 | O124: Unsuccessful | P124: 2021-09-02 | R124: H
A125: 9 | B125: 2021-09-02 | D125: NIFTY 17150 PE 2-SEP | E125: Buy | F125: 56.5 | G125: 14 | H125: 69 | I125: 100-120 | J125: Profit of Rs.12.5/- | K125: =H125-F125 -> 12.50 | L125: 100.00 | M125: =(K125*N125)-100 -> 525 | N125: 50 | O125: Successful | P125: 2021-09-02 | R125: H
A126: 10 | B126: 2021-09-02 | D126: NIFTY 17200 PE 2-SEP | E126: Buy | F126: 47 | G126: 14 | H126: 14 | I126: 80-90 | J126: Loss of Rs.33/- | K126: -33.00 | L126: 100.00 | M126: -1750 | N126: 50 | O126: Unsuccessful | P126: 2021-09-02 | R126: H
A127: 11 | B127: 2021-09-02 | D127: HDFC 2700 PE SEP | E127: Buy | F127: 31 | G127: 15 | H127: 17 | I127: 50-60 | J127: Loss of Rs.14/- | K127: =H127-F127 -> -14.00 | L127: 100.00 | M127: =(K127*N127)-100 -> -4300 | N127: 300 | O127: Unsuccessful | P127: 2021-09-07 | R127: N
A128: 12 | B128: 2021-09-03 | D128: NIFTY 17500 CE 30-SEP | E128: Sell | F128: 127.5 | G128: 210 | H128: 100 | I128: 0.1 | J128: Profit of Rs.27.50/- | K128: =F128-H128 -> 27.50 | L128: 100.00 | M128: 1275 | N128: 50 | O128: Successful | P128: 2021-09-13 | R128: H
A129: 13 | B129: 2021-09-06 | D129: NIFTY 17300 PE 9-SEP | E129: Buy | F129: 61 | G129: 14 | H129: 75 | I129: 120-140 | J129: Profit of Rs.14/- | K129: =H129-F129 -> 14.00 | L129: 100.00 | M129: =(K129*N129)-100 -> 600 | N129: 50 | O129: Successful | P129: 2021-09-06 | R129: H
A130: 14 | B130: 2021-09-06 | D130: M&M 740 PE SEP | E130: Buy | F130: 15 | G130: 8 | H130: 18.15 | I130: 25-30 | J130: Profit of Rs.3.15/- | K130: =H130-F130 -> 3.15 | L130: 100.00 | M130: =(K130*N130)-100 -> 2105 | N130: 700 | O130: Successful | P130: 2021-09-13 | R130: H
A131: 15 | B131: 2021-09-06 | D131: INFY 1760 CE SEP | E131: Sell | F131: 18 | G131: 26 | H131: 25.5 | I131: 0.1 | J131: Loss of Rs.7.50/- | K131: =F131-H131 -> -7.50 | L131: 100.00 | M131: =(K131*N131)-100 -> -4600 | N131: 600 | O131: Unsuccessful | P131: 2021-09-06 | R131: H
A132: 16 | B132: 2021-09-06 | D132: NIFTY 17300 PE 9-SEP | E132: Buy | F132: 59.5 | G132: 14 | H132: 70 | I132: 120-140 | J132: Profit of Rs.10.5/- | K132: =H132-F132 -> 10.50 | L132: 100.00 | M132: 425 | N132: 50 | O132: Successful | P132: 2021-09-07 | R132: H
A133: 17 | B133: 2021-09-07 | D133: BANKNIFTY 36500 CE 16-SEP | E133: Buy | F133: 310 | G133: 130 | H133: 365 | I133: 650 | J133: Profit of Rs.55/- | K133: =H133-F133 -> 55.00 | L133: 100.00 | M133: =(K133*N133)-100 -> 1275 | N133: 25 | O133: Successful | P133: 2021-09-07 | R133: H
A134: 18 | B134: 2021-09-07 | D134: RELIANCE 2400 PE SEP | E134: Buy | F134: 47 | G134: 27 | H134: 52 | I134: 70-75 | J134: Profit of Rs.5/- | K134: 5.00 | L134: 100.00 | M134: 1150 | N134: 250 | O134: Successful | P134: 2021-09-08 | R134: H
A135: 19 | B135: 2021-09-07 | D135: NIFTY 17300 PE 9-SEP | E135: Buy | F135: 55 | G135: 14 | H135: 72 | I135: 120-140 | J135: Profit of Rs.17/- | K135: 17.00 | L135: 100.00 | M135: 750 | N135: 50 | O135: Successful | P135: 2021-09-08 | R135: H
A136: 20 | B136: 2021-09-08 | D136: KOTAKBANK 1840 CE SEP | E136: Buy | F136: 39 | G136: 27 | H136: 45 | I136: 55-60 | J136: Profit of Rs.6/- | K136: =H136-F136 -> 6.00 | L136: 100.00 | M136: =(K136*N136)-100 -> 2300 | N136: 400 | O136: Successful | P136: 2021-09-09 | R136: H
A137: 21 | B137: 2021-09-09 | D137: NIFTY 17350 PE 9-SEP | E137: Buy | F137: 40 | H137: 52 | I137: 100 | J137: Profit of Rs.12/- | K137: =H137-F137 -> 12.00 | L137: 100.00 | M137: =(K137*N137)-100 -> 500 | N137: 50 | O137: Successful | P137: 2021-09-09 | R137: H
A138: 22 | B138: 2021-09-09 | D138: BANKNIFTY 36700 PE 9-SEP | E138: Buy | F138: 72.5 | H138: 115 | I138: 150 | J138: Profit of Rs.42.50/- | K138: =H138-F138 -> 42.50 | L138: 100.00 | M138: =(K138*N138)-100 -> 962.5 | N138: 25 | O138: Successful | P138: 2021-09-09 | R138: N
A139: 23 | B139: 2021-09-09 | D139: NIFTY 17350 PE 9-SEP | E139: Buy | F139: 40 | H139: 51 | I139: 100 | J139: Profit of Rs.11/- | K139: =H139-F139 -> 11.00 | L139: 100.00 | M139: =(K139*N139)-100 -> 450 | N139: 50 | O139: Successful | P139: 2021-09-09 | R139: H
A140: 24 | B140: 2021-09-09 | D140: BANKNIFTY 36700 PE 9-SEP | E140: Buy | F140: 32.5 | H140: 52.5 | I140: 80 | J140: Profit of Rs.20/- | K140: 20.00 | L140: 100.00 | M140: 400 | N140: 25 | O140: Successful | P140: 2021-09-09 | R140: N
A141: 25 | B141: 2021-09-09 | D141: NIFTY 17350 PE 9-SEP | E141: Buy | F141: 26.5 | H141: 13.5 | I141: 70 | J141: Loss of Rs.13/- | K141: =H141-F141 -> -13.00 | L141: 100.00 | M141: =(K141*N141)-100 -> -750 | N141: 50 | O141: Unsuccessful | P141: 2021-09-09 | R141: H
A142: 26 | B142: 2021-09-09 | D142: KOTAKBANK 1840 CE SEP | E142: Buy | F142: 34 | G142: 19 | H142: 42 | I142: 55 | J142: Profit of Rs.8/- | K142: 8.00 | L142: 100.00 | M142: 3100 | N142: 400 | O142: Successful | P142: 2021-09-13 | R142: H
A143: 27 | B143: 2021-09-13 | D143: BALKRISIND 2400 PE SEP | E143: Buy | F143: 38 | G143: 25 | H143: 25 | I143: 65-70 | J143: Loss of Rs.13/- | K143: =H143-F143 -> -13.00 | L143: 100.00 | M143: =(K143*N143)-100 -> -5300 | N143: 400 | O143: Unsuccessful | P143: 2021-09-14 | R143: H
A144: 28 | B144: 2021-09-13 | D144: ICICIGI 1700 CE SEP | E144: Buy | F144: 25.5 | G144: 15 | H144: 15 | I144: 40-50 | J144: Loss of Rs.10.50/- | K144: -10.50 | L144: 100.00 | M144: -4300 | N144: 400 | O144: Unsuccessful | P144: 2021-09-14 | R144: N
A145: 29 | B145: 2021-09-13 | D145: NIFTY 17300 PE 16-SEP | E145: Buy | F145: 56 | G145: 17 | H145: 17 | I145: 110-120 | J145: Loss of Rs.39/- | K145: -39.00 | L145: 100.00 | M145: -2050 | N145: 50 | O145: Unsuccessful | P145: 2021-09-15 | R145: H
A146: 30 | B146: 2021-09-14 | D146: NIFTY 17500 CE 30-SEP | E146: Sell | F146: 124 | G146: 210 | H146: 108 | I146: 0.1 | J146: Profit of Rs.16/- | K146: =F146-H146 -> 16.00 | L146: 100.00 | M146: =(K146*N146)-100 -> 700 | N146: 50 | O146: Successful | P146: 2021-09-14 | R146: H
A147: 31 | B147: 2021-09-14 | D147: LT 1700 CE SEP | E147: Buy | F147: 27 | G147: 18 | H147: 31 | I147: 40-42 | J147: Profit of Rs.4/- | K147: =H147-F147 -> 4.00 | L147: 100.00 | M147: 2200 | N147: 575 | O147: Successful | P147: 2021-09-14 | R147: N
A148: 32 | B148: 2021-09-14 | D148: BANKNIFTY 36600 PE 16-SEP | E148: Buy | F148: 155 | G148: 60 | H148: 215 | I148: 300-350 | J148: Profit of Rs.60/- | K148: =H148-F148 -> 60.00 | L148: 100.00 | M148: =(K148*N148)-100 -> 1400 | N148: 25 | O148: Successful | P148: 2021-09-14 | R148: H
A149: 33 | B149: 2021-09-14 | D149: M&MFIN 185 CE SEP | E149: Sell | F149: 1.55 | G149: 2.7 | H149: 2.7 | I149: 0.1 | J149: Loss of Rs.1.15/- | K149: =F149-H149 -> -1.15 | L149: 100.00 | M149: -4700 | N149: 4000 | O149: Unsuccessful | P149: 2021-09-16 | R149: N
A150: 34 | B150: 2021-09-15 | D150: BANKNIFTY 36600 PE 16-SEP | E150: Buy | F150: 135 | G150: 30 | H150: 47.5 | I150: 300 | J150: Loss of Rs.87.50/- | K150: =H150-F150 -> -87.50 | L150: 100.00 | M150: =(K150*N150)-100 -> -2287.5 | N150: 25 | O150: Unsuccessful | P150: 2021-09-15 | R150: N
A151: 35 | B151: 2021-09-15 | D151: HDFCAMC 3300 CE SEP | E151: Buy | F151: 84 | G151: 60 | H151: 95 | I151: 120 | J151: Profit of Rs.11/- | K151: 11.00 | L151: 100.00 | M151: 2100 | N151: 200 | O151: Successful | P151: 2021-09-15 | R151: N
A152: 36 | B152: 2021-09-15 | D152: NIFTY 17600 CE 30-SEP | E152: Sell | F152: 99.5 | G152: 170 | H152: 170 | I152: 0.1 | J152: Loss of Rs.70.50/- | K152: =F152-H152 -> -70.50 | L152: 100.00 | M152: -3625 | N152: 50 | O152: Unsuccessful | P152: 2021-09-16 | R152: H
A153: 37 | B153: 2021-09-15 | D153: HINDUNILVR 2780 CE SEP | E153: Buy | F153: 45.5 | G153: 30 | H153: 54.5 | I153: 70-75 | J153: Profit of Rs.8/- | K153: =H153-F153 -> 9.00 | L153: 100.00 | M153: 2600 | N153: 300 | O153: Successful | P153: 2021-09-16 | R153: N
A154: 38 | B154: 2021-09-16 | D154: HDFCBANK 1560 CE SEP | E154: Buy | F154: 25 | G154: 16 | H154: 31 | I154: 40-44 | J154: Profit of Rs.6/- | K154: =H154-F154 -> 6.00 | L154: 100.00 | M154: =(K154*N154)-100 -> 3200 | N154: 550 | O154: Successful | P154: 2021-09-16 | R154: N
A155: 39 | B155: 2021-09-16 | D155: NIFTY 17600 PE 16-SEP | E155: Buy | F155: 35 | H155: 0 | I155: 80 | J155: Loss of Rs.35/- | K155: =H155-F155 -> -35.00 | L155: 100.00 | M155: =(K155*N155)-100 -> -1850 | N155: 50 | O155: Unsuccessful | P155: 2021-09-16 | R155: N
A156: 40 | B156: 2021-09-16 | D156: BANKNIFTY 37600 CE 23-SEP | E156: Buy | F156: 385 | G156: 199 | H156: 460 | I156: 700-800 | J156: Profit of Rs.80 | K156: =H156-F156 -> 75.00 | L156: 100.00 | M156: =(80*25)-200 -> 1800 | N156: 25 | O156: Successful | P156: 2021-09-16 | R156: H
D157: BANKNIFTY 37600 CE 16-SEP | E157: Sell | F157: 50 | H157: 45 | K157: =F157-H157 -> 5.00 | L157: 100.00 | R157: H
A158: 41 | B158: 2021-09-16 | D158: HINDUNILVR 2780 CE SEP | E158: Buy | F158: 45.5 | G158: 30 | H158: 30 | I158: 70-75 | J158: Loss of Rs.15.5/- | K158: =H158-F158 -> -15.50 | L158: 100.00 | M158: =(K158*N158)-100 -> -4750 | N158: 300 | O158: Unsuccessful | P158: 2021-09-17 | R158: N
A159: 42 | B159: 2021-09-16 | D159: BANKNIFTY 37700 CE 23-SEP | E159: Buy | F159: 420 | G159: 290 | H159: 600 | I159: 600 | J159: Profit of Rs.180/- | K159: =H159-F159 -> 180.00 | L159: 100.00 | M159: =(K159*N159)-100 -> 4400 | N159: 25 | O159: Successful | P159: 2021-09-17 | R159: H
A160: 43 | B160: 2021-09-17 | D160: BANKNIFTY 37700 CE 23-SEP | E160: Buy | F160: 440 | G160: 290 | H160: 500 | I160: 650 | J160: Profit of Rs.60/- | K160: 60.00 | L160: 100.00 | M160: 1400 | N160: 25 | O160: Successful | P160: 2021-09-17 | R160: H
A161: 44 | B161: 2021-09-17 | D161: HDFCAMC 3300 CE SEP | E161: Buy | F161: 76 | G161: 50 | H161: 86 | I161: 120 | J161: Profit of Rs.10/- | K161: =H161-F161 -> 10.00 | L161: 100.00 | M161: =(K161*N161)-100 -> 1900 | N161: 200 | O161: Successful | P161: 2021-09-17 | R161: N
A162: 45 | B162: 2021-09-17 | D162: BANKNIFTY 37700 CE 23-SEP | E162: Buy | F162: 290 | G162: 180 | H162: 350 | I162: 450-500 | J162: Profit of Rs.60/- | K162: 60.00 | L162: 100.00 | M162: 1400 | N162: 25 | O162: Successful | P162: 2021-09-17 | R162: H
A163: 46 | B163: 2021-09-17 | D163: NIFTY 17700 CE 30-SEP | E163: Sell | F163: 125 | G163: 210 | H163: 65 | I163: 0.1 | J163: Profit of Rs.60/- | K163: =F163-H163 -> 60.00 | L163: 100.00 | M163: 2900 | N163: 50 | O163: Successful | P163: 2021-09-20 | R163: H
A164: 47 | B164: 2021-09-20 | D164: NIFTY 17400 PE 23-SEP | E164: Buy | F164: 66 | G164: 17 | H164: 79 | I164: 130 | J164: Profit of Rs.13/- | K164: =H164-F164 -> 13.00 | L164: 100.00 | M164: 550 | N164: 50 | O164: Successful | P164: 2021-09-20 | R164: H
A165: 48 | B165: 2021-09-20 | D165: HDFCAMC 3300 CE SEP | E165: Buy | F165: 57.5 | G165: 25 | H165: 74.5 | I165: 100 | J165: Profit of Rs.17/- | K165: =H165-F165 -> 17.00 | L165: 100.00 | M165: =(K165*N165)-100 -> 3300 | N165: 200 | O165: Successful | P165: 2021-09-20 | R165: N
A166: 49 | B166: 2021-09-20 | D166: HDFCBANK 1580 CE SEP | E166: Buy | F166: 21 | G166: 12 | H166: 26 | I166: 35-50 | J166: Profit of Rs.5/- | K166: =H166-F166 -> 5.00 | L166: 100.00 | M166: =(K166*N166)-100 -> 2650 | N166: 550 | O166: Successful | P166: 2021-09-20 | R166: N
A167: 50 | B167: 2021-09-20 | D167: NIFTY 17700 CE 30-SEP | E167: Sell | F167: 115 | G167: 202 | H167: 94 | I167: 0.1 | J167: Profit of Rs.21/- | K167: =F167-H167 -> 21.00 | L167: 100.00 | M167: =(K167*N167)-100 -> 950 | N167: 50 | O167: Successful | P167: 2021-09-20 | R167: H
A168: 51 | B168: 2021-09-20 | D168: HDFCAMC 3300 CE SEP | E168: Buy | F168: 54 | G168: 28 | H168: 65 | I168: 100 | J168: Profit of Rs.11/- | K168: =H168-F168 -> 11.00 | L168: 100.00 | M168: 2100 | N168: 200 | O168: Successful | P168: 2021-09-23 | R168: N
A169: 52 | B169: 2021-09-21 | D169: LT 1700 PE SEP | E169: Buy | F169: 23 | G169: 14 | H169: 28.5 | I169: 35-40 | J169: Profit of Rs.5.50/- | K169: =H169-F169 -> 5.50 | L169: 100.00 | M169: =(K169*N169)-100 -> 3062.5 | N169: 575 | O169: Successful | P169: 2021-09-21 | R169: N
A170: 53 | B170: 2021-09-21 | D170: HDFCBANK 1560 CE SEP | E170: Buy | F170: 16.5 | G170: 7 | H170: 21 | I170: 30-35 | J170: Profit of Rs.4.5/- | K170: 4.50 | L170: 100.00 | M170: 2375 | N170: 550 | O170: Successful | P170: 2021-09-23 | R170: N
A171: 54 | B171: 2021-09-21 | D171: LT 1700 PE SEP | E171: Buy | F171: 20 | G171: 12 | H171: 13 | I171: 35-40 | J171: Loss of Rs.7/- | K171: =H171-F171 -> -7.00 | L171: 100.00 | M171: =(K171*N171)-100 -> -4125 | N171: 575 | O171: Unsuccessful | P171: 2021-09-22 | R171: H
A172: 55 | B172: 2021-09-21 | D172: NIFTY 17400 PE 23-SEP | E172: Buy | F172: 72.5 | G172: 19 | H172: 19 | I172: 130-150 | J172: Loss of Rs.53.5/- | K172: =H172-F172 -> -53.50 | L172: 100.00 | M172: =(K172*N172)-100 -> -2775 | N172: 50 | O172: Unsuccessful | P172: 2021-09-22 | R172: H
A173: 56 | B173: 2021-09-21 | D173: HINDUNILVR 2820 CE SEP | E173: Buy | F173: 39.5 | G173: 25 | H173: 51 | I173: 70-75 | J173: Profit of Rs.11.50/- | K173: =H173-F173 -> 11.50 | L173: 100.00 | M173: =(K173*N173)-100 -> 3350 | N173: 300 | O173: Successful | P173: 2021-09-22 | R173: N
A174: 57 | B174: 2021-09-21 | D174: ITC 245 CE SEP | E174: Buy | F174: 5.15 | G174: 3.6 | H174: 6.1 | I174: 7.0-8.0 | J174: Profit of Rs.0.95/- | K174: =H174-F174 -> 0.95 | L174: 100.00 | M174: =(K174*N174)-100 -> 2940 | N174: 3200 | O174: Successful | P174: 2021-09-22 | R174: H
A175: 58 | B175: 2021-09-21 | D175: HDFC 2800 CE SEP | E175: Buy | F175: 34.5 | G175: 19 | H175: 39.5 | I175: 60-65 | J175: Profit of Rs.5/- | K175: 5.00 | L175: 100.00 | M175: 1400 | N175: 300 | O175: Successful | P175: 2021-09-23 | R175: H
A176: 59 | B176: 2021-09-22 | D176: HINDUNILVR 2800 CE SEP | E176: Buy | F176: 37 | G176: 20 | H176: 45.5 | I176: 70 | J176: Profit of Rs.8.5/- | K176: =H176-F176 -> 8.50 | L176: 100.00 | M176: =(K176*N176)-100 -> 2450 | N176: 300 | O176: Successful | P176: 2021-09-23 | R176: N
A177: 60 | B177: 2021-09-22 | D177: BANKNIFTY 37100 PE 30-SEP | E177: Buy | F177: 455 | G177: 110 | H177: 110 | I177: 700-800 | J177: Loss of Rs. 170/- | K177: =H177-F177 -> -345.00 | L177: 100.00 | M177: -4450 | N177: 25 | O177: Unsuccessful | P177: 2021-09-24 | R177: N
D178: BANKNIFTY 37000 PE 23-SEP | E178: Sell | F178: 175 | H178: 0 | K178: 175.00 | L178: 100.00 | R178: N
A179: 61 | B179: 2021-09-23 | D179: NIFTY 17650 PE 23-SEP | E179: Buy | F179: 36 | G179: 7 | H179: 7 | I179: 60-70 | J179: Loss of Rs.29/- | K179: =H179-F179 -> -29.00 | L179: 100.00 | M179: =(K179*N179)-100 -> -1550 | N179: 50 | O179: Unsuccessful | P179: 2021-09-23 | R179: H
A180: 62 | B180: 2021-09-23 | D180: NIFTY 17800 CE 30-SEP | E180: Sell | F180: 95 | G180: 175 | H180: 152.5 | I180: 0.1 | J180: Loss of Rs.57.50/- | K180: =F180-H180 -> -57.50 | L180: 100.00 | M180: -2975 | N180: 50 | O180: Unsuccessful | P180: 2021-09-23 | R180: H
A181: 63 | B181: 2021-09-23 | D181: HINDUNILVR 2800 CE SEP | E181: Buy | F181: 35 | G181: 18 | H181: 18 | I181: 70 | J181: Loss of Rs.17/- | K181: =H181-F181 -> -17.00 | L181: 100.00 | M181: =(K181*N181)-100 -> -5200 | N181: 300 | O181: Unsuccessful | P181: 2021-09-24 | R181: N
A182: 64 | B182: 2021-09-23 | D182: HDFCAMC 3300 CE SEP | E182: Buy | F182: 61 | G182: 35 | H182: 35 | I182: 100-110 | J182: Loss of Rs.26/- | K182: =H182-F182 -> -26.00 | L182: 100.00 | M182: =(K182*N182)-100 -> -5300 | N182: 200 | O182: Unsuccessful | P182: 2021-09-27 | R182: N
A183: 65 | B183: 2021-09-23 | D183: SBIN 450 CE SEP | E183: Buy | F183: 7.25 | G183: 4.7 | H183: 4.7 | I183: 11-12.0 | J183: Loss of Rs.2.25/- | K183: =H183-F183 -> -2.55 | L183: 100.00 | M183: =(K183*N183)-100 -> -3925 | N183: 1500 | O183: Unsuccessful | P183: 2021-09-24 | R183: H
A184: 66 | B184: 2021-09-24 | D184: NIFTY 17800 PE SEP | E184: Buy | F184: 96 | G184: 50 | H184: 113.5 | I184: 150-180 | J184: Profit of Rs.17.5/- | K184: =H184-F184 -> 17.50 | L184: 100.00 | M184: =(K184*N184)-100 -> 775 | N184: 50 | O184: Successful | P184: 2021-09-24 | R184: N
A185: 67 | B185: 2021-09-28 | D185: BANKNIFTY 37300 PE 07-OCT | E185: Buy | F185: 380 | G185: 40 | H185: 345 | I185: 700-800 | J185: Profit of Rs.97.5 | K185: -35.00 | L185: 100.00 | M185: =(97.5*25)-200 -> 2237.5 | N185: 25 | O185: Successful | P185: 2021-09-30 | R185: H
D186: BANKNIFTY 37300 PE 30-SEP | E186: Sell | F186: 140 | H186: 7.5 | K186: =F186-H186 -> 132.50 | L186: 100.00 | R186: H
A187: 68 | B187: 2021-09-29 | D187: HDFCAMC 2900 CE SEP | E187: Buy | F187: 40 | G187: 18 | H187: 50 | I187: 70-75 | J187: Profit of Rs.10/- | K187: =H187-F187 -> 10.00 | L187: 100.00 | M187: =(K187*N187)-100 -> 1900 | N187: 200 | O187: Successful | P187: 2021-09-29 | R187: H
A188: 69 | B188: 2021-09-29 | D188: HDFCBANK 1600 CE SEP | E188: Buy | F188: 10.5 | G188: 2 | H188: 2 | I188: 20-22 | J188: Loss of Rs.8.5-/- | K188: =H188-F188 -> -8.50 | L188: 100.00 | M188: -525 | N188: 50 | O188: Unsuccessful | P188: 2021-09-30 | R188: N
A189: 70 | B189: 2021-09-29 | D189: NIFTY 17750 PE SEP | E189: Buy | F189: 54 | G189: 14 | H189: 72.5 | I189: 100-120 | J189: Profit of Rs.18.5/- | K189: =H189-F189 -> 18.50 | L189: 100.00 | M189: =(K189*N189)-100 -> 825 | N189: 50 | O189: Successful | P189: 2021-09-29 | R189: H
A190: 71 | B190: 2021-09-30 | D190: NIFTY 17650 CE SEP | E190: Buy | F190: 21 | H190: 39 | I190: 45-55 | J190: Profit of Rs.18/- | K190: =H190-F190 -> 18.00 | L190: 100.00 | M190: =(K190*N190)-100 -> 800 | N190: 50 | O190: Successful | P190: 2021-09-30 | R190: H
A196: Techno -Funda (positional)
A197: Sr.no | B197: Date | D197: Company | E197: Rec | F197: Rec Price | G197: Stop Loss*** | H197: Call Closed At | I197: Target | J197: Remark | K197: Profit / Loss per Share/Lot | L197: All charges | M197: Net Gain / Loss % | N197: Status | O197: Closed Date | P197: Market Closing Price
A198: 1 | B198: 2021-08-12 | D198: SHARDACROP | E198: Buy | F198: 314 | G198: 284 | H198: 343.50 | I198: 380-390 | J198: Part profit of Rs.29.5/- | K198: =H198-F198 -> 29.5 | L198: =(F198*-0.7)/100 -> -2.20 | M198: =(K198+L198)/F198 -> 8.69% | N198: Successful | O198: 2021-09-16 | P198: =VLOOKUP(D198,'MidCap Intra'!B170:C670,2,0) -> 330.6 | R198: H
A200: CLBS = Closing Basis *** | F200: Reinitiated $
A201: Dividend adjusted <> | F201: Revised stoploss # | H201: .................
B203: Intrday Call
A204: Sr.no | B204: Date | D204: Company | E204: Rec | F204: Rec Price | G204: Stop Loss | H204: Call Closed At | I204: Target | J204: Remark | K204: Profit / Loss per Share/Lot | L204: Gain / Loss per Lot | M204: Lot | N204: All charges | O204: Net Gain / Loss % | P204: Status | Q204: Closed Date
B217: Investment Idea
A218: Sr.no | B218: Date | D218: Company | E218: Rec | F218: Rec Price | G218: Point of Review | H218: Close Rate | I218: Target | J218: Remark | K218: Profit / Loss per Share | L218: Gain / Loss % | M218: Status | N218: Closed Date
A219: 1 | B219: 2013-11-01 | D219: L&T Finance Holding | E219: Accu | F219: 82.00 | G219: - | H219: 100 | I219: 100.00 | J219: Target Achieved | K219: =H219-F219 -> 18.00 | L219: =K219/F219 -> 21.95% | M219: Successful | N219: 2016-10-14
A220: 2 | B220: 2014-06-04 | D220: Finolex Inds | E220: Buy | F220: 257.00 | G220: - | H220: 300 | I220: 300.00 | J220: Target Achieved | K220: 43.00 | L220: 16.73% | M220: Successful | N220: 2014-07-02
A221: 3 | B221: 2014-07-08 | D221: JK Cement | E221: Buy | F221: 393.00 | G221: - | H221: 468 | I221: 468.00 | J221: Target Achieved | K221: 75.00 | L221: 19.08% | M221: Successful | N221: 2014-08-12
A222: 4 | B222: 2014-08-06 | D222: Finolex Cables | E222: Buy | F222: 205.00 | G222: - | H222: 275 | I222: 250.00 | J222: Target Achieved | K222: 70.00 | L222: 34.15% | M222: Successful | N222: 2014-11-19
A223: 5 | B223: 2014-09-04 | D223: Exide Inds | E223: Buy | F223: 162.00 | G223: - | H223: 190 | I223: 190.00 | J223: Target Achieved | K223: 28.00 | L223: 17.28% | M223: Successful | N223: 2015-01-02
A224: 6 | B224: 2014-09-04 | D224: Deepak Nitrite | E224: Buy | F224: 75.00 | G224: - | H224: 91.5 | I224: 95-100 | J224: Profit of Rs.16.50/- | K224: 16.50 | L224: 22.00% | M224: Successful | N224: 2014-11-11
A225: 7 | B225: 2014-10-01 | D225: Mercks | E225: Buy | F225: 850.00 | G225: - | H225: 982.5 | I225: 1050.00 | J225: Profit of Rs.132.50/- | K225: 132.50 | L225: 15.59% | M225: Successful | N225: 2015-02-04
A226: 8 | B226: 2014-10-01 | D226: Grindwell Norton | E226: Buy | F226: 475.00 | G226: - | H226: 515 | I226: 600.00 | J226: Profit of Rs.40/- | K226: 40.00 | L226: 8.42% | M226: Successful | N226: 2014-10-27
A227: 9 | B227: 2014-10-01 | D227: Snowman Logistics | E227: Buy | F227: 86.00 | G227: - | H227: 99 | I227: 140.00 | J227: Profit of Rs.13.00/- | K227: 13.00 | L227: 15.12% | M227: Successful | N227: 2014-10-27
A228: 10 | B228: 2014-10-14 | D228: Birla Corp | E228: Buy | F228: 496.60 | G228: - | H228: 621 | I228: 580.00 | J228: Target Achieved | K228: 124.40 | L228: 25.05% | M228: Successful | N228: 2016-08-23
A229: 11 | B229: 2014-10-14 | D229: Ultratech Cem | E229: Buy | F229: 2481.90 | G229: - | H229: 2840 | I229: 2870.00 | J229: Profit of Rs.358.10/- | K229: 358.10 | L229: 14.43% | M229: Successful | N229: 2015-01-13
A230: 12 | B230: 2014-10-16 | D230: Sintex Inds | E230: Buy | F230: 84.50 | G230: - | H230: 93 | I230: 110.00 | J230: Profit of Rs.8.50/- | K230: 8.50 | L230: 10.06% | M230: Successful | N230: 2014-10-27
A231: 13 | B231: 2014-10-16 | D231: HSIL | E231: Buy | F231: 401.00 | G231: - | H231: 428 | I231: 450.00 | J231: Profit of Rs.27.00/- | K231: 27.00 | L231: 6.73% | M231: Successful | N231: 2015-01-16
A232: 14 | B232: 2014-10-16 | D232: Eveready Inds | E232: Buy | F232: 101.00 | G232: - | H232: 112 | I232: 120.00 | J232: Profit of Rs.11.00/- | K232: 11.00 | L232: 10.89% | M232: Successful | N232: 2014-10-27
A233: 15 | B233: 2014-11-11 | D233: Pennar Inds | E233: Buy | F233: 59.00 | G233: - | H233: 76 | I233: 76.00 | J233: Target Achieved | K233: 17.00 | L233: 28.81% | M233: Successful | N233: 2017-10-24
A234: 16 | B234: 2014-11-11 | D234: Snowman Logistics | E234: Buy | F234: 99.00 | G234: - | H234: 120 | I234: 120.00 | J234: Profit of Rs.21/- | K234: 21.00 | L234: 21.21% | M234: Successful | N234: 2014-11-17
A235: 17 | B235: 2014-11-13 | D235: Dharamsi Morarji Chem | E235: Buy | F235: 22.00 | G235: - | H235: 33.55 | I235: 32.00 | J235: Profit of Rs 11.55/- | K235: 11.55 | L235: 52.50% | M235: Successful | N235: 2015-07-03
A236: 18 | B236: 2014-12-03 | D236: Tatachem | E236: Buy | F236: 440.00 | G236: - | H236: 520 | I236: 520.00 | J236: Profit of Rs 80.00/- | K236: 80.00 | L236: 18.18% | M236: Successful | N236: 2015-07-23
A237: 19 | B237: 2014-12-03 | D237: Advanta | E237: Buy | F237: 360.00 | G237: - | H237: 427 | I237: 425.00 | J237: Profit of Rs.67.00/- | K237: 67.00 | L237: 18.61% | M237: Successful | N237: 2015-02-23
A238: 20 | B238: 2015-01-08 | D238: GDL | E238: Buy | F238: 360.00 | G238: - | H238: 455 | I238: 420.00 | J238: Profit of Rs.95.00/- | K238: 95.00 | L238: 26.39% | M238: Successful | N238: 2015-01-20
A239: 21 | B239: 2015-01-08 | D239: NRB Bearing | E239: Buy | F239: 130.00 | H239: 175.5 | I239: 165.00 | J239: Profit of Rs 45.50/- | K239: 45.50 | L239: 35.00% | M239: Successful | N239: 2017-12-19
A240: 22 | B240: 2015-02-05 | D240: GSFC | E240: Accu | F240: 98.00 | H240: 120 | I240: 120.00 | J240: Target Achieved | K240: 22.00 | L240: 22.45% | M240: Successful | N240: 2017-01-18
A241: 23 | B241: 2015-02-05 | D241: Sundrmfast | E241: Accu | F241: 196.00 | H241: 262 | I241: 255.00 | J241: Target Achieved | K241: 66.00 | L241: 33.67% | M241: Successful | N241: 2016-08-17
A242: 24 | B242: 2015-03-04 | D242: GPPL | E242: Accu | F242: 235 | H242: 77.00 | I242: 280-285 | J242: Loss of Rs.158/- | K242: -158.00 | L242: -67.23% | M242: Unsuccessful | N242: 2019-02-26
A243: 25 | B243: 2015-03-04 | D243: ORIENTCEM | E243: Accu | F243: 185.00 | H243: 224 | I243: 220-225 | J243: Target Achieved | K243: 39.00 | L243: 21.08% | M243: Successful | N243: 2016-10-04
... 145 more rows
